{"text_format":"1","workbook":"xlsx","n_sheets":5,"sheets":["Accueil","Habilitation Agent","Habilitation et validité","Feuil5","Année"],"not_rendered":{"charts":0,"images":1,"macros":1,"external_links":0,"defined_names":1,"comments":0,"pivot_tables":0},"unopened":[],"bounds":{"document_bytes":16777216,"sheet_cells":100000,"rows_first":2000,"rows_last":500,"rows_between":2000,"halvings":0,"cell_chars":16384,"cell_head_chars":4096},"cells_cut":0,"cells_raw":0,"read":"whole","date_system":"1900"}

{"sheet":"Accueil","index":0,"n_rows":19,"n_cols":2,"rows_kept":19,"cut":false,"hidden":false,"merged":[]}
[]
[]
[]
[]
[null,"Suivi Recyclage des Habilitations"]
[]
[]
[]
[]
[]
[]
[]
[]
[]
[null,"Habilitation par Agent"]
[]
[]
[]
[null,"Habilitation par Année"]

{"sheet":"Habilitation Agent","index":1,"n_rows":15,"n_cols":82,"rows_kept":15,"cut":false,"hidden":false,"merged":[]}
["Code","NOM","Prénom","Habilitation_1","Validité","Initiale","Dernier Recyclage","R1","R2","R3","v1","Habilitation_2","Validité_2","Initiale_2","Dernier Recyclage_2","R1_2","R2_2","R3_2","v2","Habilitation_3","Validité_3","Initiale_3","Dernier Recyclage_3","R1_3","R2_3","R3_3","v3","Habilitation_4","Validité_4","Initiale_4","Dernier Recyclage_4","R1_4","R2_4","R3_4","v4","Habilitation_5","Validité_5","Initiale_5","Dernier Recyclage_5","R1_5","R2_5","R3_5","v5","Habilitation_6","Validité_6","Initiale_6","Dernier Recyclage_6","R1_6","R2_6","R3_6","v6","Habilitation_7","Validité_7","Initiale_7","Dernier Recyclage_7","R1_7","R2_7","R3_7","R3_8","Habilitation_8","Validité_8","Initiale_8","Dernier Recyclage_8","R1_76","R3_14","R3_15","R3_16","R3_17","R3_18","R3_19","R3_20","R3_21","R3_22","R3_23","R3_24","R3_25","R3_26","R3_27","R3_28","R3_29","R3_30","R3_31"]
["APr","Durand 1",null,null,3,"2009-11-23","2012-05-03",{"$f":"IF(ISERROR(+DATE(YEAR(Tableau2[Dernier Recyclage])+Tableau2[[#This Row],[Validité]],MONTH(Tableau2[Dernier Recyclage]),DAY(Tableau2[Dernier Recyclage]))),\"\",(+DATE(YEAR(Tableau2[Dernier Recyclage])+Tableau2[[#This Row],[Validité]],MONTH(Tableau2[Dernier Recyclage]),DAY(Tableau2[Dernier Recyclage]))))","v":"2015-05-03"},{"$f":"IF(ISERROR(+DATE(YEAR(Tableau2[[#This Row],[R1]])+Tableau2[[#This Row],[Validité]],MONTH(Tableau2[[#This Row],[R1]]),DAY(Tableau2[[#This Row],[R1]]))),\"\",(+DATE(YEAR(Tableau2[[#This Row],[R1]])+Tableau2[[#This Row],[Validité]],MONTH(Tableau2[[#This Row],[R1]]),DAY(Tableau2[[#This Row],[R1]]))))","v":"2018-05-03"},{"$f":"IF(ISERROR(+DATE(YEAR(Tableau2[[#This Row],[R2]])+Tableau2[[#This Row],[Validité]],MONTH(Tableau2[[#This Row],[R2]]),DAY(Tableau2[[#This Row],[R2]]))),\"\",(+DATE(YEAR(Tableau2[[#This Row],[R2]])+Tableau2[[#This Row],[Validité]],MONTH(Tableau2[[#This Row],[R2]]),DAY(Tableau2[[#This Row],[R2]]))))","v":"2021-05-03"},"",null,5,null,"?",{"$f":"IF(ISERROR(+DATE(YEAR(Tableau2[Dernier Recyclage_2])+Tableau2[Validité_2],MONTH(Tableau2[Dernier Recyclage_2]),DAY(Tableau2[Dernier Recyclage_2]))),\"\",(+DATE(YEAR(Tableau2[Dernier Recyclage_2])+Tableau2[Validité_2],MONTH(Tableau2[Dernier Recyclage_2]),DAY(Tableau2[Dernier Recyclage_2]))))","v":""},{"$f":"IF(ISERROR(+DATE(YEAR(Tableau2[R1_2])+Tableau2[Validité_2],MONTH(Tableau2[R1_2]),DAY(Tableau2[R1_2]))),\"\",(+DATE(YEAR(Tableau2[R1_2])+Tableau2[Validité_2],MONTH(Tableau2[R1_2]),DAY(Tableau2[R1_2]))))","v":""},{"$f":"IF(ISERROR(+DATE(YEAR(Tableau2[R2_2])+Tableau2[Validité_2],MONTH(Tableau2[R2_2]),DAY(Tableau2[R2_2]))),\"\",(+DATE(YEAR(Tableau2[R2_2])+Tableau2[Validité_2],MONTH(Tableau2[R2_2]),DAY(Tableau2[R2_2]))))","v":""},"",null,null,"","",{"$f":"IF(ISERROR(+DATE(YEAR(Tableau2[Dernier Recyclage_3])+Tableau2[Validité_3],MONTH(Tableau2[Dernier Recyclage_3]),DAY(Tableau2[Dernier Recyclage_3]))),\"\",(+DATE(YEAR(Tableau2[Dernier Recyclage_3])+Tableau2[Validité_3],MONTH(Tableau2[Dernier Recyclage_3]),DAY(Tableau2[Dernier Recyclage_3]))))","v":""},{"$f":"IF(ISERROR(+DATE(YEAR(Tableau2[R1_3])+Tableau2[Validité_3],MONTH(Tableau2[R1_3]),DAY(Tableau2[R1_3]))),\"\",(+DATE(YEAR(Tableau2[R1_3])+Tableau2[Validité_3],MONTH(Tableau2[R1_3]),DAY(Tableau2[R1_3]))))","v":""},{"$f":"IF(ISERROR(+DATE(YEAR(Tableau2[R2_3])+Tableau2[Validité_3],MONTH(Tableau2[R2_3]),DAY(Tableau2[R2_3]))),\"\",(+DATE(YEAR(Tableau2[R2_3])+Tableau2[Validité_3],MONTH(Tableau2[R2_3]),DAY(Tableau2[R2_3]))))","v":""},null,null,null,null,null,null,{"$f":"IF(ISERROR(+DATE(YEAR(Tableau2[R1_4])+Tableau2[Validité_4],MONTH(Tableau2[R1_4]),DAY(Tableau2[R1_4]))),\"\",(+DATE(YEAR(Tableau2[R1_4])+Tableau2[Validité_4],MONTH(Tableau2[R1_4]),DAY(Tableau2[R1_4]))))","v":"00:00:00"},{"$f":"IF(ISERROR(+DATE(YEAR(Tableau2[R2_4])+Tableau2[Validité_4],MONTH(Tableau2[R2_4]),DAY(Tableau2[R2_4]))),\"\",(+DATE(YEAR(Tableau2[R2_4])+Tableau2[Validité_4],MONTH(Tableau2[R2_4]),DAY(Tableau2[R2_4]))))","v":"00:00:00"},null,null,{"$f":"IF(ISERROR(VLOOKUP(Tableau2[Habilitation_5],Tableau1[],Tableau1[Validité2],0)),\"\",VLOOKUP(Tableau2[Habilitation_5],Tableau1[],Tableau1[Validité2],0))","v":""},null,null,{"$f":"IF(ISERROR(+DATE(YEAR(Tableau2[Dernier Recyclage_5])+Tableau2[Validité_5],MONTH(Tableau2[Dernier Recyclage_5]),DAY(Tableau2[Dernier Recyclage_5]))),\"\",(+DATE(YEAR(Tableau2[Dernier Recyclage_5])+Tableau2[Validité_5],MONTH(Tableau2[Dernier Recyclage_5]),DAY(Tableau2[Dernier Recyclage_5]))))","v":""},{"$f":"IF(ISERROR(+DATE(YEAR(Tableau2[R1_5])+Tableau2[Validité_5],MONTH(Tableau2[R1_5]),DAY(Tableau2[R1_5]))),\"\",(+DATE(YEAR(Tableau2[R1_5])+Tableau2[Validité_5],MONTH(Tableau2[R1_5]),DAY(Tableau2[R1_5]))))","v":""},{"$f":"IF(ISERROR(+DATE(YEAR(Tableau2[R2_5])+Tableau2[Validité_5],MONTH(Tableau2[R2_5]),DAY(Tableau2[R2_5]))),\"\",(+DATE(YEAR(Tableau2[R2_5])+Tableau2[Validité_5],MONTH(Tableau2[R2_5]),DAY(Tableau2[R2_5]))))","v":""},null,null,{"$f":"IF(ISERROR(VLOOKUP(Tableau2[Habilitation_6],Tableau1[],Tableau1[Validité2],0)),\"\",VLOOKUP(Tableau2[Habilitation_6],Tableau1[],Tableau1[Validité2],0))","v":""},null,null,{"$f":"IF(ISERROR(+DATE(YEAR(Tableau2[Dernier Recyclage_6])+Tableau2[Validité_6],MONTH(Tableau2[Dernier Recyclage_6]),DAY(Tableau2[Dernier Recyclage_6]))),\"\",(+DATE(YEAR(Tableau2[Dernier Recyclage_6])+Tableau2[Validité_6],MONTH(Tableau2[Dernier Recyclage_6]),DAY(Tableau2[Dernier Recyclage_6]))))","v":""},{"$f":"IF(ISERROR(+DATE(YEAR(Tableau2[R1_6])+Tableau2[Validité_6],MONTH(Tableau2[R1_6]),DAY(Tableau2[R1_6]))),\"\",(+DATE(YEAR(Tableau2[R1_6])+Tableau2[Validité_6],MONTH(Tableau2[R1_6]),DAY(Tableau2[R1_6]))))","v":""},{"$f":"IF(ISERROR(+DATE(YEAR(Tableau2[R2_6])+Tableau2[Validité_6],MONTH(Tableau2[R2_6]),DAY(Tableau2[R2_6]))),\"\",(+DATE(YEAR(Tableau2[R2_6])+Tableau2[Validité_6],MONTH(Tableau2[R2_6]),DAY(Tableau2[R2_6]))))","v":""},null,null,{"$f":"IF(ISERROR(VLOOKUP(Tableau2[Habilitation_7],Tableau1[],Tableau1[Validité2],0)),\"\",VLOOKUP(Tableau2[Habilitation_7],Tableau1[],Tableau1[Validité2],0))","v":""},null,null,{"$f":"IF(ISERROR(+DATE(YEAR(Tableau2[Dernier Recyclage_7])+Tableau2[Validité_7],MONTH(Tableau2[Dernier Recyclage_7]),DAY(Tableau2[Dernier Recyclage_7]))),\"\",(+DATE(YEAR(Tableau2[Dernier Recyclage_7])+Tableau2[Validité_7],MONTH(Tableau2[Dernier Recyclage_7]),DAY(Tableau2[Dernier Recyclage_7]))))","v":""},{"$f":"IF(ISERROR(+DATE(YEAR(Tableau2[R1_7])+Tableau2[Validité_7],MONTH(Tableau2[R1_7]),DAY(Tableau2[R1_7]))),\"\",(+DATE(YEAR(Tableau2[R1_7])+Tableau2[Validité_7],MONTH(Tableau2[R1_7]),DAY(Tableau2[R1_7]))))","v":""},{"$f":"IF(ISERROR(+DATE(YEAR(Tableau2[R2_7])+Tableau2[Validité_7],MONTH(Tableau2[R2_7]),DAY(Tableau2[R2_7]))),\"\",(+DATE(YEAR(Tableau2[R2_7])+Tableau2[Validité_7],MONTH(Tableau2[R2_7]),DAY(Tableau2[R2_7]))))","v":""},null,null,{"$f":"IF(ISERROR(VLOOKUP(Tableau2[Habilitation_8],Tableau1[],Tableau1[Validité2],0)),\"\",VLOOKUP(Tableau2[Habilitation_8],Tableau1[],Tableau1[Validité2],0))","v":""},null,null,{"$f":"IF(ISERROR(+DATE(YEAR(Tableau2[Dernier Recyclage_8])+Tableau2[Validité_8],MONTH(Tableau2[Dernier Recyclage_8]),DAY(Tableau2[Dernier Recyclage_8]))),\"\",(+DATE(YEAR(Tableau2[Dernier Recyclage_8])+Tableau2[Validité_8],MONTH(Tableau2[Dernier Recyclage_8]),DAY(Tableau2[Dernier Recyclage_8]))))","v":""},{"$f":"IF(ISERROR(+DATE(YEAR(Tableau2[R1_76])+Tableau2[Validité_8],MONTH(Tableau2[R1_76]),DAY(Tableau2[R1_76]))),\"\",(+DATE(YEAR(Tableau2[R1_76])+Tableau2[Validité_8],MONTH(Tableau2[R1_76]),DAY(Tableau2[R1_76]))))","v":""},{"$f":"IF(ISERROR(+DATE(YEAR(Tableau2[R3_14])+Tableau2[Validité_8],MONTH(Tableau2[R3_14]),DAY(Tableau2[Validité_8]))),\"\",(+DATE(YEAR(Tableau2[R3_14])+Tableau2[Validité_8],MONTH(Tableau2[R3_14]),DAY(Tableau2[R3_14]))))","v":""},null,null,{"$f":"IF(ISERROR(VLOOKUP(Tableau2[R3_17],Tableau1[],Tableau1[Validité2],0)),\"\",VLOOKUP(Tableau2[R3_17],Tableau1[],Tableau1[Validité2],0))","v":""},null,null,{"$f":"IF(ISERROR(+DATE(YEAR(Tableau2[R3_20])+Tableau2[R3_18],MONTH(Tableau2[R3_20]),DAY(Tableau2[R3_20]))),\"\",(+DATE(YEAR(Tableau2[R3_20])+Tableau2[R3_18],MONTH(Tableau2[R3_20]),DAY(Tableau2[R3_20]))))","v":""},{"$f":"IF(ISERROR(+DATE(YEAR(Tableau2[R3_21])+Tableau2[R3_18],MONTH(Tableau2[R3_21]),DAY(Tableau2[R3_21]))),\"\",(+DATE(YEAR(Tableau2[R3_21])+Tableau2[R3_18],MONTH(Tableau2[R3_21]),DAY(Tableau2[R3_21]))))","v":""},{"$f":"IF(ISERROR(+DATE(YEAR(Tableau2[R3_22])+Tableau2[Validité_8],MONTH(Tableau2[R3_22]),DAY(Tableau2[R3_18]))),\"\",(+DATE(YEAR(Tableau2[R3_22])+Tableau2[Validité_8],MONTH(Tableau2[R3_22]),DAY(Tableau2[R3_22]))))","v":""},null,null,{"$f":"IF(ISERROR(VLOOKUP(Tableau2[R3_25],Tableau1[],Tableau1[Validité2],0)),\"\",VLOOKUP(Tableau2[R3_25],Tableau1[],Tableau1[Validité2],0))","v":""},null,null,{"$f":"IF(ISERROR(+DATE(YEAR(Tableau2[R3_28])+Tableau2[R3_26],MONTH(Tableau2[R3_28]),DAY(Tableau2[R3_28]))),\"\",(+DATE(YEAR(Tableau2[R3_28])+Tableau2[R3_26],MONTH(Tableau2[R3_28]),DAY(Tableau2[R3_28]))))","v":""},{"$f":"IF(ISERROR(+DATE(YEAR(Tableau2[R3_29])+Tableau2[R3_26],MONTH(Tableau2[R3_29]),DAY(Tableau2[R3_29]))),\"\",(+DATE(YEAR(Tableau2[R3_29])+Tableau2[R3_26],MONTH(Tableau2[R3_29]),DAY(Tableau2[R3_29]))))","v":""},{"$f":"IF(ISERROR(+DATE(YEAR(Tableau2[R3_30])+Tableau2[R3_26],MONTH(Tableau2[R3_30]),DAY(Tableau2[R3_26]))),\"\",(+DATE(YEAR(Tableau2[R3_30])+Tableau2[R3_26],MONTH(Tableau2[R3_30]),DAY(Tableau2[R3_30]))))","v":""}]
["DCh","Durand 2",null,null,3,"","2014-10-12",{"$f":"IF(ISERROR(+DATE(YEAR(Tableau2[Dernier Recyclage])+Tableau2[[#This Row],[Validité]],MONTH(Tableau2[Dernier Recyclage]),DAY(Tableau2[Dernier Recyclage]))),\"\",(+DATE(YEAR(Tableau2[Dernier Recyclage])+Tableau2[[#This Row],[Validité]],MONTH(Tableau2[Dernier Recyclage]),DAY(Tableau2[Dernier Recyclage]))))","v":"2017-10-12"},{"$f":"IF(ISERROR(+DATE(YEAR(Tableau2[[#This Row],[R1]])+Tableau2[[#This Row],[Validité]],MONTH(Tableau2[[#This Row],[R1]]),DAY(Tableau2[[#This Row],[R1]]))),\"\",(+DATE(YEAR(Tableau2[[#This Row],[R1]])+Tableau2[[#This Row],[Validité]],MONTH(Tableau2[[#This Row],[R1]]),DAY(Tableau2[[#This Row],[R1]]))))","v":"2020-10-12"},{"$f":"IF(ISERROR(+DATE(YEAR(Tableau2[[#This Row],[R2]])+Tableau2[[#This Row],[Validité]],MONTH(Tableau2[[#This Row],[R2]]),DAY(Tableau2[[#This Row],[R2]]))),\"\",(+DATE(YEAR(Tableau2[[#This Row],[R2]])+Tableau2[[#This Row],[Validité]],MONTH(Tableau2[[#This Row],[R2]]),DAY(Tableau2[[#This Row],[R2]]))))","v":"2023-10-12"},null,null,5,"","?",{"$f":"IF(ISERROR(+DATE(YEAR(Tableau2[Dernier Recyclage_2])+Tableau2[Validité_2],MONTH(Tableau2[Dernier Recyclage_2]),DAY(Tableau2[Dernier Recyclage_2]))),\"\",(+DATE(YEAR(Tableau2[Dernier Recyclage_2])+Tableau2[Validité_2],MONTH(Tableau2[Dernier Recyclage_2]),DAY(Tableau2[Dernier Recyclage_2]))))","v":""},{"$f":"IF(ISERROR(+DATE(YEAR(Tableau2[R1_2])+Tableau2[Validité_2],MONTH(Tableau2[R1_2]),DAY(Tableau2[R1_2]))),\"\",(+DATE(YEAR(Tableau2[R1_2])+Tableau2[Validité_2],MONTH(Tableau2[R1_2]),DAY(Tableau2[R1_2]))))","v":""},{"$f":"IF(ISERROR(+DATE(YEAR(Tableau2[R2_2])+Tableau2[Validité_2],MONTH(Tableau2[R2_2]),DAY(Tableau2[R2_2]))),\"\",(+DATE(YEAR(Tableau2[R2_2])+Tableau2[Validité_2],MONTH(Tableau2[R2_2]),DAY(Tableau2[R2_2]))))","v":""},null,null,null,"?","?",{"$f":"IF(ISERROR(+DATE(YEAR(Tableau2[Dernier Recyclage_3])+Tableau2[Validité_3],MONTH(Tableau2[Dernier Recyclage_3]),DAY(Tableau2[Dernier Recyclage_3]))),\"\",(+DATE(YEAR(Tableau2[Dernier Recyclage_3])+Tableau2[Validité_3],MONTH(Tableau2[Dernier Recyclage_3]),DAY(Tableau2[Dernier Recyclage_3]))))","v":""},{"$f":"IF(ISERROR(+DATE(YEAR(Tableau2[R1_3])+Tableau2[Validité_3],MONTH(Tableau2[R1_3]),DAY(Tableau2[R1_3]))),\"\",(+DATE(YEAR(Tableau2[R1_3])+Tableau2[Validité_3],MONTH(Tableau2[R1_3]),DAY(Tableau2[R1_3]))))","v":""},{"$f":"IF(ISERROR(+DATE(YEAR(Tableau2[R2_3])+Tableau2[Validité_3],MONTH(Tableau2[R2_3]),DAY(Tableau2[R2_3]))),\"\",(+DATE(YEAR(Tableau2[R2_3])+Tableau2[Validité_3],MONTH(Tableau2[R2_3]),DAY(Tableau2[R2_3]))))","v":""},null,null,null,"","",{"$f":"IF(ISERROR(+DATE(YEAR(Tableau2[Dernier Recyclage_4])+Tableau2[Validité_4],MONTH(Tableau2[Dernier Recyclage_4]),DAY(Tableau2[Dernier Recyclage_4]))),\"\",(+DATE(YEAR(Tableau2[Dernier Recyclage_4])+Tableau2[Validité_4],MONTH(Tableau2[Dernier Recyclage_4]),DAY(Tableau2[Dernier Recyclage_4]))))","v":""},{"$f":"IF(ISERROR(+DATE(YEAR(Tableau2[R1_4])+Tableau2[Validité_4],MONTH(Tableau2[R1_4]),DAY(Tableau2[R1_4]))),\"\",(+DATE(YEAR(Tableau2[R1_4])+Tableau2[Validité_4],MONTH(Tableau2[R1_4]),DAY(Tableau2[R1_4]))))","v":""},{"$f":"IF(ISERROR(+DATE(YEAR(Tableau2[R2_4])+Tableau2[Validité_4],MONTH(Tableau2[R2_4]),DAY(Tableau2[R2_4]))),\"\",(+DATE(YEAR(Tableau2[R2_4])+Tableau2[Validité_4],MONTH(Tableau2[R2_4]),DAY(Tableau2[R2_4]))))","v":""},null,"HUILE",{"$f":"IF(ISERROR(VLOOKUP(Tableau2[Habilitation_5],Tableau1[],Tableau1[Validité2],0)),\"\",VLOOKUP(Tableau2[Habilitation_5],Tableau1[],Tableau1[Validité2],0))","v":0},"","?",{"$f":"IF(ISERROR(+DATE(YEAR(Tableau2[Dernier Recyclage_5])+Tableau2[Validité_5],MONTH(Tableau2[Dernier Recyclage_5]),DAY(Tableau2[Dernier Recyclage_5]))),\"\",(+DATE(YEAR(Tableau2[Dernier Recyclage_5])+Tableau2[Validité_5],MONTH(Tableau2[Dernier Recyclage_5]),DAY(Tableau2[Dernier Recyclage_5]))))","v":""},{"$f":"IF(ISERROR(+DATE(YEAR(Tableau2[R1_5])+Tableau2[Validité_5],MONTH(Tableau2[R1_5]),DAY(Tableau2[R1_5]))),\"\",(+DATE(YEAR(Tableau2[R1_5])+Tableau2[Validité_5],MONTH(Tableau2[R1_5]),DAY(Tableau2[R1_5]))))","v":""},{"$f":"IF(ISERROR(+DATE(YEAR(Tableau2[R2_5])+Tableau2[Validité_5],MONTH(Tableau2[R2_5]),DAY(Tableau2[R2_5]))),\"\",(+DATE(YEAR(Tableau2[R2_5])+Tableau2[Validité_5],MONTH(Tableau2[R2_5]),DAY(Tableau2[R2_5]))))","v":""},null,"",{"$f":"IF(ISERROR(VLOOKUP(Tableau2[Habilitation_6],Tableau1[],Tableau1[Validité2],0)),\"\",VLOOKUP(Tableau2[Habilitation_6],Tableau1[],Tableau1[Validité2],0))","v":""},"","",{"$f":"IF(ISERROR(+DATE(YEAR(Tableau2[Dernier Recyclage_6])+Tableau2[Validité_6],MONTH(Tableau2[Dernier Recyclage_6]),DAY(Tableau2[Dernier Recyclage_6]))),\"\",(+DATE(YEAR(Tableau2[Dernier Recyclage_6])+Tableau2[Validité_6],MONTH(Tableau2[Dernier Recyclage_6]),DAY(Tableau2[Dernier Recyclage_6]))))","v":""},{"$f":"IF(ISERROR(+DATE(YEAR(Tableau2[R1_6])+Tableau2[Validité_6],MONTH(Tableau2[R1_6]),DAY(Tableau2[R1_6]))),\"\",(+DATE(YEAR(Tableau2[R1_6])+Tableau2[Validité_6],MONTH(Tableau2[R1_6]),DAY(Tableau2[R1_6]))))","v":""},{"$f":"IF(ISERROR(+DATE(YEAR(Tableau2[R2_6])+Tableau2[Validité_6],MONTH(Tableau2[R2_6]),DAY(Tableau2[R2_6]))),\"\",(+DATE(YEAR(Tableau2[R2_6])+Tableau2[Validité_6],MONTH(Tableau2[R2_6]),DAY(Tableau2[R2_6]))))","v":""},null,null,{"$f":"IF(ISERROR(VLOOKUP(Tableau2[Habilitation_7],Tableau1[],Tableau1[Validité2],0)),\"\",VLOOKUP(Tableau2[Habilitation_7],Tableau1[],Tableau1[Validité2],0))","v":""},"","",{"$f":"IF(ISERROR(+DATE(YEAR(Tableau2[Dernier Recyclage_7])+Tableau2[Validité_7],MONTH(Tableau2[Dernier Recyclage_7]),DAY(Tableau2[Dernier Recyclage_7]))),\"\",(+DATE(YEAR(Tableau2[Dernier Recyclage_7])+Tableau2[Validité_7],MONTH(Tableau2[Dernier Recyclage_7]),DAY(Tableau2[Dernier Recyclage_7]))))","v":""},{"$f":"IF(ISERROR(+DATE(YEAR(Tableau2[R1_7])+Tableau2[Validité_7],MONTH(Tableau2[R1_7]),DAY(Tableau2[R1_7]))),\"\",(+DATE(YEAR(Tableau2[R1_7])+Tableau2[Validité_7],MONTH(Tableau2[R1_7]),DAY(Tableau2[R1_7]))))","v":""},{"$f":"IF(ISERROR(+DATE(YEAR(Tableau2[R2_7])+Tableau2[Validité_7],MONTH(Tableau2[R2_7]),DAY(Tableau2[R2_7]))),\"\",(+DATE(YEAR(Tableau2[R2_7])+Tableau2[Validité_7],MONTH(Tableau2[R2_7]),DAY(Tableau2[R2_7]))))","v":""},null,"SICOBA",{"$f":"IF(ISERROR(VLOOKUP(Tableau2[Habilitation_8],Tableau1[],Tableau1[Validité2],0)),\"\",VLOOKUP(Tableau2[Habilitation_8],Tableau1[],Tableau1[Validité2],0))","v":2},"","",{"$f":"IF(ISERROR(+DATE(YEAR(Tableau2[Dernier Recyclage_8])+Tableau2[Validité_8],MONTH(Tableau2[Dernier Recyclage_8]),DAY(Tableau2[Dernier Recyclage_8]))),\"\",(+DATE(YEAR(Tableau2[Dernier Recyclage_8])+Tableau2[Validité_8],MONTH(Tableau2[Dernier Recyclage_8]),DAY(Tableau2[Dernier Recyclage_8]))))","v":""},{"$f":"IF(ISERROR(+DATE(YEAR(Tableau2[R1_76])+Tableau2[Validité_8],MONTH(Tableau2[R1_76]),DAY(Tableau2[R1_76]))),\"\",(+DATE(YEAR(Tableau2[R1_76])+Tableau2[Validité_8],MONTH(Tableau2[R1_76]),DAY(Tableau2[R1_76]))))","v":""},{"$f":"IF(ISERROR(+DATE(YEAR(Tableau2[R3_14])+Tableau2[Validité_8],MONTH(Tableau2[R3_14]),DAY(Tableau2[Validité_8]))),\"\",(+DATE(YEAR(Tableau2[R3_14])+Tableau2[Validité_8],MONTH(Tableau2[R3_14]),DAY(Tableau2[R3_14]))))","v":""},null,"",{"$f":"IF(ISERROR(VLOOKUP(Tableau2[R3_17],Tableau1[],Tableau1[Validité2],0)),\"\",VLOOKUP(Tableau2[R3_17],Tableau1[],Tableau1[Validité2],0))","v":""},"","",{"$f":"IF(ISERROR(+DATE(YEAR(Tableau2[R3_20])+Tableau2[R3_18],MONTH(Tableau2[R3_20]),DAY(Tableau2[R3_20]))),\"\",(+DATE(YEAR(Tableau2[R3_20])+Tableau2[R3_18],MONTH(Tableau2[R3_20]),DAY(Tableau2[R3_20]))))","v":""},{"$f":"IF(ISERROR(+DATE(YEAR(Tableau2[R3_21])+Tableau2[R3_18],MONTH(Tableau2[R3_21]),DAY(Tableau2[R3_21]))),\"\",(+DATE(YEAR(Tableau2[R3_21])+Tableau2[R3_18],MONTH(Tableau2[R3_21]),DAY(Tableau2[R3_21]))))","v":""},{"$f":"IF(ISERROR(+DATE(YEAR(Tableau2[R3_22])+Tableau2[Validité_8],MONTH(Tableau2[R3_22]),DAY(Tableau2[R3_18]))),\"\",(+DATE(YEAR(Tableau2[R3_22])+Tableau2[Validité_8],MONTH(Tableau2[R3_22]),DAY(Tableau2[R3_22]))))","v":""},null,"",{"$f":"IF(ISERROR(VLOOKUP(Tableau2[R3_25],Tableau1[],Tableau1[Validité2],0)),\"\",VLOOKUP(Tableau2[R3_25],Tableau1[],Tableau1[Validité2],0))","v":""},"","",{"$f":"IF(ISERROR(+DATE(YEAR(Tableau2[R3_28])+Tableau2[R3_26],MONTH(Tableau2[R3_28]),DAY(Tableau2[R3_28]))),\"\",(+DATE(YEAR(Tableau2[R3_28])+Tableau2[R3_26],MONTH(Tableau2[R3_28]),DAY(Tableau2[R3_28]))))","v":""},{"$f":"IF(ISERROR(+DATE(YEAR(Tableau2[R3_29])+Tableau2[R3_26],MONTH(Tableau2[R3_29]),DAY(Tableau2[R3_29]))),\"\",(+DATE(YEAR(Tableau2[R3_29])+Tableau2[R3_26],MONTH(Tableau2[R3_29]),DAY(Tableau2[R3_29]))))","v":""},{"$f":"IF(ISERROR(+DATE(YEAR(Tableau2[R3_30])+Tableau2[R3_26],MONTH(Tableau2[R3_30]),DAY(Tableau2[R3_26]))),\"\",(+DATE(YEAR(Tableau2[R3_30])+Tableau2[R3_26],MONTH(Tableau2[R3_30]),DAY(Tableau2[R3_30]))))","v":""}]
["SMa","Durand 3",null,null,3,"2009-11-27","2012-11-06",{"$f":"IF(ISERROR(+DATE(YEAR(Tableau2[Dernier Recyclage])+Tableau2[[#This Row],[Validité]],MONTH(Tableau2[Dernier Recyclage]),DAY(Tableau2[Dernier Recyclage]))),\"\",(+DATE(YEAR(Tableau2[Dernier Recyclage])+Tableau2[[#This Row],[Validité]],MONTH(Tableau2[Dernier Recyclage]),DAY(Tableau2[Dernier Recyclage]))))","v":"2015-11-06"},{"$f":"IF(ISERROR(+DATE(YEAR(Tableau2[[#This Row],[R1]])+Tableau2[[#This Row],[Validité]],MONTH(Tableau2[[#This Row],[R1]]),DAY(Tableau2[[#This Row],[R1]]))),\"\",(+DATE(YEAR(Tableau2[[#This Row],[R1]])+Tableau2[[#This Row],[Validité]],MONTH(Tableau2[[#This Row],[R1]]),DAY(Tableau2[[#This Row],[R1]]))))","v":"2018-11-06"},{"$f":"IF(ISERROR(+DATE(YEAR(Tableau2[[#This Row],[R2]])+Tableau2[[#This Row],[Validité]],MONTH(Tableau2[[#This Row],[R2]]),DAY(Tableau2[[#This Row],[R2]]))),\"\",(+DATE(YEAR(Tableau2[[#This Row],[R2]])+Tableau2[[#This Row],[Validité]],MONTH(Tableau2[[#This Row],[R2]]),DAY(Tableau2[[#This Row],[R2]]))))","v":"2021-11-06"},null,null,5,"2010-12-17","2010-12-17",{"$f":"IF(ISERROR(+DATE(YEAR(Tableau2[Dernier Recyclage_2])+Tableau2[Validité_2],MONTH(Tableau2[Dernier Recyclage_2]),DAY(Tableau2[Dernier Recyclage_2]))),\"\",(+DATE(YEAR(Tableau2[Dernier Recyclage_2])+Tableau2[Validité_2],MONTH(Tableau2[Dernier Recyclage_2]),DAY(Tableau2[Dernier Recyclage_2]))))","v":"2015-12-17"},{"$f":"IF(ISERROR(+DATE(YEAR(Tableau2[R1_2])+Tableau2[Validité_2],MONTH(Tableau2[R1_2]),DAY(Tableau2[R1_2]))),\"\",(+DATE(YEAR(Tableau2[R1_2])+Tableau2[Validité_2],MONTH(Tableau2[R1_2]),DAY(Tableau2[R1_2]))))","v":"2020-12-17"},{"$f":"IF(ISERROR(+DATE(YEAR(Tableau2[R2_2])+Tableau2[Validité_2],MONTH(Tableau2[R2_2]),DAY(Tableau2[R2_2]))),\"\",(+DATE(YEAR(Tableau2[R2_2])+Tableau2[Validité_2],MONTH(Tableau2[R2_2]),DAY(Tableau2[R2_2]))))","v":"2025-12-17"},null,null,3,"2014-05-15","2014-05-15",{"$f":"IF(ISERROR(+DATE(YEAR(Tableau2[Dernier Recyclage_3])+Tableau2[Validité_3],MONTH(Tableau2[Dernier Recyclage_3]),DAY(Tableau2[Dernier Recyclage_3]))),\"\",(+DATE(YEAR(Tableau2[Dernier Recyclage_3])+Tableau2[Validité_3],MONTH(Tableau2[Dernier Recyclage_3]),DAY(Tableau2[Dernier Recyclage_3]))))","v":"2017-05-15"},{"$f":"IF(ISERROR(+DATE(YEAR(Tableau2[R1_3])+Tableau2[Validité_3],MONTH(Tableau2[R1_3]),DAY(Tableau2[R1_3]))),\"\",(+DATE(YEAR(Tableau2[R1_3])+Tableau2[Validité_3],MONTH(Tableau2[R1_3]),DAY(Tableau2[R1_3]))))","v":"2020-05-15"},{"$f":"IF(ISERROR(+DATE(YEAR(Tableau2[R2_3])+Tableau2[Validité_3],MONTH(Tableau2[R2_3]),DAY(Tableau2[R2_3]))),\"\",(+DATE(YEAR(Tableau2[R2_3])+Tableau2[Validité_3],MONTH(Tableau2[R2_3]),DAY(Tableau2[R2_3]))))","v":"2023-05-15"},null,null,5,"2011-06-09","2011-06-09",{"$f":"IF(ISERROR(+DATE(YEAR(Tableau2[Dernier Recyclage_4])+Tableau2[Validité_4],MONTH(Tableau2[Dernier Recyclage_4]),DAY(Tableau2[Dernier Recyclage_4]))),\"\",(+DATE(YEAR(Tableau2[Dernier Recyclage_4])+Tableau2[Validité_4],MONTH(Tableau2[Dernier Recyclage_4]),DAY(Tableau2[Dernier Recyclage_4]))))","v":"2016-06-09"},{"$f":"IF(ISERROR(+DATE(YEAR(Tableau2[R1_4])+Tableau2[Validité_4],MONTH(Tableau2[R1_4]),DAY(Tableau2[R1_4]))),\"\",(+DATE(YEAR(Tableau2[R1_4])+Tableau2[Validité_4],MONTH(Tableau2[R1_4]),DAY(Tableau2[R1_4]))))","v":"2021-06-09"},{"$f":"IF(ISERROR(+DATE(YEAR(Tableau2[R2_4])+Tableau2[Validité_4],MONTH(Tableau2[R2_4]),DAY(Tableau2[R2_4]))),\"\",(+DATE(YEAR(Tableau2[R2_4])+Tableau2[Validité_4],MONTH(Tableau2[R2_4]),DAY(Tableau2[R2_4]))))","v":"2026-06-09"},null,null,{"$f":"IF(ISERROR(VLOOKUP(Tableau2[Habilitation_5],Tableau1[],Tableau1[Validité2],0)),\"\",VLOOKUP(Tableau2[Habilitation_5],Tableau1[],Tableau1[Validité2],0))","v":""},"",null,{"$f":"IF(ISERROR(+DATE(YEAR(Tableau2[Dernier Recyclage_5])+Tableau2[Validité_5],MONTH(Tableau2[Dernier Recyclage_5]),DAY(Tableau2[Dernier Recyclage_5]))),\"\",(+DATE(YEAR(Tableau2[Dernier Recyclage_5])+Tableau2[Validité_5],MONTH(Tableau2[Dernier Recyclage_5]),DAY(Tableau2[Dernier Recyclage_5]))))","v":""},{"$f":"IF(ISERROR(+DATE(YEAR(Tableau2[R1_5])+Tableau2[Validité_5],MONTH(Tableau2[R1_5]),DAY(Tableau2[R1_5]))),\"\",(+DATE(YEAR(Tableau2[R1_5])+Tableau2[Validité_5],MONTH(Tableau2[R1_5]),DAY(Tableau2[R1_5]))))","v":""},{"$f":"IF(ISERROR(+DATE(YEAR(Tableau2[R2_5])+Tableau2[Validité_5],MONTH(Tableau2[R2_5]),DAY(Tableau2[R2_5]))),\"\",(+DATE(YEAR(Tableau2[R2_5])+Tableau2[Validité_5],MONTH(Tableau2[R2_5]),DAY(Tableau2[R2_5]))))","v":""},null,"",{"$f":"IF(ISERROR(VLOOKUP(Tableau2[Habilitation_6],Tableau1[],Tableau1[Validité2],0)),\"\",VLOOKUP(Tableau2[Habilitation_6],Tableau1[],Tableau1[Validité2],0))","v":""},"","",{"$f":"IF(ISERROR(+DATE(YEAR(Tableau2[Dernier Recyclage_6])+Tableau2[Validité_6],MONTH(Tableau2[Dernier Recyclage_6]),DAY(Tableau2[Dernier Recyclage_6]))),\"\",(+DATE(YEAR(Tableau2[Dernier Recyclage_6])+Tableau2[Validité_6],MONTH(Tableau2[Dernier Recyclage_6]),DAY(Tableau2[Dernier Recyclage_6]))))","v":""},{"$f":"IF(ISERROR(+DATE(YEAR(Tableau2[R1_6])+Tableau2[Validité_6],MONTH(Tableau2[R1_6]),DAY(Tableau2[R1_6]))),\"\",(+DATE(YEAR(Tableau2[R1_6])+Tableau2[Validité_6],MONTH(Tableau2[R1_6]),DAY(Tableau2[R1_6]))))","v":""},{"$f":"IF(ISERROR(+DATE(YEAR(Tableau2[R2_6])+Tableau2[Validité_6],MONTH(Tableau2[R2_6]),DAY(Tableau2[R2_6]))),\"\",(+DATE(YEAR(Tableau2[R2_6])+Tableau2[Validité_6],MONTH(Tableau2[R2_6]),DAY(Tableau2[R2_6]))))","v":""},null,"",{"$f":"IF(ISERROR(VLOOKUP(Tableau2[Habilitation_7],Tableau1[],Tableau1[Validité2],0)),\"\",VLOOKUP(Tableau2[Habilitation_7],Tableau1[],Tableau1[Validité2],0))","v":""},"","",{"$f":"IF(ISERROR(+DATE(YEAR(Tableau2[Dernier Recyclage_7])+Tableau2[Validité_7],MONTH(Tableau2[Dernier Recyclage_7]),DAY(Tableau2[Dernier Recyclage_7]))),\"\",(+DATE(YEAR(Tableau2[Dernier Recyclage_7])+Tableau2[Validité_7],MONTH(Tableau2[Dernier Recyclage_7]),DAY(Tableau2[Dernier Recyclage_7]))))","v":""},{"$f":"IF(ISERROR(+DATE(YEAR(Tableau2[R1_7])+Tableau2[Validité_7],MONTH(Tableau2[R1_7]),DAY(Tableau2[R1_7]))),\"\",(+DATE(YEAR(Tableau2[R1_7])+Tableau2[Validité_7],MONTH(Tableau2[R1_7]),DAY(Tableau2[R1_7]))))","v":""},{"$f":"IF(ISERROR(+DATE(YEAR(Tableau2[R2_7])+Tableau2[Validité_7],MONTH(Tableau2[R2_7]),DAY(Tableau2[R2_7]))),\"\",(+DATE(YEAR(Tableau2[R2_7])+Tableau2[Validité_7],MONTH(Tableau2[R2_7]),DAY(Tableau2[R2_7]))))","v":""},null,null,{"$f":"IF(ISERROR(VLOOKUP(Tableau2[Habilitation_8],Tableau1[],Tableau1[Validité2],0)),\"\",VLOOKUP(Tableau2[Habilitation_8],Tableau1[],Tableau1[Validité2],0))","v":""},null,null,{"$f":"IF(ISERROR(+DATE(YEAR(Tableau2[Dernier Recyclage_8])+Tableau2[Validité_8],MONTH(Tableau2[Dernier Recyclage_8]),DAY(Tableau2[Dernier Recyclage_8]))),\"\",(+DATE(YEAR(Tableau2[Dernier Recyclage_8])+Tableau2[Validité_8],MONTH(Tableau2[Dernier Recyclage_8]),DAY(Tableau2[Dernier Recyclage_8]))))","v":""},{"$f":"IF(ISERROR(+DATE(YEAR(Tableau2[R1_76])+Tableau2[Validité_8],MONTH(Tableau2[R1_76]),DAY(Tableau2[R1_76]))),\"\",(+DATE(YEAR(Tableau2[R1_76])+Tableau2[Validité_8],MONTH(Tableau2[R1_76]),DAY(Tableau2[R1_76]))))","v":""},{"$f":"IF(ISERROR(+DATE(YEAR(Tableau2[R3_14])+Tableau2[Validité_8],MONTH(Tableau2[R3_14]),DAY(Tableau2[Validité_8]))),\"\",(+DATE(YEAR(Tableau2[R3_14])+Tableau2[Validité_8],MONTH(Tableau2[R3_14]),DAY(Tableau2[R3_14]))))","v":""},null,null,{"$f":"IF(ISERROR(VLOOKUP(Tableau2[R3_17],Tableau1[],Tableau1[Validité2],0)),\"\",VLOOKUP(Tableau2[R3_17],Tableau1[],Tableau1[Validité2],0))","v":""},null,null,{"$f":"IF(ISERROR(+DATE(YEAR(Tableau2[R3_20])+Tableau2[R3_18],MONTH(Tableau2[R3_20]),DAY(Tableau2[R3_20]))),\"\",(+DATE(YEAR(Tableau2[R3_20])+Tableau2[R3_18],MONTH(Tableau2[R3_20]),DAY(Tableau2[R3_20]))))","v":""},{"$f":"IF(ISERROR(+DATE(YEAR(Tableau2[R3_21])+Tableau2[R3_18],MONTH(Tableau2[R3_21]),DAY(Tableau2[R3_21]))),\"\",(+DATE(YEAR(Tableau2[R3_21])+Tableau2[R3_18],MONTH(Tableau2[R3_21]),DAY(Tableau2[R3_21]))))","v":""},{"$f":"IF(ISERROR(+DATE(YEAR(Tableau2[R3_22])+Tableau2[Validité_8],MONTH(Tableau2[R3_22]),DAY(Tableau2[R3_18]))),\"\",(+DATE(YEAR(Tableau2[R3_22])+Tableau2[Validité_8],MONTH(Tableau2[R3_22]),DAY(Tableau2[R3_22]))))","v":""},null,null,{"$f":"IF(ISERROR(VLOOKUP(Tableau2[R3_25],Tableau1[],Tableau1[Validité2],0)),\"\",VLOOKUP(Tableau2[R3_25],Tableau1[],Tableau1[Validité2],0))","v":""},null,null,{"$f":"IF(ISERROR(+DATE(YEAR(Tableau2[R3_28])+Tableau2[R3_26],MONTH(Tableau2[R3_28]),DAY(Tableau2[R3_28]))),\"\",(+DATE(YEAR(Tableau2[R3_28])+Tableau2[R3_26],MONTH(Tableau2[R3_28]),DAY(Tableau2[R3_28]))))","v":""},{"$f":"IF(ISERROR(+DATE(YEAR(Tableau2[R3_29])+Tableau2[R3_26],MONTH(Tableau2[R3_29]),DAY(Tableau2[R3_29]))),\"\",(+DATE(YEAR(Tableau2[R3_29])+Tableau2[R3_26],MONTH(Tableau2[R3_29]),DAY(Tableau2[R3_29]))))","v":""},{"$f":"IF(ISERROR(+DATE(YEAR(Tableau2[R3_30])+Tableau2[R3_26],MONTH(Tableau2[R3_30]),DAY(Tableau2[R3_26]))),\"\",(+DATE(YEAR(Tableau2[R3_30])+Tableau2[R3_26],MONTH(Tableau2[R3_30]),DAY(Tableau2[R3_30]))))","v":""}]
["JNu","Durand 4",null,null,3,"2006-11-24","2013-09-04",{"$f":"IF(ISERROR(+DATE(YEAR(Tableau2[Dernier Recyclage])+Tableau2[[#This Row],[Validité]],MONTH(Tableau2[Dernier Recyclage]),DAY(Tableau2[Dernier Recyclage]))),\"\",(+DATE(YEAR(Tableau2[Dernier Recyclage])+Tableau2[[#This Row],[Validité]],MONTH(Tableau2[Dernier Recyclage]),DAY(Tableau2[Dernier Recyclage]))))","v":"2016-09-04"},{"$f":"IF(ISERROR(+DATE(YEAR(Tableau2[[#This Row],[R1]])+Tableau2[[#This Row],[Validité]],MONTH(Tableau2[[#This Row],[R1]]),DAY(Tableau2[[#This Row],[R1]]))),\"\",(+DATE(YEAR(Tableau2[[#This Row],[R1]])+Tableau2[[#This Row],[Validité]],MONTH(Tableau2[[#This Row],[R1]]),DAY(Tableau2[[#This Row],[R1]]))))","v":"2019-09-04"},{"$f":"IF(ISERROR(+DATE(YEAR(Tableau2[[#This Row],[R2]])+Tableau2[[#This Row],[Validité]],MONTH(Tableau2[[#This Row],[R2]]),DAY(Tableau2[[#This Row],[R2]]))),\"\",(+DATE(YEAR(Tableau2[[#This Row],[R2]])+Tableau2[[#This Row],[Validité]],MONTH(Tableau2[[#This Row],[R2]]),DAY(Tableau2[[#This Row],[R2]]))))","v":"2022-09-04"},null,null,5,null,"?",{"$f":"IF(ISERROR(+DATE(YEAR(Tableau2[Dernier Recyclage_2])+Tableau2[Validité_2],MONTH(Tableau2[Dernier Recyclage_2]),DAY(Tableau2[Dernier Recyclage_2]))),\"\",(+DATE(YEAR(Tableau2[Dernier Recyclage_2])+Tableau2[Validité_2],MONTH(Tableau2[Dernier Recyclage_2]),DAY(Tableau2[Dernier Recyclage_2]))))","v":""},{"$f":"IF(ISERROR(+DATE(YEAR(Tableau2[R1_2])+Tableau2[Validité_2],MONTH(Tableau2[R1_2]),DAY(Tableau2[R1_2]))),\"\",(+DATE(YEAR(Tableau2[R1_2])+Tableau2[Validité_2],MONTH(Tableau2[R1_2]),DAY(Tableau2[R1_2]))))","v":""},{"$f":"IF(ISERROR(+DATE(YEAR(Tableau2[R2_2])+Tableau2[Validité_2],MONTH(Tableau2[R2_2]),DAY(Tableau2[R2_2]))),\"\",(+DATE(YEAR(Tableau2[R2_2])+Tableau2[Validité_2],MONTH(Tableau2[R2_2]),DAY(Tableau2[R2_2]))))","v":""},null,null,3,"2014-05-22","2014-05-22",{"$f":"IF(ISERROR(+DATE(YEAR(Tableau2[Dernier Recyclage_3])+Tableau2[Validité_3],MONTH(Tableau2[Dernier Recyclage_3]),DAY(Tableau2[Dernier Recyclage_3]))),\"\",(+DATE(YEAR(Tableau2[Dernier Recyclage_3])+Tableau2[Validité_3],MONTH(Tableau2[Dernier Recyclage_3]),DAY(Tableau2[Dernier Recyclage_3]))))","v":"2017-05-22"},{"$f":"IF(ISERROR(+DATE(YEAR(Tableau2[R1_3])+Tableau2[Validité_3],MONTH(Tableau2[R1_3]),DAY(Tableau2[R1_3]))),\"\",(+DATE(YEAR(Tableau2[R1_3])+Tableau2[Validité_3],MONTH(Tableau2[R1_3]),DAY(Tableau2[R1_3]))))","v":"2020-05-22"},{"$f":"IF(ISERROR(+DATE(YEAR(Tableau2[R2_3])+Tableau2[Validité_3],MONTH(Tableau2[R2_3]),DAY(Tableau2[R2_3]))),\"\",(+DATE(YEAR(Tableau2[R2_3])+Tableau2[Validité_3],MONTH(Tableau2[R2_3]),DAY(Tableau2[R2_3]))))","v":"2023-05-22"},null,null,5,"2013-01-23","2013-01-23",{"$f":"IF(ISERROR(+DATE(YEAR(Tableau2[Dernier Recyclage_4])+Tableau2[Validité_4],MONTH(Tableau2[Dernier Recyclage_4]),DAY(Tableau2[Dernier Recyclage_4]))),\"\",(+DATE(YEAR(Tableau2[Dernier Recyclage_4])+Tableau2[Validité_4],MONTH(Tableau2[Dernier Recyclage_4]),DAY(Tableau2[Dernier Recyclage_4]))))","v":"2018-01-23"},{"$f":"IF(ISERROR(+DATE(YEAR(Tableau2[R1_4])+Tableau2[Validité_4],MONTH(Tableau2[R1_4]),DAY(Tableau2[R1_4]))),\"\",(+DATE(YEAR(Tableau2[R1_4])+Tableau2[Validité_4],MONTH(Tableau2[R1_4]),DAY(Tableau2[R1_4]))))","v":"2023-01-23"},{"$f":"IF(ISERROR(+DATE(YEAR(Tableau2[R2_4])+Tableau2[Validité_4],MONTH(Tableau2[R2_4]),DAY(Tableau2[R2_4]))),\"\",(+DATE(YEAR(Tableau2[R2_4])+Tableau2[Validité_4],MONTH(Tableau2[R2_4]),DAY(Tableau2[R2_4]))))","v":"2028-01-23"},null,"HUILE",{"$f":"IF(ISERROR(VLOOKUP(Tableau2[Habilitation_5],Tableau1[],Tableau1[Validité2],0)),\"\",VLOOKUP(Tableau2[Habilitation_5],Tableau1[],Tableau1[Validité2],0))","v":0},null,"2013-07-04",{"$f":"IF(ISERROR(+DATE(YEAR(Tableau2[Dernier Recyclage_5])+Tableau2[Validité_5],MONTH(Tableau2[Dernier Recyclage_5]),DAY(Tableau2[Dernier Recyclage_5]))),\"\",(+DATE(YEAR(Tableau2[Dernier Recyclage_5])+Tableau2[Validité_5],MONTH(Tableau2[Dernier Recyclage_5]),DAY(Tableau2[Dernier Recyclage_5]))))","v":"2013-07-04"},{"$f":"IF(ISERROR(+DATE(YEAR(Tableau2[R1_5])+Tableau2[Validité_5],MONTH(Tableau2[R1_5]),DAY(Tableau2[R1_5]))),\"\",(+DATE(YEAR(Tableau2[R1_5])+Tableau2[Validité_5],MONTH(Tableau2[R1_5]),DAY(Tableau2[R1_5]))))","v":"2013-07-04"},{"$f":"IF(ISERROR(+DATE(YEAR(Tableau2[R2_5])+Tableau2[Validité_5],MONTH(Tableau2[R2_5]),DAY(Tableau2[R2_5]))),\"\",(+DATE(YEAR(Tableau2[R2_5])+Tableau2[Validité_5],MONTH(Tableau2[R2_5]),DAY(Tableau2[R2_5]))))","v":"2013-07-04"},null,null,{"$f":"IF(ISERROR(VLOOKUP(Tableau2[Habilitation_6],Tableau1[],Tableau1[Validité2],0)),\"\",VLOOKUP(Tableau2[Habilitation_6],Tableau1[],Tableau1[Validité2],0))","v":""},null,null,{"$f":"IF(ISERROR(+DATE(YEAR(Tableau2[Dernier Recyclage_6])+Tableau2[Validité_6],MONTH(Tableau2[Dernier Recyclage_6]),DAY(Tableau2[Dernier Recyclage_6]))),\"\",(+DATE(YEAR(Tableau2[Dernier Recyclage_6])+Tableau2[Validité_6],MONTH(Tableau2[Dernier Recyclage_6]),DAY(Tableau2[Dernier Recyclage_6]))))","v":""},{"$f":"IF(ISERROR(+DATE(YEAR(Tableau2[R1_6])+Tableau2[Validité_6],MONTH(Tableau2[R1_6]),DAY(Tableau2[R1_6]))),\"\",(+DATE(YEAR(Tableau2[R1_6])+Tableau2[Validité_6],MONTH(Tableau2[R1_6]),DAY(Tableau2[R1_6]))))","v":""},{"$f":"IF(ISERROR(+DATE(YEAR(Tableau2[R2_6])+Tableau2[Validité_6],MONTH(Tableau2[R2_6]),DAY(Tableau2[R2_6]))),\"\",(+DATE(YEAR(Tableau2[R2_6])+Tableau2[Validité_6],MONTH(Tableau2[R2_6]),DAY(Tableau2[R2_6]))))","v":""},null,null,{"$f":"IF(ISERROR(VLOOKUP(Tableau2[Habilitation_7],Tableau1[],Tableau1[Validité2],0)),\"\",VLOOKUP(Tableau2[Habilitation_7],Tableau1[],Tableau1[Validité2],0))","v":""},null,null,{"$f":"IF(ISERROR(+DATE(YEAR(Tableau2[Dernier Recyclage_7])+Tableau2[Validité_7],MONTH(Tableau2[Dernier Recyclage_7]),DAY(Tableau2[Dernier Recyclage_7]))),\"\",(+DATE(YEAR(Tableau2[Dernier Recyclage_7])+Tableau2[Validité_7],MONTH(Tableau2[Dernier Recyclage_7]),DAY(Tableau2[Dernier Recyclage_7]))))","v":""},{"$f":"IF(ISERROR(+DATE(YEAR(Tableau2[R1_7])+Tableau2[Validité_7],MONTH(Tableau2[R1_7]),DAY(Tableau2[R1_7]))),\"\",(+DATE(YEAR(Tableau2[R1_7])+Tableau2[Validité_7],MONTH(Tableau2[R1_7]),DAY(Tableau2[R1_7]))))","v":""},{"$f":"IF(ISERROR(+DATE(YEAR(Tableau2[R2_7])+Tableau2[Validité_7],MONTH(Tableau2[R2_7]),DAY(Tableau2[R2_7]))),\"\",(+DATE(YEAR(Tableau2[R2_7])+Tableau2[Validité_7],MONTH(Tableau2[R2_7]),DAY(Tableau2[R2_7]))))","v":""},null,null,{"$f":"IF(ISERROR(VLOOKUP(Tableau2[Habilitation_8],Tableau1[],Tableau1[Validité2],0)),\"\",VLOOKUP(Tableau2[Habilitation_8],Tableau1[],Tableau1[Validité2],0))","v":""},null,null,{"$f":"IF(ISERROR(+DATE(YEAR(Tableau2[Dernier Recyclage_8])+Tableau2[Validité_8],MONTH(Tableau2[Dernier Recyclage_8]),DAY(Tableau2[Dernier Recyclage_8]))),\"\",(+DATE(YEAR(Tableau2[Dernier Recyclage_8])+Tableau2[Validité_8],MONTH(Tableau2[Dernier Recyclage_8]),DAY(Tableau2[Dernier Recyclage_8]))))","v":""},{"$f":"IF(ISERROR(+DATE(YEAR(Tableau2[R1_76])+Tableau2[Validité_8],MONTH(Tableau2[R1_76]),DAY(Tableau2[R1_76]))),\"\",(+DATE(YEAR(Tableau2[R1_76])+Tableau2[Validité_8],MONTH(Tableau2[R1_76]),DAY(Tableau2[R1_76]))))","v":""},{"$f":"IF(ISERROR(+DATE(YEAR(Tableau2[R3_14])+Tableau2[Validité_8],MONTH(Tableau2[R3_14]),DAY(Tableau2[Validité_8]))),\"\",(+DATE(YEAR(Tableau2[R3_14])+Tableau2[Validité_8],MONTH(Tableau2[R3_14]),DAY(Tableau2[R3_14]))))","v":""},null,null,{"$f":"IF(ISERROR(VLOOKUP(Tableau2[R3_17],Tableau1[],Tableau1[Validité2],0)),\"\",VLOOKUP(Tableau2[R3_17],Tableau1[],Tableau1[Validité2],0))","v":""},null,null,{"$f":"IF(ISERROR(+DATE(YEAR(Tableau2[R3_20])+Tableau2[R3_18],MONTH(Tableau2[R3_20]),DAY(Tableau2[R3_20]))),\"\",(+DATE(YEAR(Tableau2[R3_20])+Tableau2[R3_18],MONTH(Tableau2[R3_20]),DAY(Tableau2[R3_20]))))","v":""},{"$f":"IF(ISERROR(+DATE(YEAR(Tableau2[R3_21])+Tableau2[R3_18],MONTH(Tableau2[R3_21]),DAY(Tableau2[R3_21]))),\"\",(+DATE(YEAR(Tableau2[R3_21])+Tableau2[R3_18],MONTH(Tableau2[R3_21]),DAY(Tableau2[R3_21]))))","v":""},{"$f":"IF(ISERROR(+DATE(YEAR(Tableau2[R3_22])+Tableau2[Validité_8],MONTH(Tableau2[R3_22]),DAY(Tableau2[R3_18]))),\"\",(+DATE(YEAR(Tableau2[R3_22])+Tableau2[Validité_8],MONTH(Tableau2[R3_22]),DAY(Tableau2[R3_22]))))","v":""},null,null,{"$f":"IF(ISERROR(VLOOKUP(Tableau2[R3_25],Tableau1[],Tableau1[Validité2],0)),\"\",VLOOKUP(Tableau2[R3_25],Tableau1[],Tableau1[Validité2],0))","v":""},null,null,{"$f":"IF(ISERROR(+DATE(YEAR(Tableau2[R3_28])+Tableau2[R3_26],MONTH(Tableau2[R3_28]),DAY(Tableau2[R3_28]))),\"\",(+DATE(YEAR(Tableau2[R3_28])+Tableau2[R3_26],MONTH(Tableau2[R3_28]),DAY(Tableau2[R3_28]))))","v":""},{"$f":"IF(ISERROR(+DATE(YEAR(Tableau2[R3_29])+Tableau2[R3_26],MONTH(Tableau2[R3_29]),DAY(Tableau2[R3_29]))),\"\",(+DATE(YEAR(Tableau2[R3_29])+Tableau2[R3_26],MONTH(Tableau2[R3_29]),DAY(Tableau2[R3_29]))))","v":""},{"$f":"IF(ISERROR(+DATE(YEAR(Tableau2[R3_30])+Tableau2[R3_26],MONTH(Tableau2[R3_30]),DAY(Tableau2[R3_26]))),\"\",(+DATE(YEAR(Tableau2[R3_30])+Tableau2[R3_26],MONTH(Tableau2[R3_30]),DAY(Tableau2[R3_30]))))","v":""}]
["PGi","Durand 5",null,null,3,null,"2013-09-04",{"$f":"IF(ISERROR(+DATE(YEAR(Tableau2[Dernier Recyclage])+Tableau2[[#This Row],[Validité]],MONTH(Tableau2[Dernier Recyclage]),DAY(Tableau2[Dernier Recyclage]))),\"\",(+DATE(YEAR(Tableau2[Dernier Recyclage])+Tableau2[[#This Row],[Validité]],MONTH(Tableau2[Dernier Recyclage]),DAY(Tableau2[Dernier Recyclage]))))","v":"2016-09-04"},{"$f":"IF(ISERROR(+DATE(YEAR(Tableau2[[#This Row],[R1]])+Tableau2[[#This Row],[Validité]],MONTH(Tableau2[[#This Row],[R1]]),DAY(Tableau2[[#This Row],[R1]]))),\"\",(+DATE(YEAR(Tableau2[[#This Row],[R1]])+Tableau2[[#This Row],[Validité]],MONTH(Tableau2[[#This Row],[R1]]),DAY(Tableau2[[#This Row],[R1]]))))","v":"2019-09-04"},{"$f":"IF(ISERROR(+DATE(YEAR(Tableau2[[#This Row],[R2]])+Tableau2[[#This Row],[Validité]],MONTH(Tableau2[[#This Row],[R2]]),DAY(Tableau2[[#This Row],[R2]]))),\"\",(+DATE(YEAR(Tableau2[[#This Row],[R2]])+Tableau2[[#This Row],[Validité]],MONTH(Tableau2[[#This Row],[R2]]),DAY(Tableau2[[#This Row],[R2]]))))","v":"2022-09-04"},null,null,5,null,"?",{"$f":"IF(ISERROR(+DATE(YEAR(Tableau2[Dernier Recyclage_2])+Tableau2[Validité_2],MONTH(Tableau2[Dernier Recyclage_2]),DAY(Tableau2[Dernier Recyclage_2]))),\"\",(+DATE(YEAR(Tableau2[Dernier Recyclage_2])+Tableau2[Validité_2],MONTH(Tableau2[Dernier Recyclage_2]),DAY(Tableau2[Dernier Recyclage_2]))))","v":""},{"$f":"IF(ISERROR(+DATE(YEAR(Tableau2[R1_2])+Tableau2[Validité_2],MONTH(Tableau2[R1_2]),DAY(Tableau2[R1_2]))),\"\",(+DATE(YEAR(Tableau2[R1_2])+Tableau2[Validité_2],MONTH(Tableau2[R1_2]),DAY(Tableau2[R1_2]))))","v":""},{"$f":"IF(ISERROR(+DATE(YEAR(Tableau2[R2_2])+Tableau2[Validité_2],MONTH(Tableau2[R2_2]),DAY(Tableau2[R2_2]))),\"\",(+DATE(YEAR(Tableau2[R2_2])+Tableau2[Validité_2],MONTH(Tableau2[R2_2]),DAY(Tableau2[R2_2]))))","v":""},null,null,3,null,"?",{"$f":"IF(ISERROR(+DATE(YEAR(Tableau2[Dernier Recyclage_3])+Tableau2[Validité_3],MONTH(Tableau2[Dernier Recyclage_3]),DAY(Tableau2[Dernier Recyclage_3]))),\"\",(+DATE(YEAR(Tableau2[Dernier Recyclage_3])+Tableau2[Validité_3],MONTH(Tableau2[Dernier Recyclage_3]),DAY(Tableau2[Dernier Recyclage_3]))))","v":""},{"$f":"IF(ISERROR(+DATE(YEAR(Tableau2[R1_3])+Tableau2[Validité_3],MONTH(Tableau2[R1_3]),DAY(Tableau2[R1_3]))),\"\",(+DATE(YEAR(Tableau2[R1_3])+Tableau2[Validité_3],MONTH(Tableau2[R1_3]),DAY(Tableau2[R1_3]))))","v":""},{"$f":"IF(ISERROR(+DATE(YEAR(Tableau2[R2_3])+Tableau2[Validité_3],MONTH(Tableau2[R2_3]),DAY(Tableau2[R2_3]))),\"\",(+DATE(YEAR(Tableau2[R2_3])+Tableau2[Validité_3],MONTH(Tableau2[R2_3]),DAY(Tableau2[R2_3]))))","v":""},null,null,5,"2013-01-22","2013-01-22",{"$f":"IF(ISERROR(+DATE(YEAR(Tableau2[Dernier Recyclage_4])+Tableau2[Validité_4],MONTH(Tableau2[Dernier Recyclage_4]),DAY(Tableau2[Dernier Recyclage_4]))),\"\",(+DATE(YEAR(Tableau2[Dernier Recyclage_4])+Tableau2[Validité_4],MONTH(Tableau2[Dernier Recyclage_4]),DAY(Tableau2[Dernier Recyclage_4]))))","v":"2018-01-22"},{"$f":"IF(ISERROR(+DATE(YEAR(Tableau2[R1_4])+Tableau2[Validité_4],MONTH(Tableau2[R1_4]),DAY(Tableau2[R1_4]))),\"\",(+DATE(YEAR(Tableau2[R1_4])+Tableau2[Validité_4],MONTH(Tableau2[R1_4]),DAY(Tableau2[R1_4]))))","v":"2023-01-22"},{"$f":"IF(ISERROR(+DATE(YEAR(Tableau2[R2_4])+Tableau2[Validité_4],MONTH(Tableau2[R2_4]),DAY(Tableau2[R2_4]))),\"\",(+DATE(YEAR(Tableau2[R2_4])+Tableau2[Validité_4],MONTH(Tableau2[R2_4]),DAY(Tableau2[R2_4]))))","v":"2028-01-22"},null,"HUILE",{"$f":"IF(ISERROR(VLOOKUP(Tableau2[Habilitation_5],Tableau1[],Tableau1[Validité2],0)),\"\",VLOOKUP(Tableau2[Habilitation_5],Tableau1[],Tableau1[Validité2],0))","v":0},null,"?",{"$f":"IF(ISERROR(+DATE(YEAR(Tableau2[Dernier Recyclage_5])+Tableau2[Validité_5],MONTH(Tableau2[Dernier Recyclage_5]),DAY(Tableau2[Dernier Recyclage_5]))),\"\",(+DATE(YEAR(Tableau2[Dernier Recyclage_5])+Tableau2[Validité_5],MONTH(Tableau2[Dernier Recyclage_5]),DAY(Tableau2[Dernier Recyclage_5]))))","v":""},{"$f":"IF(ISERROR(+DATE(YEAR(Tableau2[R1_5])+Tableau2[Validité_5],MONTH(Tableau2[R1_5]),DAY(Tableau2[R1_5]))),\"\",(+DATE(YEAR(Tableau2[R1_5])+Tableau2[Validité_5],MONTH(Tableau2[R1_5]),DAY(Tableau2[R1_5]))))","v":""},{"$f":"IF(ISERROR(+DATE(YEAR(Tableau2[R2_5])+Tableau2[Validité_5],MONTH(Tableau2[R2_5]),DAY(Tableau2[R2_5]))),\"\",(+DATE(YEAR(Tableau2[R2_5])+Tableau2[Validité_5],MONTH(Tableau2[R2_5]),DAY(Tableau2[R2_5]))))","v":""},null,null,{"$f":"IF(ISERROR(VLOOKUP(Tableau2[Habilitation_6],Tableau1[],Tableau1[Validité2],0)),\"\",VLOOKUP(Tableau2[Habilitation_6],Tableau1[],Tableau1[Validité2],0))","v":""},null,null,{"$f":"IF(ISERROR(+DATE(YEAR(Tableau2[Dernier Recyclage_6])+Tableau2[Validité_6],MONTH(Tableau2[Dernier Recyclage_6]),DAY(Tableau2[Dernier Recyclage_6]))),\"\",(+DATE(YEAR(Tableau2[Dernier Recyclage_6])+Tableau2[Validité_6],MONTH(Tableau2[Dernier Recyclage_6]),DAY(Tableau2[Dernier Recyclage_6]))))","v":""},{"$f":"IF(ISERROR(+DATE(YEAR(Tableau2[R1_6])+Tableau2[Validité_6],MONTH(Tableau2[R1_6]),DAY(Tableau2[R1_6]))),\"\",(+DATE(YEAR(Tableau2[R1_6])+Tableau2[Validité_6],MONTH(Tableau2[R1_6]),DAY(Tableau2[R1_6]))))","v":""},{"$f":"IF(ISERROR(+DATE(YEAR(Tableau2[R2_6])+Tableau2[Validité_6],MONTH(Tableau2[R2_6]),DAY(Tableau2[R2_6]))),\"\",(+DATE(YEAR(Tableau2[R2_6])+Tableau2[Validité_6],MONTH(Tableau2[R2_6]),DAY(Tableau2[R2_6]))))","v":""},null,null,{"$f":"IF(ISERROR(VLOOKUP(Tableau2[Habilitation_7],Tableau1[],Tableau1[Validité2],0)),\"\",VLOOKUP(Tableau2[Habilitation_7],Tableau1[],Tableau1[Validité2],0))","v":""},null,null,{"$f":"IF(ISERROR(+DATE(YEAR(Tableau2[Dernier Recyclage_7])+Tableau2[Validité_7],MONTH(Tableau2[Dernier Recyclage_7]),DAY(Tableau2[Dernier Recyclage_7]))),\"\",(+DATE(YEAR(Tableau2[Dernier Recyclage_7])+Tableau2[Validité_7],MONTH(Tableau2[Dernier Recyclage_7]),DAY(Tableau2[Dernier Recyclage_7]))))","v":""},{"$f":"IF(ISERROR(+DATE(YEAR(Tableau2[R1_7])+Tableau2[Validité_7],MONTH(Tableau2[R1_7]),DAY(Tableau2[R1_7]))),\"\",(+DATE(YEAR(Tableau2[R1_7])+Tableau2[Validité_7],MONTH(Tableau2[R1_7]),DAY(Tableau2[R1_7]))))","v":""},{"$f":"IF(ISERROR(+DATE(YEAR(Tableau2[R2_7])+Tableau2[Validité_7],MONTH(Tableau2[R2_7]),DAY(Tableau2[R2_7]))),\"\",(+DATE(YEAR(Tableau2[R2_7])+Tableau2[Validité_7],MONTH(Tableau2[R2_7]),DAY(Tableau2[R2_7]))))","v":""},null,null,{"$f":"IF(ISERROR(VLOOKUP(Tableau2[Habilitation_8],Tableau1[],Tableau1[Validité2],0)),\"\",VLOOKUP(Tableau2[Habilitation_8],Tableau1[],Tableau1[Validité2],0))","v":""},null,null,{"$f":"IF(ISERROR(+DATE(YEAR(Tableau2[Dernier Recyclage_8])+Tableau2[Validité_8],MONTH(Tableau2[Dernier Recyclage_8]),DAY(Tableau2[Dernier Recyclage_8]))),\"\",(+DATE(YEAR(Tableau2[Dernier Recyclage_8])+Tableau2[Validité_8],MONTH(Tableau2[Dernier Recyclage_8]),DAY(Tableau2[Dernier Recyclage_8]))))","v":""},{"$f":"IF(ISERROR(+DATE(YEAR(Tableau2[R1_76])+Tableau2[Validité_8],MONTH(Tableau2[R1_76]),DAY(Tableau2[R1_76]))),\"\",(+DATE(YEAR(Tableau2[R1_76])+Tableau2[Validité_8],MONTH(Tableau2[R1_76]),DAY(Tableau2[R1_76]))))","v":""},{"$f":"IF(ISERROR(+DATE(YEAR(Tableau2[R3_14])+Tableau2[Validité_8],MONTH(Tableau2[R3_14]),DAY(Tableau2[Validité_8]))),\"\",(+DATE(YEAR(Tableau2[R3_14])+Tableau2[Validité_8],MONTH(Tableau2[R3_14]),DAY(Tableau2[R3_14]))))","v":""},null,null,{"$f":"IF(ISERROR(VLOOKUP(Tableau2[R3_17],Tableau1[],Tableau1[Validité2],0)),\"\",VLOOKUP(Tableau2[R3_17],Tableau1[],Tableau1[Validité2],0))","v":""},null,null,{"$f":"IF(ISERROR(+DATE(YEAR(Tableau2[R3_20])+Tableau2[R3_18],MONTH(Tableau2[R3_20]),DAY(Tableau2[R3_20]))),\"\",(+DATE(YEAR(Tableau2[R3_20])+Tableau2[R3_18],MONTH(Tableau2[R3_20]),DAY(Tableau2[R3_20]))))","v":""},{"$f":"IF(ISERROR(+DATE(YEAR(Tableau2[R3_21])+Tableau2[R3_18],MONTH(Tableau2[R3_21]),DAY(Tableau2[R3_21]))),\"\",(+DATE(YEAR(Tableau2[R3_21])+Tableau2[R3_18],MONTH(Tableau2[R3_21]),DAY(Tableau2[R3_21]))))","v":""},{"$f":"IF(ISERROR(+DATE(YEAR(Tableau2[R3_22])+Tableau2[Validité_8],MONTH(Tableau2[R3_22]),DAY(Tableau2[R3_18]))),\"\",(+DATE(YEAR(Tableau2[R3_22])+Tableau2[Validité_8],MONTH(Tableau2[R3_22]),DAY(Tableau2[R3_22]))))","v":""},null,null,{"$f":"IF(ISERROR(VLOOKUP(Tableau2[R3_25],Tableau1[],Tableau1[Validité2],0)),\"\",VLOOKUP(Tableau2[R3_25],Tableau1[],Tableau1[Validité2],0))","v":""},null,null,{"$f":"IF(ISERROR(+DATE(YEAR(Tableau2[R3_28])+Tableau2[R3_26],MONTH(Tableau2[R3_28]),DAY(Tableau2[R3_28]))),\"\",(+DATE(YEAR(Tableau2[R3_28])+Tableau2[R3_26],MONTH(Tableau2[R3_28]),DAY(Tableau2[R3_28]))))","v":""},{"$f":"IF(ISERROR(+DATE(YEAR(Tableau2[R3_29])+Tableau2[R3_26],MONTH(Tableau2[R3_29]),DAY(Tableau2[R3_29]))),\"\",(+DATE(YEAR(Tableau2[R3_29])+Tableau2[R3_26],MONTH(Tableau2[R3_29]),DAY(Tableau2[R3_29]))))","v":""},{"$f":"IF(ISERROR(+DATE(YEAR(Tableau2[R3_30])+Tableau2[R3_26],MONTH(Tableau2[R3_30]),DAY(Tableau2[R3_26]))),\"\",(+DATE(YEAR(Tableau2[R3_30])+Tableau2[R3_26],MONTH(Tableau2[R3_30]),DAY(Tableau2[R3_30]))))","v":""}]
["JCa","Durand 6",null,null,3,"2009-09-28","2014-09-10",{"$f":"IF(ISERROR(+DATE(YEAR(Tableau2[Dernier Recyclage])+Tableau2[[#This Row],[Validité]],MONTH(Tableau2[Dernier Recyclage]),DAY(Tableau2[Dernier Recyclage]))),\"\",(+DATE(YEAR(Tableau2[Dernier Recyclage])+Tableau2[[#This Row],[Validité]],MONTH(Tableau2[Dernier Recyclage]),DAY(Tableau2[Dernier Recyclage]))))","v":"2017-09-10"},{"$f":"IF(ISERROR(+DATE(YEAR(Tableau2[[#This Row],[R1]])+Tableau2[[#This Row],[Validité]],MONTH(Tableau2[[#This Row],[R1]]),DAY(Tableau2[[#This Row],[R1]]))),\"\",(+DATE(YEAR(Tableau2[[#This Row],[R1]])+Tableau2[[#This Row],[Validité]],MONTH(Tableau2[[#This Row],[R1]]),DAY(Tableau2[[#This Row],[R1]]))))","v":"2020-09-10"},{"$f":"IF(ISERROR(+DATE(YEAR(Tableau2[[#This Row],[R2]])+Tableau2[[#This Row],[Validité]],MONTH(Tableau2[[#This Row],[R2]]),DAY(Tableau2[[#This Row],[R2]]))),\"\",(+DATE(YEAR(Tableau2[[#This Row],[R2]])+Tableau2[[#This Row],[Validité]],MONTH(Tableau2[[#This Row],[R2]]),DAY(Tableau2[[#This Row],[R2]]))))","v":"2023-09-10"},null,null,5,"2010-12-17","2010-12-17",{"$f":"IF(ISERROR(+DATE(YEAR(Tableau2[Dernier Recyclage_2])+Tableau2[Validité_2],MONTH(Tableau2[Dernier Recyclage_2]),DAY(Tableau2[Dernier Recyclage_2]))),\"\",(+DATE(YEAR(Tableau2[Dernier Recyclage_2])+Tableau2[Validité_2],MONTH(Tableau2[Dernier Recyclage_2]),DAY(Tableau2[Dernier Recyclage_2]))))","v":"2015-12-17"},{"$f":"IF(ISERROR(+DATE(YEAR(Tableau2[R1_2])+Tableau2[Validité_2],MONTH(Tableau2[R1_2]),DAY(Tableau2[R1_2]))),\"\",(+DATE(YEAR(Tableau2[R1_2])+Tableau2[Validité_2],MONTH(Tableau2[R1_2]),DAY(Tableau2[R1_2]))))","v":"2020-12-17"},{"$f":"IF(ISERROR(+DATE(YEAR(Tableau2[R2_2])+Tableau2[Validité_2],MONTH(Tableau2[R2_2]),DAY(Tableau2[R2_2]))),\"\",(+DATE(YEAR(Tableau2[R2_2])+Tableau2[Validité_2],MONTH(Tableau2[R2_2]),DAY(Tableau2[R2_2]))))","v":"2025-12-17"},null,null,3,null,null,{"$f":"IF(ISERROR(+DATE(YEAR(Tableau2[Dernier Recyclage_3])+Tableau2[Validité_3],MONTH(Tableau2[Dernier Recyclage_3]),DAY(Tableau2[Dernier Recyclage_3]))),\"\",(+DATE(YEAR(Tableau2[Dernier Recyclage_3])+Tableau2[Validité_3],MONTH(Tableau2[Dernier Recyclage_3]),DAY(Tableau2[Dernier Recyclage_3]))))","v":"1902-12-31"},{"$f":"IF(ISERROR(+DATE(YEAR(Tableau2[R1_3])+Tableau2[Validité_3],MONTH(Tableau2[R1_3]),DAY(Tableau2[R1_3]))),\"\",(+DATE(YEAR(Tableau2[R1_3])+Tableau2[Validité_3],MONTH(Tableau2[R1_3]),DAY(Tableau2[R1_3]))))","v":"1905-12-31"},{"$f":"IF(ISERROR(+DATE(YEAR(Tableau2[R2_3])+Tableau2[Validité_3],MONTH(Tableau2[R2_3]),DAY(Tableau2[R2_3]))),\"\",(+DATE(YEAR(Tableau2[R2_3])+Tableau2[Validité_3],MONTH(Tableau2[R2_3]),DAY(Tableau2[R2_3]))))","v":"1908-12-31"},null,null,5,null,null,{"$f":"IF(ISERROR(+DATE(YEAR(Tableau2[Dernier Recyclage_4])+Tableau2[Validité_4],MONTH(Tableau2[Dernier Recyclage_4]),DAY(Tableau2[Dernier Recyclage_4]))),\"\",(+DATE(YEAR(Tableau2[Dernier Recyclage_4])+Tableau2[Validité_4],MONTH(Tableau2[Dernier Recyclage_4]),DAY(Tableau2[Dernier Recyclage_4]))))","v":"1904-12-31"},{"$f":"IF(ISERROR(+DATE(YEAR(Tableau2[R1_4])+Tableau2[Validité_4],MONTH(Tableau2[R1_4]),DAY(Tableau2[R1_4]))),\"\",(+DATE(YEAR(Tableau2[R1_4])+Tableau2[Validité_4],MONTH(Tableau2[R1_4]),DAY(Tableau2[R1_4]))))","v":"1909-12-31"},{"$f":"IF(ISERROR(+DATE(YEAR(Tableau2[R2_4])+Tableau2[Validité_4],MONTH(Tableau2[R2_4]),DAY(Tableau2[R2_4]))),\"\",(+DATE(YEAR(Tableau2[R2_4])+Tableau2[Validité_4],MONTH(Tableau2[R2_4]),DAY(Tableau2[R2_4]))))","v":"1914-12-31"},null,"HUILE",{"$f":"IF(ISERROR(VLOOKUP(Tableau2[Habilitation_5],Tableau1[],Tableau1[Validité2],0)),\"\",VLOOKUP(Tableau2[Habilitation_5],Tableau1[],Tableau1[Validité2],0))","v":0},null,"2013-10-24",{"$f":"IF(ISERROR(+DATE(YEAR(Tableau2[Dernier Recyclage_5])+Tableau2[Validité_5],MONTH(Tableau2[Dernier Recyclage_5]),DAY(Tableau2[Dernier Recyclage_5]))),\"\",(+DATE(YEAR(Tableau2[Dernier Recyclage_5])+Tableau2[Validité_5],MONTH(Tableau2[Dernier Recyclage_5]),DAY(Tableau2[Dernier Recyclage_5]))))","v":"2013-10-24"},{"$f":"IF(ISERROR(+DATE(YEAR(Tableau2[R1_5])+Tableau2[Validité_5],MONTH(Tableau2[R1_5]),DAY(Tableau2[R1_5]))),\"\",(+DATE(YEAR(Tableau2[R1_5])+Tableau2[Validité_5],MONTH(Tableau2[R1_5]),DAY(Tableau2[R1_5]))))","v":"2013-10-24"},{"$f":"IF(ISERROR(+DATE(YEAR(Tableau2[R2_5])+Tableau2[Validité_5],MONTH(Tableau2[R2_5]),DAY(Tableau2[R2_5]))),\"\",(+DATE(YEAR(Tableau2[R2_5])+Tableau2[Validité_5],MONTH(Tableau2[R2_5]),DAY(Tableau2[R2_5]))))","v":"2013-10-24"},null,null,{"$f":"IF(ISERROR(VLOOKUP(Tableau2[Habilitation_6],Tableau1[],Tableau1[Validité2],0)),\"\",VLOOKUP(Tableau2[Habilitation_6],Tableau1[],Tableau1[Validité2],0))","v":""},null,null,{"$f":"IF(ISERROR(+DATE(YEAR(Tableau2[Dernier Recyclage_6])+Tableau2[Validité_6],MONTH(Tableau2[Dernier Recyclage_6]),DAY(Tableau2[Dernier Recyclage_6]))),\"\",(+DATE(YEAR(Tableau2[Dernier Recyclage_6])+Tableau2[Validité_6],MONTH(Tableau2[Dernier Recyclage_6]),DAY(Tableau2[Dernier Recyclage_6]))))","v":""},{"$f":"IF(ISERROR(+DATE(YEAR(Tableau2[R1_6])+Tableau2[Validité_6],MONTH(Tableau2[R1_6]),DAY(Tableau2[R1_6]))),\"\",(+DATE(YEAR(Tableau2[R1_6])+Tableau2[Validité_6],MONTH(Tableau2[R1_6]),DAY(Tableau2[R1_6]))))","v":""},{"$f":"IF(ISERROR(+DATE(YEAR(Tableau2[R2_6])+Tableau2[Validité_6],MONTH(Tableau2[R2_6]),DAY(Tableau2[R2_6]))),\"\",(+DATE(YEAR(Tableau2[R2_6])+Tableau2[Validité_6],MONTH(Tableau2[R2_6]),DAY(Tableau2[R2_6]))))","v":""},null,null,{"$f":"IF(ISERROR(VLOOKUP(Tableau2[Habilitation_7],Tableau1[],Tableau1[Validité2],0)),\"\",VLOOKUP(Tableau2[Habilitation_7],Tableau1[],Tableau1[Validité2],0))","v":""},null,null,{"$f":"IF(ISERROR(+DATE(YEAR(Tableau2[Dernier Recyclage_7])+Tableau2[Validité_7],MONTH(Tableau2[Dernier Recyclage_7]),DAY(Tableau2[Dernier Recyclage_7]))),\"\",(+DATE(YEAR(Tableau2[Dernier Recyclage_7])+Tableau2[Validité_7],MONTH(Tableau2[Dernier Recyclage_7]),DAY(Tableau2[Dernier Recyclage_7]))))","v":""},{"$f":"IF(ISERROR(+DATE(YEAR(Tableau2[R1_7])+Tableau2[Validité_7],MONTH(Tableau2[R1_7]),DAY(Tableau2[R1_7]))),\"\",(+DATE(YEAR(Tableau2[R1_7])+Tableau2[Validité_7],MONTH(Tableau2[R1_7]),DAY(Tableau2[R1_7]))))","v":""},{"$f":"IF(ISERROR(+DATE(YEAR(Tableau2[R2_7])+Tableau2[Validité_7],MONTH(Tableau2[R2_7]),DAY(Tableau2[R2_7]))),\"\",(+DATE(YEAR(Tableau2[R2_7])+Tableau2[Validité_7],MONTH(Tableau2[R2_7]),DAY(Tableau2[R2_7]))))","v":""},null,null,{"$f":"IF(ISERROR(VLOOKUP(Tableau2[Habilitation_8],Tableau1[],Tableau1[Validité2],0)),\"\",VLOOKUP(Tableau2[Habilitation_8],Tableau1[],Tableau1[Validité2],0))","v":""},null,null,{"$f":"IF(ISERROR(+DATE(YEAR(Tableau2[Dernier Recyclage_8])+Tableau2[Validité_8],MONTH(Tableau2[Dernier Recyclage_8]),DAY(Tableau2[Dernier Recyclage_8]))),\"\",(+DATE(YEAR(Tableau2[Dernier Recyclage_8])+Tableau2[Validité_8],MONTH(Tableau2[Dernier Recyclage_8]),DAY(Tableau2[Dernier Recyclage_8]))))","v":""},{"$f":"IF(ISERROR(+DATE(YEAR(Tableau2[R1_76])+Tableau2[Validité_8],MONTH(Tableau2[R1_76]),DAY(Tableau2[R1_76]))),\"\",(+DATE(YEAR(Tableau2[R1_76])+Tableau2[Validité_8],MONTH(Tableau2[R1_76]),DAY(Tableau2[R1_76]))))","v":""},{"$f":"IF(ISERROR(+DATE(YEAR(Tableau2[R3_14])+Tableau2[Validité_8],MONTH(Tableau2[R3_14]),DAY(Tableau2[Validité_8]))),\"\",(+DATE(YEAR(Tableau2[R3_14])+Tableau2[Validité_8],MONTH(Tableau2[R3_14]),DAY(Tableau2[R3_14]))))","v":""},null,null,{"$f":"IF(ISERROR(VLOOKUP(Tableau2[R3_17],Tableau1[],Tableau1[Validité2],0)),\"\",VLOOKUP(Tableau2[R3_17],Tableau1[],Tableau1[Validité2],0))","v":""},null,null,{"$f":"IF(ISERROR(+DATE(YEAR(Tableau2[R3_20])+Tableau2[R3_18],MONTH(Tableau2[R3_20]),DAY(Tableau2[R3_20]))),\"\",(+DATE(YEAR(Tableau2[R3_20])+Tableau2[R3_18],MONTH(Tableau2[R3_20]),DAY(Tableau2[R3_20]))))","v":""},{"$f":"IF(ISERROR(+DATE(YEAR(Tableau2[R3_21])+Tableau2[R3_18],MONTH(Tableau2[R3_21]),DAY(Tableau2[R3_21]))),\"\",(+DATE(YEAR(Tableau2[R3_21])+Tableau2[R3_18],MONTH(Tableau2[R3_21]),DAY(Tableau2[R3_21]))))","v":""},{"$f":"IF(ISERROR(+DATE(YEAR(Tableau2[R3_22])+Tableau2[Validité_8],MONTH(Tableau2[R3_22]),DAY(Tableau2[R3_18]))),\"\",(+DATE(YEAR(Tableau2[R3_22])+Tableau2[Validité_8],MONTH(Tableau2[R3_22]),DAY(Tableau2[R3_22]))))","v":""},null,null,{"$f":"IF(ISERROR(VLOOKUP(Tableau2[R3_25],Tableau1[],Tableau1[Validité2],0)),\"\",VLOOKUP(Tableau2[R3_25],Tableau1[],Tableau1[Validité2],0))","v":""},null,null,{"$f":"IF(ISERROR(+DATE(YEAR(Tableau2[R3_28])+Tableau2[R3_26],MONTH(Tableau2[R3_28]),DAY(Tableau2[R3_28]))),\"\",(+DATE(YEAR(Tableau2[R3_28])+Tableau2[R3_26],MONTH(Tableau2[R3_28]),DAY(Tableau2[R3_28]))))","v":""},{"$f":"IF(ISERROR(+DATE(YEAR(Tableau2[R3_29])+Tableau2[R3_26],MONTH(Tableau2[R3_29]),DAY(Tableau2[R3_29]))),\"\",(+DATE(YEAR(Tableau2[R3_29])+Tableau2[R3_26],MONTH(Tableau2[R3_29]),DAY(Tableau2[R3_29]))))","v":""},{"$f":"IF(ISERROR(+DATE(YEAR(Tableau2[R3_30])+Tableau2[R3_26],MONTH(Tableau2[R3_30]),DAY(Tableau2[R3_26]))),\"\",(+DATE(YEAR(Tableau2[R3_30])+Tableau2[R3_26],MONTH(Tableau2[R3_30]),DAY(Tableau2[R3_30]))))","v":""}]
["NPe","Durand 7",null,null,3,"2006-11-24","2013-09-04",{"$f":"IF(ISERROR(+DATE(YEAR(Tableau2[Dernier Recyclage])+Tableau2[[#This Row],[Validité]],MONTH(Tableau2[Dernier Recyclage]),DAY(Tableau2[Dernier Recyclage]))),\"\",(+DATE(YEAR(Tableau2[Dernier Recyclage])+Tableau2[[#This Row],[Validité]],MONTH(Tableau2[Dernier Recyclage]),DAY(Tableau2[Dernier Recyclage]))))","v":"2016-09-04"},{"$f":"IF(ISERROR(+DATE(YEAR(Tableau2[[#This Row],[R1]])+Tableau2[[#This Row],[Validité]],MONTH(Tableau2[[#This Row],[R1]]),DAY(Tableau2[[#This Row],[R1]]))),\"\",(+DATE(YEAR(Tableau2[[#This Row],[R1]])+Tableau2[[#This Row],[Validité]],MONTH(Tableau2[[#This Row],[R1]]),DAY(Tableau2[[#This Row],[R1]]))))","v":"2019-09-04"},{"$f":"IF(ISERROR(+DATE(YEAR(Tableau2[[#This Row],[R2]])+Tableau2[[#This Row],[Validité]],MONTH(Tableau2[[#This Row],[R2]]),DAY(Tableau2[[#This Row],[R2]]))),\"\",(+DATE(YEAR(Tableau2[[#This Row],[R2]])+Tableau2[[#This Row],[Validité]],MONTH(Tableau2[[#This Row],[R2]]),DAY(Tableau2[[#This Row],[R2]]))))","v":"2022-09-04"},null,null,5,null,"?",{"$f":"IF(ISERROR(+DATE(YEAR(Tableau2[Dernier Recyclage_2])+Tableau2[Validité_2],MONTH(Tableau2[Dernier Recyclage_2]),DAY(Tableau2[Dernier Recyclage_2]))),\"\",(+DATE(YEAR(Tableau2[Dernier Recyclage_2])+Tableau2[Validité_2],MONTH(Tableau2[Dernier Recyclage_2]),DAY(Tableau2[Dernier Recyclage_2]))))","v":""},{"$f":"IF(ISERROR(+DATE(YEAR(Tableau2[R1_2])+Tableau2[Validité_2],MONTH(Tableau2[R1_2]),DAY(Tableau2[R1_2]))),\"\",(+DATE(YEAR(Tableau2[R1_2])+Tableau2[Validité_2],MONTH(Tableau2[R1_2]),DAY(Tableau2[R1_2]))))","v":""},{"$f":"IF(ISERROR(+DATE(YEAR(Tableau2[R2_2])+Tableau2[Validité_2],MONTH(Tableau2[R2_2]),DAY(Tableau2[R2_2]))),\"\",(+DATE(YEAR(Tableau2[R2_2])+Tableau2[Validité_2],MONTH(Tableau2[R2_2]),DAY(Tableau2[R2_2]))))","v":""},null,null,3,null,"?",{"$f":"IF(ISERROR(+DATE(YEAR(Tableau2[Dernier Recyclage_3])+Tableau2[Validité_3],MONTH(Tableau2[Dernier Recyclage_3]),DAY(Tableau2[Dernier Recyclage_3]))),\"\",(+DATE(YEAR(Tableau2[Dernier Recyclage_3])+Tableau2[Validité_3],MONTH(Tableau2[Dernier Recyclage_3]),DAY(Tableau2[Dernier Recyclage_3]))))","v":""},{"$f":"IF(ISERROR(+DATE(YEAR(Tableau2[R1_3])+Tableau2[Validité_3],MONTH(Tableau2[R1_3]),DAY(Tableau2[R1_3]))),\"\",(+DATE(YEAR(Tableau2[R1_3])+Tableau2[Validité_3],MONTH(Tableau2[R1_3]),DAY(Tableau2[R1_3]))))","v":""},{"$f":"IF(ISERROR(+DATE(YEAR(Tableau2[R2_3])+Tableau2[Validité_3],MONTH(Tableau2[R2_3]),DAY(Tableau2[R2_3]))),\"\",(+DATE(YEAR(Tableau2[R2_3])+Tableau2[Validité_3],MONTH(Tableau2[R2_3]),DAY(Tableau2[R2_3]))))","v":""},null,null,5,"2013-01-22","2013-01-22",{"$f":"IF(ISERROR(+DATE(YEAR(Tableau2[Dernier Recyclage_4])+Tableau2[Validité_4],MONTH(Tableau2[Dernier Recyclage_4]),DAY(Tableau2[Dernier Recyclage_4]))),\"\",(+DATE(YEAR(Tableau2[Dernier Recyclage_4])+Tableau2[Validité_4],MONTH(Tableau2[Dernier Recyclage_4]),DAY(Tableau2[Dernier Recyclage_4]))))","v":"2018-01-22"},{"$f":"IF(ISERROR(+DATE(YEAR(Tableau2[R1_4])+Tableau2[Validité_4],MONTH(Tableau2[R1_4]),DAY(Tableau2[R1_4]))),\"\",(+DATE(YEAR(Tableau2[R1_4])+Tableau2[Validité_4],MONTH(Tableau2[R1_4]),DAY(Tableau2[R1_4]))))","v":"2023-01-22"},{"$f":"IF(ISERROR(+DATE(YEAR(Tableau2[R2_4])+Tableau2[Validité_4],MONTH(Tableau2[R2_4]),DAY(Tableau2[R2_4]))),\"\",(+DATE(YEAR(Tableau2[R2_4])+Tableau2[Validité_4],MONTH(Tableau2[R2_4]),DAY(Tableau2[R2_4]))))","v":"2028-01-22"},null,"HUILE",{"$f":"IF(ISERROR(VLOOKUP(Tableau2[Habilitation_5],Tableau1[],Tableau1[Validité2],0)),\"\",VLOOKUP(Tableau2[Habilitation_5],Tableau1[],Tableau1[Validité2],0))","v":0},null,"2013-10-24",{"$f":"IF(ISERROR(+DATE(YEAR(Tableau2[Dernier Recyclage_5])+Tableau2[Validité_5],MONTH(Tableau2[Dernier Recyclage_5]),DAY(Tableau2[Dernier Recyclage_5]))),\"\",(+DATE(YEAR(Tableau2[Dernier Recyclage_5])+Tableau2[Validité_5],MONTH(Tableau2[Dernier Recyclage_5]),DAY(Tableau2[Dernier Recyclage_5]))))","v":"2013-10-24"},{"$f":"IF(ISERROR(+DATE(YEAR(Tableau2[R1_5])+Tableau2[Validité_5],MONTH(Tableau2[R1_5]),DAY(Tableau2[R1_5]))),\"\",(+DATE(YEAR(Tableau2[R1_5])+Tableau2[Validité_5],MONTH(Tableau2[R1_5]),DAY(Tableau2[R1_5]))))","v":"2013-10-24"},{"$f":"IF(ISERROR(+DATE(YEAR(Tableau2[R2_5])+Tableau2[Validité_5],MONTH(Tableau2[R2_5]),DAY(Tableau2[R2_5]))),\"\",(+DATE(YEAR(Tableau2[R2_5])+Tableau2[Validité_5],MONTH(Tableau2[R2_5]),DAY(Tableau2[R2_5]))))","v":"2013-10-24"},null,"MEULES",{"$f":"IF(ISERROR(VLOOKUP(Tableau2[Habilitation_6],Tableau1[],Tableau1[Validité2],0)),\"\",VLOOKUP(Tableau2[Habilitation_6],Tableau1[],Tableau1[Validité2],0))","v":0},null,null,{"$f":"IF(ISERROR(+DATE(YEAR(Tableau2[Dernier Recyclage_6])+Tableau2[Validité_6],MONTH(Tableau2[Dernier Recyclage_6]),DAY(Tableau2[Dernier Recyclage_6]))),\"\",(+DATE(YEAR(Tableau2[Dernier Recyclage_6])+Tableau2[Validité_6],MONTH(Tableau2[Dernier Recyclage_6]),DAY(Tableau2[Dernier Recyclage_6]))))","v":"00:00:00"},{"$f":"IF(ISERROR(+DATE(YEAR(Tableau2[R1_6])+Tableau2[Validité_6],MONTH(Tableau2[R1_6]),DAY(Tableau2[R1_6]))),\"\",(+DATE(YEAR(Tableau2[R1_6])+Tableau2[Validité_6],MONTH(Tableau2[R1_6]),DAY(Tableau2[R1_6]))))","v":"00:00:00"},{"$f":"IF(ISERROR(+DATE(YEAR(Tableau2[R2_6])+Tableau2[Validité_6],MONTH(Tableau2[R2_6]),DAY(Tableau2[R2_6]))),\"\",(+DATE(YEAR(Tableau2[R2_6])+Tableau2[Validité_6],MONTH(Tableau2[R2_6]),DAY(Tableau2[R2_6]))))","v":"00:00:00"},null,null,{"$f":"IF(ISERROR(VLOOKUP(Tableau2[Habilitation_7],Tableau1[],Tableau1[Validité2],0)),\"\",VLOOKUP(Tableau2[Habilitation_7],Tableau1[],Tableau1[Validité2],0))","v":""},null,null,{"$f":"IF(ISERROR(+DATE(YEAR(Tableau2[Dernier Recyclage_7])+Tableau2[Validité_7],MONTH(Tableau2[Dernier Recyclage_7]),DAY(Tableau2[Dernier Recyclage_7]))),\"\",(+DATE(YEAR(Tableau2[Dernier Recyclage_7])+Tableau2[Validité_7],MONTH(Tableau2[Dernier Recyclage_7]),DAY(Tableau2[Dernier Recyclage_7]))))","v":""},{"$f":"IF(ISERROR(+DATE(YEAR(Tableau2[R1_7])+Tableau2[Validité_7],MONTH(Tableau2[R1_7]),DAY(Tableau2[R1_7]))),\"\",(+DATE(YEAR(Tableau2[R1_7])+Tableau2[Validité_7],MONTH(Tableau2[R1_7]),DAY(Tableau2[R1_7]))))","v":""},{"$f":"IF(ISERROR(+DATE(YEAR(Tableau2[R2_7])+Tableau2[Validité_7],MONTH(Tableau2[R2_7]),DAY(Tableau2[R2_7]))),\"\",(+DATE(YEAR(Tableau2[R2_7])+Tableau2[Validité_7],MONTH(Tableau2[R2_7]),DAY(Tableau2[R2_7]))))","v":""},null,null,{"$f":"IF(ISERROR(VLOOKUP(Tableau2[Habilitation_8],Tableau1[],Tableau1[Validité2],0)),\"\",VLOOKUP(Tableau2[Habilitation_8],Tableau1[],Tableau1[Validité2],0))","v":""},null,null,{"$f":"IF(ISERROR(+DATE(YEAR(Tableau2[Dernier Recyclage_8])+Tableau2[Validité_8],MONTH(Tableau2[Dernier Recyclage_8]),DAY(Tableau2[Dernier Recyclage_8]))),\"\",(+DATE(YEAR(Tableau2[Dernier Recyclage_8])+Tableau2[Validité_8],MONTH(Tableau2[Dernier Recyclage_8]),DAY(Tableau2[Dernier Recyclage_8]))))","v":""},{"$f":"IF(ISERROR(+DATE(YEAR(Tableau2[R1_76])+Tableau2[Validité_8],MONTH(Tableau2[R1_76]),DAY(Tableau2[R1_76]))),\"\",(+DATE(YEAR(Tableau2[R1_76])+Tableau2[Validité_8],MONTH(Tableau2[R1_76]),DAY(Tableau2[R1_76]))))","v":""},{"$f":"IF(ISERROR(+DATE(YEAR(Tableau2[R3_14])+Tableau2[Validité_8],MONTH(Tableau2[R3_14]),DAY(Tableau2[Validité_8]))),\"\",(+DATE(YEAR(Tableau2[R3_14])+Tableau2[Validité_8],MONTH(Tableau2[R3_14]),DAY(Tableau2[R3_14]))))","v":""},null,null,{"$f":"IF(ISERROR(VLOOKUP(Tableau2[R3_17],Tableau1[],Tableau1[Validité2],0)),\"\",VLOOKUP(Tableau2[R3_17],Tableau1[],Tableau1[Validité2],0))","v":""},null,null,{"$f":"IF(ISERROR(+DATE(YEAR(Tableau2[R3_20])+Tableau2[R3_18],MONTH(Tableau2[R3_20]),DAY(Tableau2[R3_20]))),\"\",(+DATE(YEAR(Tableau2[R3_20])+Tableau2[R3_18],MONTH(Tableau2[R3_20]),DAY(Tableau2[R3_20]))))","v":""},{"$f":"IF(ISERROR(+DATE(YEAR(Tableau2[R3_21])+Tableau2[R3_18],MONTH(Tableau2[R3_21]),DAY(Tableau2[R3_21]))),\"\",(+DATE(YEAR(Tableau2[R3_21])+Tableau2[R3_18],MONTH(Tableau2[R3_21]),DAY(Tableau2[R3_21]))))","v":""},{"$f":"IF(ISERROR(+DATE(YEAR(Tableau2[R3_22])+Tableau2[Validité_8],MONTH(Tableau2[R3_22]),DAY(Tableau2[R3_18]))),\"\",(+DATE(YEAR(Tableau2[R3_22])+Tableau2[Validité_8],MONTH(Tableau2[R3_22]),DAY(Tableau2[R3_22]))))","v":""},null,null,{"$f":"IF(ISERROR(VLOOKUP(Tableau2[R3_25],Tableau1[],Tableau1[Validité2],0)),\"\",VLOOKUP(Tableau2[R3_25],Tableau1[],Tableau1[Validité2],0))","v":""},null,null,{"$f":"IF(ISERROR(+DATE(YEAR(Tableau2[R3_28])+Tableau2[R3_26],MONTH(Tableau2[R3_28]),DAY(Tableau2[R3_28]))),\"\",(+DATE(YEAR(Tableau2[R3_28])+Tableau2[R3_26],MONTH(Tableau2[R3_28]),DAY(Tableau2[R3_28]))))","v":""},{"$f":"IF(ISERROR(+DATE(YEAR(Tableau2[R3_29])+Tableau2[R3_26],MONTH(Tableau2[R3_29]),DAY(Tableau2[R3_29]))),\"\",(+DATE(YEAR(Tableau2[R3_29])+Tableau2[R3_26],MONTH(Tableau2[R3_29]),DAY(Tableau2[R3_29]))))","v":""},{"$f":"IF(ISERROR(+DATE(YEAR(Tableau2[R3_30])+Tableau2[R3_26],MONTH(Tableau2[R3_30]),DAY(Tableau2[R3_26]))),\"\",(+DATE(YEAR(Tableau2[R3_30])+Tableau2[R3_26],MONTH(Tableau2[R3_30]),DAY(Tableau2[R3_30]))))","v":""}]
["ANa","Durand 8",null,null,3,"2009-11-19","2012-04-05",{"$f":"IF(ISERROR(+DATE(YEAR(Tableau2[Dernier Recyclage])+Tableau2[[#This Row],[Validité]],MONTH(Tableau2[Dernier Recyclage]),DAY(Tableau2[Dernier Recyclage]))),\"\",(+DATE(YEAR(Tableau2[Dernier Recyclage])+Tableau2[[#This Row],[Validité]],MONTH(Tableau2[Dernier Recyclage]),DAY(Tableau2[Dernier Recyclage]))))","v":"2015-04-05"},{"$f":"IF(ISERROR(+DATE(YEAR(Tableau2[[#This Row],[R1]])+Tableau2[[#This Row],[Validité]],MONTH(Tableau2[[#This Row],[R1]]),DAY(Tableau2[[#This Row],[R1]]))),\"\",(+DATE(YEAR(Tableau2[[#This Row],[R1]])+Tableau2[[#This Row],[Validité]],MONTH(Tableau2[[#This Row],[R1]]),DAY(Tableau2[[#This Row],[R1]]))))","v":"2018-04-05"},{"$f":"IF(ISERROR(+DATE(YEAR(Tableau2[[#This Row],[R2]])+Tableau2[[#This Row],[Validité]],MONTH(Tableau2[[#This Row],[R2]]),DAY(Tableau2[[#This Row],[R2]]))),\"\",(+DATE(YEAR(Tableau2[[#This Row],[R2]])+Tableau2[[#This Row],[Validité]],MONTH(Tableau2[[#This Row],[R2]]),DAY(Tableau2[[#This Row],[R2]]))))","v":"2021-04-05"},null,null,5,"2010-11-16","2010-11-16",{"$f":"IF(ISERROR(+DATE(YEAR(Tableau2[[#This Row],[Initiale]])+Tableau2[[#This Row],[Validité]],MONTH(Tableau2[[#This Row],[Initiale]]),DAY(Tableau2[[#This Row],[Initiale]]))),\"\",(+DATE(YEAR(Tableau2[[#This Row],[Initiale]])+Tableau2[[#This Row],[Validité]],MONTH(Tableau2[[#This Row],[Initiale]]),DAY(Tableau2[[#This Row],[Initiale]]))))","v":"2012-11-19"},{"$f":"IF(ISERROR(+DATE(YEAR(Tableau2[R1_2])+Tableau2[Validité_2],MONTH(Tableau2[R1_2]),DAY(Tableau2[R1_2]))),\"\",(+DATE(YEAR(Tableau2[R1_2])+Tableau2[Validité_2],MONTH(Tableau2[R1_2]),DAY(Tableau2[R1_2]))))","v":"2017-11-19"},{"$f":"IF(ISERROR(+DATE(YEAR(Tableau2[R2_2])+Tableau2[Validité_2],MONTH(Tableau2[R2_2]),DAY(Tableau2[R2_2]))),\"\",(+DATE(YEAR(Tableau2[R2_2])+Tableau2[Validité_2],MONTH(Tableau2[R2_2]),DAY(Tableau2[R2_2]))))","v":"2022-11-19"},null,null,3,"2014-05-15","2014-05-15",{"$f":"IF(ISERROR(+DATE(YEAR(Tableau2[Dernier Recyclage_3])+Tableau2[Validité_3],MONTH(Tableau2[Dernier Recyclage_3]),DAY(Tableau2[Dernier Recyclage_3]))),\"\",(+DATE(YEAR(Tableau2[Dernier Recyclage_3])+Tableau2[Validité_3],MONTH(Tableau2[Dernier Recyclage_3]),DAY(Tableau2[Dernier Recyclage_3]))))","v":"2017-05-15"},{"$f":"IF(ISERROR(+DATE(YEAR(Tableau2[R1_3])+Tableau2[Validité_3],MONTH(Tableau2[R1_3]),DAY(Tableau2[R1_3]))),\"\",(+DATE(YEAR(Tableau2[R1_3])+Tableau2[Validité_3],MONTH(Tableau2[R1_3]),DAY(Tableau2[R1_3]))))","v":"2020-05-15"},{"$f":"IF(ISERROR(+DATE(YEAR(Tableau2[R2_3])+Tableau2[Validité_3],MONTH(Tableau2[R2_3]),DAY(Tableau2[R2_3]))),\"\",(+DATE(YEAR(Tableau2[R2_3])+Tableau2[Validité_3],MONTH(Tableau2[R2_3]),DAY(Tableau2[R2_3]))))","v":"2023-05-15"},null,null,5,"2013-04-09","2013-04-09",{"$f":"IF(ISERROR(+DATE(YEAR(Tableau2[Dernier Recyclage_4])+Tableau2[Validité_4],MONTH(Tableau2[Dernier Recyclage_4]),DAY(Tableau2[Dernier Recyclage_4]))),\"\",(+DATE(YEAR(Tableau2[Dernier Recyclage_4])+Tableau2[Validité_4],MONTH(Tableau2[Dernier Recyclage_4]),DAY(Tableau2[Dernier Recyclage_4]))))","v":"2018-04-09"},{"$f":"IF(ISERROR(+DATE(YEAR(Tableau2[R1_4])+Tableau2[Validité_4],MONTH(Tableau2[R1_4]),DAY(Tableau2[R1_4]))),\"\",(+DATE(YEAR(Tableau2[R1_4])+Tableau2[Validité_4],MONTH(Tableau2[R1_4]),DAY(Tableau2[R1_4]))))","v":"2023-04-09"},{"$f":"IF(ISERROR(+DATE(YEAR(Tableau2[R2_4])+Tableau2[Validité_4],MONTH(Tableau2[R2_4]),DAY(Tableau2[R2_4]))),\"\",(+DATE(YEAR(Tableau2[R2_4])+Tableau2[Validité_4],MONTH(Tableau2[R2_4]),DAY(Tableau2[R2_4]))))","v":"2028-04-09"},null,"",{"$f":"IF(ISERROR(VLOOKUP(Tableau2[Habilitation_5],Tableau1[],Tableau1[Validité2],0)),\"\",VLOOKUP(Tableau2[Habilitation_5],Tableau1[],Tableau1[Validité2],0))","v":""},null,"",{"$f":"IF(ISERROR(+DATE(YEAR(Tableau2[Dernier Recyclage_5])+Tableau2[Validité_5],MONTH(Tableau2[Dernier Recyclage_5]),DAY(Tableau2[Dernier Recyclage_5]))),\"\",(+DATE(YEAR(Tableau2[Dernier Recyclage_5])+Tableau2[Validité_5],MONTH(Tableau2[Dernier Recyclage_5]),DAY(Tableau2[Dernier Recyclage_5]))))","v":""},{"$f":"IF(ISERROR(+DATE(YEAR(Tableau2[R1_5])+Tableau2[Validité_5],MONTH(Tableau2[R1_5]),DAY(Tableau2[R1_5]))),\"\",(+DATE(YEAR(Tableau2[R1_5])+Tableau2[Validité_5],MONTH(Tableau2[R1_5]),DAY(Tableau2[R1_5]))))","v":""},{"$f":"IF(ISERROR(+DATE(YEAR(Tableau2[R2_5])+Tableau2[Validité_5],MONTH(Tableau2[R2_5]),DAY(Tableau2[R2_5]))),\"\",(+DATE(YEAR(Tableau2[R2_5])+Tableau2[Validité_5],MONTH(Tableau2[R2_5]),DAY(Tableau2[R2_5]))))","v":""},null,"",{"$f":"IF(ISERROR(VLOOKUP(Tableau2[Habilitation_6],Tableau1[],Tableau1[Validité2],0)),\"\",VLOOKUP(Tableau2[Habilitation_6],Tableau1[],Tableau1[Validité2],0))","v":""},null,"",{"$f":"IF(ISERROR(+DATE(YEAR(Tableau2[Dernier Recyclage_6])+Tableau2[Validité_6],MONTH(Tableau2[Dernier Recyclage_6]),DAY(Tableau2[Dernier Recyclage_6]))),\"\",(+DATE(YEAR(Tableau2[Dernier Recyclage_6])+Tableau2[Validité_6],MONTH(Tableau2[Dernier Recyclage_6]),DAY(Tableau2[Dernier Recyclage_6]))))","v":""},{"$f":"IF(ISERROR(+DATE(YEAR(Tableau2[R1_6])+Tableau2[Validité_6],MONTH(Tableau2[R1_6]),DAY(Tableau2[R1_6]))),\"\",(+DATE(YEAR(Tableau2[R1_6])+Tableau2[Validité_6],MONTH(Tableau2[R1_6]),DAY(Tableau2[R1_6]))))","v":""},{"$f":"IF(ISERROR(+DATE(YEAR(Tableau2[R2_6])+Tableau2[Validité_6],MONTH(Tableau2[R2_6]),DAY(Tableau2[R2_6]))),\"\",(+DATE(YEAR(Tableau2[R2_6])+Tableau2[Validité_6],MONTH(Tableau2[R2_6]),DAY(Tableau2[R2_6]))))","v":""},null,null,{"$f":"IF(ISERROR(VLOOKUP(Tableau2[Habilitation_7],Tableau1[],Tableau1[Validité2],0)),\"\",VLOOKUP(Tableau2[Habilitation_7],Tableau1[],Tableau1[Validité2],0))","v":""},null,"",{"$f":"IF(ISERROR(+DATE(YEAR(Tableau2[Dernier Recyclage_7])+Tableau2[Validité_7],MONTH(Tableau2[Dernier Recyclage_7]),DAY(Tableau2[Dernier Recyclage_7]))),\"\",(+DATE(YEAR(Tableau2[Dernier Recyclage_7])+Tableau2[Validité_7],MONTH(Tableau2[Dernier Recyclage_7]),DAY(Tableau2[Dernier Recyclage_7]))))","v":""},{"$f":"IF(ISERROR(+DATE(YEAR(Tableau2[R1_7])+Tableau2[Validité_7],MONTH(Tableau2[R1_7]),DAY(Tableau2[R1_7]))),\"\",(+DATE(YEAR(Tableau2[R1_7])+Tableau2[Validité_7],MONTH(Tableau2[R1_7]),DAY(Tableau2[R1_7]))))","v":""},{"$f":"IF(ISERROR(+DATE(YEAR(Tableau2[R2_7])+Tableau2[Validité_7],MONTH(Tableau2[R2_7]),DAY(Tableau2[R2_7]))),\"\",(+DATE(YEAR(Tableau2[R2_7])+Tableau2[Validité_7],MONTH(Tableau2[R2_7]),DAY(Tableau2[R2_7]))))","v":""},null,"",{"$f":"IF(ISERROR(VLOOKUP(Tableau2[Habilitation_8],Tableau1[],Tableau1[Validité2],0)),\"\",VLOOKUP(Tableau2[Habilitation_8],Tableau1[],Tableau1[Validité2],0))","v":""},null,"",{"$f":"IF(ISERROR(+DATE(YEAR(Tableau2[Dernier Recyclage_8])+Tableau2[Validité_8],MONTH(Tableau2[Dernier Recyclage_8]),DAY(Tableau2[Dernier Recyclage_8]))),\"\",(+DATE(YEAR(Tableau2[Dernier Recyclage_8])+Tableau2[Validité_8],MONTH(Tableau2[Dernier Recyclage_8]),DAY(Tableau2[Dernier Recyclage_8]))))","v":""},{"$f":"IF(ISERROR(+DATE(YEAR(Tableau2[R1_76])+Tableau2[Validité_8],MONTH(Tableau2[R1_76]),DAY(Tableau2[R1_76]))),\"\",(+DATE(YEAR(Tableau2[R1_76])+Tableau2[Validité_8],MONTH(Tableau2[R1_76]),DAY(Tableau2[R1_76]))))","v":""},{"$f":"IF(ISERROR(+DATE(YEAR(Tableau2[R3_14])+Tableau2[Validité_8],MONTH(Tableau2[R3_14]),DAY(Tableau2[Validité_8]))),\"\",(+DATE(YEAR(Tableau2[R3_14])+Tableau2[Validité_8],MONTH(Tableau2[R3_14]),DAY(Tableau2[R3_14]))))","v":""},null,"",{"$f":"IF(ISERROR(VLOOKUP(Tableau2[R3_17],Tableau1[],Tableau1[Validité2],0)),\"\",VLOOKUP(Tableau2[R3_17],Tableau1[],Tableau1[Validité2],0))","v":""},null,"",{"$f":"IF(ISERROR(+DATE(YEAR(Tableau2[R3_20])+Tableau2[R3_18],MONTH(Tableau2[R3_20]),DAY(Tableau2[R3_20]))),\"\",(+DATE(YEAR(Tableau2[R3_20])+Tableau2[R3_18],MONTH(Tableau2[R3_20]),DAY(Tableau2[R3_20]))))","v":""},{"$f":"IF(ISERROR(+DATE(YEAR(Tableau2[R3_21])+Tableau2[R3_18],MONTH(Tableau2[R3_21]),DAY(Tableau2[R3_21]))),\"\",(+DATE(YEAR(Tableau2[R3_21])+Tableau2[R3_18],MONTH(Tableau2[R3_21]),DAY(Tableau2[R3_21]))))","v":""},{"$f":"IF(ISERROR(+DATE(YEAR(Tableau2[R3_22])+Tableau2[Validité_8],MONTH(Tableau2[R3_22]),DAY(Tableau2[R3_18]))),\"\",(+DATE(YEAR(Tableau2[R3_22])+Tableau2[Validité_8],MONTH(Tableau2[R3_22]),DAY(Tableau2[R3_22]))))","v":""},null,"",{"$f":"IF(ISERROR(VLOOKUP(Tableau2[R3_25],Tableau1[],Tableau1[Validité2],0)),\"\",VLOOKUP(Tableau2[R3_25],Tableau1[],Tableau1[Validité2],0))","v":""},null,"",{"$f":"IF(ISERROR(+DATE(YEAR(Tableau2[R3_28])+Tableau2[R3_26],MONTH(Tableau2[R3_28]),DAY(Tableau2[R3_28]))),\"\",(+DATE(YEAR(Tableau2[R3_28])+Tableau2[R3_26],MONTH(Tableau2[R3_28]),DAY(Tableau2[R3_28]))))","v":""},{"$f":"IF(ISERROR(+DATE(YEAR(Tableau2[R3_29])+Tableau2[R3_26],MONTH(Tableau2[R3_29]),DAY(Tableau2[R3_29]))),\"\",(+DATE(YEAR(Tableau2[R3_29])+Tableau2[R3_26],MONTH(Tableau2[R3_29]),DAY(Tableau2[R3_29]))))","v":""},{"$f":"IF(ISERROR(+DATE(YEAR(Tableau2[R3_30])+Tableau2[R3_26],MONTH(Tableau2[R3_30]),DAY(Tableau2[R3_26]))),\"\",(+DATE(YEAR(Tableau2[R3_30])+Tableau2[R3_26],MONTH(Tableau2[R3_30]),DAY(Tableau2[R3_30]))))","v":""}]
["GPh","Durand 9",null,null,3,"2006-11-24","2013-11-14",{"$f":"IF(ISERROR(+DATE(YEAR(Tableau2[Dernier Recyclage])+Tableau2[[#This Row],[Validité]],MONTH(Tableau2[Dernier Recyclage]),DAY(Tableau2[Dernier Recyclage]))),\"\",(+DATE(YEAR(Tableau2[Dernier Recyclage])+Tableau2[[#This Row],[Validité]],MONTH(Tableau2[Dernier Recyclage]),DAY(Tableau2[Dernier Recyclage]))))","v":"2016-11-14"},{"$f":"IF(ISERROR(+DATE(YEAR(Tableau2[[#This Row],[R1]])+Tableau2[[#This Row],[Validité]],MONTH(Tableau2[[#This Row],[R1]]),DAY(Tableau2[[#This Row],[R1]]))),\"\",(+DATE(YEAR(Tableau2[[#This Row],[R1]])+Tableau2[[#This Row],[Validité]],MONTH(Tableau2[[#This Row],[R1]]),DAY(Tableau2[[#This Row],[R1]]))))","v":"2019-11-14"},{"$f":"IF(ISERROR(+DATE(YEAR(Tableau2[[#This Row],[R2]])+Tableau2[[#This Row],[Validité]],MONTH(Tableau2[[#This Row],[R2]]),DAY(Tableau2[[#This Row],[R2]]))),\"\",(+DATE(YEAR(Tableau2[[#This Row],[R2]])+Tableau2[[#This Row],[Validité]],MONTH(Tableau2[[#This Row],[R2]]),DAY(Tableau2[[#This Row],[R2]]))))","v":"2022-11-14"},null,null,5,null,"?",{"$f":"IF(ISERROR(+DATE(YEAR(Tableau2[Dernier Recyclage_2])+Tableau2[Validité_2],MONTH(Tableau2[Dernier Recyclage_2]),DAY(Tableau2[Dernier Recyclage_2]))),\"\",(+DATE(YEAR(Tableau2[Dernier Recyclage_2])+Tableau2[Validité_2],MONTH(Tableau2[Dernier Recyclage_2]),DAY(Tableau2[Dernier Recyclage_2]))))","v":""},{"$f":"IF(ISERROR(+DATE(YEAR(Tableau2[R1_2])+Tableau2[Validité_2],MONTH(Tableau2[R1_2]),DAY(Tableau2[R1_2]))),\"\",(+DATE(YEAR(Tableau2[R1_2])+Tableau2[Validité_2],MONTH(Tableau2[R1_2]),DAY(Tableau2[R1_2]))))","v":""},{"$f":"IF(ISERROR(+DATE(YEAR(Tableau2[R2_2])+Tableau2[Validité_2],MONTH(Tableau2[R2_2]),DAY(Tableau2[R2_2]))),\"\",(+DATE(YEAR(Tableau2[R2_2])+Tableau2[Validité_2],MONTH(Tableau2[R2_2]),DAY(Tableau2[R2_2]))))","v":""},null,null,3,null,"?",{"$f":"IF(ISERROR(+DATE(YEAR(Tableau2[Dernier Recyclage_3])+Tableau2[Validité_3],MONTH(Tableau2[Dernier Recyclage_3]),DAY(Tableau2[Dernier Recyclage_3]))),\"\",(+DATE(YEAR(Tableau2[Dernier Recyclage_3])+Tableau2[Validité_3],MONTH(Tableau2[Dernier Recyclage_3]),DAY(Tableau2[Dernier Recyclage_3]))))","v":""},{"$f":"IF(ISERROR(+DATE(YEAR(Tableau2[R1_3])+Tableau2[Validité_3],MONTH(Tableau2[R1_3]),DAY(Tableau2[R1_3]))),\"\",(+DATE(YEAR(Tableau2[R1_3])+Tableau2[Validité_3],MONTH(Tableau2[R1_3]),DAY(Tableau2[R1_3]))))","v":""},{"$f":"IF(ISERROR(+DATE(YEAR(Tableau2[R2_3])+Tableau2[Validité_3],MONTH(Tableau2[R2_3]),DAY(Tableau2[R2_3]))),\"\",(+DATE(YEAR(Tableau2[R2_3])+Tableau2[Validité_3],MONTH(Tableau2[R2_3]),DAY(Tableau2[R2_3]))))","v":""},null,null,5,"2013-01-23","2013-01-23",{"$f":"IF(ISERROR(+DATE(YEAR(Tableau2[Dernier Recyclage_4])+Tableau2[Validité_4],MONTH(Tableau2[Dernier Recyclage_4]),DAY(Tableau2[Dernier Recyclage_4]))),\"\",(+DATE(YEAR(Tableau2[Dernier Recyclage_4])+Tableau2[Validité_4],MONTH(Tableau2[Dernier Recyclage_4]),DAY(Tableau2[Dernier Recyclage_4]))))","v":"2018-01-23"},{"$f":"IF(ISERROR(+DATE(YEAR(Tableau2[R1_4])+Tableau2[Validité_4],MONTH(Tableau2[R1_4]),DAY(Tableau2[R1_4]))),\"\",(+DATE(YEAR(Tableau2[R1_4])+Tableau2[Validité_4],MONTH(Tableau2[R1_4]),DAY(Tableau2[R1_4]))))","v":"2023-01-23"},{"$f":"IF(ISERROR(+DATE(YEAR(Tableau2[R2_4])+Tableau2[Validité_4],MONTH(Tableau2[R2_4]),DAY(Tableau2[R2_4]))),\"\",(+DATE(YEAR(Tableau2[R2_4])+Tableau2[Validité_4],MONTH(Tableau2[R2_4]),DAY(Tableau2[R2_4]))))","v":"2028-01-23"},null,null,{"$f":"IF(ISERROR(VLOOKUP(Tableau2[Habilitation_5],Tableau1[],Tableau1[Validité2],0)),\"\",VLOOKUP(Tableau2[Habilitation_5],Tableau1[],Tableau1[Validité2],0))","v":""},null,null,{"$f":"IF(ISERROR(+DATE(YEAR(Tableau2[Dernier Recyclage_5])+Tableau2[Validité_5],MONTH(Tableau2[Dernier Recyclage_5]),DAY(Tableau2[Dernier Recyclage_5]))),\"\",(+DATE(YEAR(Tableau2[Dernier Recyclage_5])+Tableau2[Validité_5],MONTH(Tableau2[Dernier Recyclage_5]),DAY(Tableau2[Dernier Recyclage_5]))))","v":""},{"$f":"IF(ISERROR(+DATE(YEAR(Tableau2[R1_5])+Tableau2[Validité_5],MONTH(Tableau2[R1_5]),DAY(Tableau2[R1_5]))),\"\",(+DATE(YEAR(Tableau2[R1_5])+Tableau2[Validité_5],MONTH(Tableau2[R1_5]),DAY(Tableau2[R1_5]))))","v":""},{"$f":"IF(ISERROR(+DATE(YEAR(Tableau2[R2_5])+Tableau2[Validité_5],MONTH(Tableau2[R2_5]),DAY(Tableau2[R2_5]))),\"\",(+DATE(YEAR(Tableau2[R2_5])+Tableau2[Validité_5],MONTH(Tableau2[R2_5]),DAY(Tableau2[R2_5]))))","v":""},null,"MEULES",{"$f":"IF(ISERROR(VLOOKUP(Tableau2[Habilitation_6],Tableau1[],Tableau1[Validité2],0)),\"\",VLOOKUP(Tableau2[Habilitation_6],Tableau1[],Tableau1[Validité2],0))","v":0},null,null,{"$f":"IF(ISERROR(+DATE(YEAR(Tableau2[Dernier Recyclage_6])+Tableau2[Validité_6],MONTH(Tableau2[Dernier Recyclage_6]),DAY(Tableau2[Dernier Recyclage_6]))),\"\",(+DATE(YEAR(Tableau2[Dernier Recyclage_6])+Tableau2[Validité_6],MONTH(Tableau2[Dernier Recyclage_6]),DAY(Tableau2[Dernier Recyclage_6]))))","v":"00:00:00"},{"$f":"IF(ISERROR(+DATE(YEAR(Tableau2[R1_6])+Tableau2[Validité_6],MONTH(Tableau2[R1_6]),DAY(Tableau2[R1_6]))),\"\",(+DATE(YEAR(Tableau2[R1_6])+Tableau2[Validité_6],MONTH(Tableau2[R1_6]),DAY(Tableau2[R1_6]))))","v":"00:00:00"},{"$f":"IF(ISERROR(+DATE(YEAR(Tableau2[R2_6])+Tableau2[Validité_6],MONTH(Tableau2[R2_6]),DAY(Tableau2[R2_6]))),\"\",(+DATE(YEAR(Tableau2[R2_6])+Tableau2[Validité_6],MONTH(Tableau2[R2_6]),DAY(Tableau2[R2_6]))))","v":"00:00:00"},null,null,{"$f":"IF(ISERROR(VLOOKUP(Tableau2[Habilitation_7],Tableau1[],Tableau1[Validité2],0)),\"\",VLOOKUP(Tableau2[Habilitation_7],Tableau1[],Tableau1[Validité2],0))","v":""},null,null,{"$f":"IF(ISERROR(+DATE(YEAR(Tableau2[Dernier Recyclage_7])+Tableau2[Validité_7],MONTH(Tableau2[Dernier Recyclage_7]),DAY(Tableau2[Dernier Recyclage_7]))),\"\",(+DATE(YEAR(Tableau2[Dernier Recyclage_7])+Tableau2[Validité_7],MONTH(Tableau2[Dernier Recyclage_7]),DAY(Tableau2[Dernier Recyclage_7]))))","v":""},{"$f":"IF(ISERROR(+DATE(YEAR(Tableau2[R1_7])+Tableau2[Validité_7],MONTH(Tableau2[R1_7]),DAY(Tableau2[R1_7]))),\"\",(+DATE(YEAR(Tableau2[R1_7])+Tableau2[Validité_7],MONTH(Tableau2[R1_7]),DAY(Tableau2[R1_7]))))","v":""},{"$f":"IF(ISERROR(+DATE(YEAR(Tableau2[R2_7])+Tableau2[Validité_7],MONTH(Tableau2[R2_7]),DAY(Tableau2[R2_7]))),\"\",(+DATE(YEAR(Tableau2[R2_7])+Tableau2[Validité_7],MONTH(Tableau2[R2_7]),DAY(Tableau2[R2_7]))))","v":""},null,null,{"$f":"IF(ISERROR(VLOOKUP(Tableau2[Habilitation_8],Tableau1[],Tableau1[Validité2],0)),\"\",VLOOKUP(Tableau2[Habilitation_8],Tableau1[],Tableau1[Validité2],0))","v":""},null,null,{"$f":"IF(ISERROR(+DATE(YEAR(Tableau2[Dernier Recyclage_8])+Tableau2[Validité_8],MONTH(Tableau2[Dernier Recyclage_8]),DAY(Tableau2[Dernier Recyclage_8]))),\"\",(+DATE(YEAR(Tableau2[Dernier Recyclage_8])+Tableau2[Validité_8],MONTH(Tableau2[Dernier Recyclage_8]),DAY(Tableau2[Dernier Recyclage_8]))))","v":""},{"$f":"IF(ISERROR(+DATE(YEAR(Tableau2[R1_76])+Tableau2[Validité_8],MONTH(Tableau2[R1_76]),DAY(Tableau2[R1_76]))),\"\",(+DATE(YEAR(Tableau2[R1_76])+Tableau2[Validité_8],MONTH(Tableau2[R1_76]),DAY(Tableau2[R1_76]))))","v":""},{"$f":"IF(ISERROR(+DATE(YEAR(Tableau2[R3_14])+Tableau2[Validité_8],MONTH(Tableau2[R3_14]),DAY(Tableau2[Validité_8]))),\"\",(+DATE(YEAR(Tableau2[R3_14])+Tableau2[Validité_8],MONTH(Tableau2[R3_14]),DAY(Tableau2[R3_14]))))","v":""},null,null,{"$f":"IF(ISERROR(VLOOKUP(Tableau2[R3_17],Tableau1[],Tableau1[Validité2],0)),\"\",VLOOKUP(Tableau2[R3_17],Tableau1[],Tableau1[Validité2],0))","v":""},null,null,{"$f":"IF(ISERROR(+DATE(YEAR(Tableau2[R3_20])+Tableau2[R3_18],MONTH(Tableau2[R3_20]),DAY(Tableau2[R3_20]))),\"\",(+DATE(YEAR(Tableau2[R3_20])+Tableau2[R3_18],MONTH(Tableau2[R3_20]),DAY(Tableau2[R3_20]))))","v":""},{"$f":"IF(ISERROR(+DATE(YEAR(Tableau2[R3_21])+Tableau2[R3_18],MONTH(Tableau2[R3_21]),DAY(Tableau2[R3_21]))),\"\",(+DATE(YEAR(Tableau2[R3_21])+Tableau2[R3_18],MONTH(Tableau2[R3_21]),DAY(Tableau2[R3_21]))))","v":""},{"$f":"IF(ISERROR(+DATE(YEAR(Tableau2[R3_22])+Tableau2[Validité_8],MONTH(Tableau2[R3_22]),DAY(Tableau2[R3_18]))),\"\",(+DATE(YEAR(Tableau2[R3_22])+Tableau2[Validité_8],MONTH(Tableau2[R3_22]),DAY(Tableau2[R3_22]))))","v":""},null,null,{"$f":"IF(ISERROR(VLOOKUP(Tableau2[R3_25],Tableau1[],Tableau1[Validité2],0)),\"\",VLOOKUP(Tableau2[R3_25],Tableau1[],Tableau1[Validité2],0))","v":""},null,null,{"$f":"IF(ISERROR(+DATE(YEAR(Tableau2[R3_28])+Tableau2[R3_26],MONTH(Tableau2[R3_28]),DAY(Tableau2[R3_28]))),\"\",(+DATE(YEAR(Tableau2[R3_28])+Tableau2[R3_26],MONTH(Tableau2[R3_28]),DAY(Tableau2[R3_28]))))","v":""},{"$f":"IF(ISERROR(+DATE(YEAR(Tableau2[R3_29])+Tableau2[R3_26],MONTH(Tableau2[R3_29]),DAY(Tableau2[R3_29]))),\"\",(+DATE(YEAR(Tableau2[R3_29])+Tableau2[R3_26],MONTH(Tableau2[R3_29]),DAY(Tableau2[R3_29]))))","v":""},{"$f":"IF(ISERROR(+DATE(YEAR(Tableau2[R3_30])+Tableau2[R3_26],MONTH(Tableau2[R3_30]),DAY(Tableau2[R3_26]))),\"\",(+DATE(YEAR(Tableau2[R3_30])+Tableau2[R3_26],MONTH(Tableau2[R3_30]),DAY(Tableau2[R3_30]))))","v":""}]
["CCh","Durand 10",null,null,3,null,"2013-06-14",{"$f":"IF(ISERROR(+DATE(YEAR(Tableau2[Dernier Recyclage])+Tableau2[[#This Row],[Validité]],MONTH(Tableau2[Dernier Recyclage]),DAY(Tableau2[Dernier Recyclage]))),\"\",(+DATE(YEAR(Tableau2[Dernier Recyclage])+Tableau2[[#This Row],[Validité]],MONTH(Tableau2[Dernier Recyclage]),DAY(Tableau2[Dernier Recyclage]))))","v":"2016-06-14"},{"$f":"IF(ISERROR(+DATE(YEAR(Tableau2[[#This Row],[R1]])+Tableau2[[#This Row],[Validité]],MONTH(Tableau2[[#This Row],[R1]]),DAY(Tableau2[[#This Row],[R1]]))),\"\",(+DATE(YEAR(Tableau2[[#This Row],[R1]])+Tableau2[[#This Row],[Validité]],MONTH(Tableau2[[#This Row],[R1]]),DAY(Tableau2[[#This Row],[R1]]))))","v":"2019-06-14"},{"$f":"IF(ISERROR(+DATE(YEAR(Tableau2[[#This Row],[R2]])+Tableau2[[#This Row],[Validité]],MONTH(Tableau2[[#This Row],[R2]]),DAY(Tableau2[[#This Row],[R2]]))),\"\",(+DATE(YEAR(Tableau2[[#This Row],[R2]])+Tableau2[[#This Row],[Validité]],MONTH(Tableau2[[#This Row],[R2]]),DAY(Tableau2[[#This Row],[R2]]))))","v":"2022-06-14"},null,null,5,null,"?",{"$f":"IF(ISERROR(+DATE(YEAR(Tableau2[Dernier Recyclage_2])+Tableau2[Validité_2],MONTH(Tableau2[Dernier Recyclage_2]),DAY(Tableau2[Dernier Recyclage_2]))),\"\",(+DATE(YEAR(Tableau2[Dernier Recyclage_2])+Tableau2[Validité_2],MONTH(Tableau2[Dernier Recyclage_2]),DAY(Tableau2[Dernier Recyclage_2]))))","v":""},{"$f":"IF(ISERROR(+DATE(YEAR(Tableau2[R1_2])+Tableau2[Validité_2],MONTH(Tableau2[R1_2]),DAY(Tableau2[R1_2]))),\"\",(+DATE(YEAR(Tableau2[R1_2])+Tableau2[Validité_2],MONTH(Tableau2[R1_2]),DAY(Tableau2[R1_2]))))","v":""},{"$f":"IF(ISERROR(+DATE(YEAR(Tableau2[R2_2])+Tableau2[Validité_2],MONTH(Tableau2[R2_2]),DAY(Tableau2[R2_2]))),\"\",(+DATE(YEAR(Tableau2[R2_2])+Tableau2[Validité_2],MONTH(Tableau2[R2_2]),DAY(Tableau2[R2_2]))))","v":""},null,null,3,null,"?",{"$f":"IF(ISERROR(+DATE(YEAR(Tableau2[Dernier Recyclage_3])+Tableau2[Validité_3],MONTH(Tableau2[Dernier Recyclage_3]),DAY(Tableau2[Dernier Recyclage_3]))),\"\",(+DATE(YEAR(Tableau2[Dernier Recyclage_3])+Tableau2[Validité_3],MONTH(Tableau2[Dernier Recyclage_3]),DAY(Tableau2[Dernier Recyclage_3]))))","v":""},{"$f":"IF(ISERROR(+DATE(YEAR(Tableau2[R1_3])+Tableau2[Validité_3],MONTH(Tableau2[R1_3]),DAY(Tableau2[R1_3]))),\"\",(+DATE(YEAR(Tableau2[R1_3])+Tableau2[Validité_3],MONTH(Tableau2[R1_3]),DAY(Tableau2[R1_3]))))","v":""},{"$f":"IF(ISERROR(+DATE(YEAR(Tableau2[R2_3])+Tableau2[Validité_3],MONTH(Tableau2[R2_3]),DAY(Tableau2[R2_3]))),\"\",(+DATE(YEAR(Tableau2[R2_3])+Tableau2[Validité_3],MONTH(Tableau2[R2_3]),DAY(Tableau2[R2_3]))))","v":""},null,null,5,"2014-02-27","2014-02-27",{"$f":"IF(ISERROR(+DATE(YEAR(Tableau2[Dernier Recyclage_4])+Tableau2[Validité_4],MONTH(Tableau2[Dernier Recyclage_4]),DAY(Tableau2[Dernier Recyclage_4]))),\"\",(+DATE(YEAR(Tableau2[Dernier Recyclage_4])+Tableau2[Validité_4],MONTH(Tableau2[Dernier Recyclage_4]),DAY(Tableau2[Dernier Recyclage_4]))))","v":"2019-02-27"},{"$f":"IF(ISERROR(+DATE(YEAR(Tableau2[R1_4])+Tableau2[Validité_4],MONTH(Tableau2[R1_4]),DAY(Tableau2[R1_4]))),\"\",(+DATE(YEAR(Tableau2[R1_4])+Tableau2[Validité_4],MONTH(Tableau2[R1_4]),DAY(Tableau2[R1_4]))))","v":"2024-02-27"},{"$f":"IF(ISERROR(+DATE(YEAR(Tableau2[R2_4])+Tableau2[Validité_4],MONTH(Tableau2[R2_4]),DAY(Tableau2[R2_4]))),\"\",(+DATE(YEAR(Tableau2[R2_4])+Tableau2[Validité_4],MONTH(Tableau2[R2_4]),DAY(Tableau2[R2_4]))))","v":"2029-02-27"},null,"HUILE",{"$f":"IF(ISERROR(VLOOKUP(Tableau2[Habilitation_5],Tableau1[],Tableau1[Validité2],0)),\"\",VLOOKUP(Tableau2[Habilitation_5],Tableau1[],Tableau1[Validité2],0))","v":0},null,"2013-07-04",{"$f":"IF(ISERROR(+DATE(YEAR(Tableau2[Dernier Recyclage_5])+Tableau2[Validité_5],MONTH(Tableau2[Dernier Recyclage_5]),DAY(Tableau2[Dernier Recyclage_5]))),\"\",(+DATE(YEAR(Tableau2[Dernier Recyclage_5])+Tableau2[Validité_5],MONTH(Tableau2[Dernier Recyclage_5]),DAY(Tableau2[Dernier Recyclage_5]))))","v":"2013-07-04"},{"$f":"IF(ISERROR(+DATE(YEAR(Tableau2[R1_5])+Tableau2[Validité_5],MONTH(Tableau2[R1_5]),DAY(Tableau2[R1_5]))),\"\",(+DATE(YEAR(Tableau2[R1_5])+Tableau2[Validité_5],MONTH(Tableau2[R1_5]),DAY(Tableau2[R1_5]))))","v":"2013-07-04"},{"$f":"IF(ISERROR(+DATE(YEAR(Tableau2[R2_5])+Tableau2[Validité_5],MONTH(Tableau2[R2_5]),DAY(Tableau2[R2_5]))),\"\",(+DATE(YEAR(Tableau2[R2_5])+Tableau2[Validité_5],MONTH(Tableau2[R2_5]),DAY(Tableau2[R2_5]))))","v":"2013-07-04"},null,null,{"$f":"IF(ISERROR(VLOOKUP(Tableau2[Habilitation_6],Tableau1[],Tableau1[Validité2],0)),\"\",VLOOKUP(Tableau2[Habilitation_6],Tableau1[],Tableau1[Validité2],0))","v":""},null,null,{"$f":"IF(ISERROR(+DATE(YEAR(Tableau2[Dernier Recyclage_6])+Tableau2[Validité_6],MONTH(Tableau2[Dernier Recyclage_6]),DAY(Tableau2[Dernier Recyclage_6]))),\"\",(+DATE(YEAR(Tableau2[Dernier Recyclage_6])+Tableau2[Validité_6],MONTH(Tableau2[Dernier Recyclage_6]),DAY(Tableau2[Dernier Recyclage_6]))))","v":""},{"$f":"IF(ISERROR(+DATE(YEAR(Tableau2[R1_6])+Tableau2[Validité_6],MONTH(Tableau2[R1_6]),DAY(Tableau2[R1_6]))),\"\",(+DATE(YEAR(Tableau2[R1_6])+Tableau2[Validité_6],MONTH(Tableau2[R1_6]),DAY(Tableau2[R1_6]))))","v":""},{"$f":"IF(ISERROR(+DATE(YEAR(Tableau2[R2_6])+Tableau2[Validité_6],MONTH(Tableau2[R2_6]),DAY(Tableau2[R2_6]))),\"\",(+DATE(YEAR(Tableau2[R2_6])+Tableau2[Validité_6],MONTH(Tableau2[R2_6]),DAY(Tableau2[R2_6]))))","v":""},null,"CAMIGRUINI",{"$f":"IF(ISERROR(VLOOKUP(Tableau2[Habilitation_7],Tableau1[],Tableau1[Validité2],0)),\"\",VLOOKUP(Tableau2[Habilitation_7],Tableau1[],Tableau1[Validité2],0))","v":5},null,"2012-11-09",{"$f":"IF(ISERROR(+DATE(YEAR(Tableau2[Dernier Recyclage_7])+Tableau2[Validité_7],MONTH(Tableau2[Dernier Recyclage_7]),DAY(Tableau2[Dernier Recyclage_7]))),\"\",(+DATE(YEAR(Tableau2[Dernier Recyclage_7])+Tableau2[Validité_7],MONTH(Tableau2[Dernier Recyclage_7]),DAY(Tableau2[Dernier Recyclage_7]))))","v":"2017-11-09"},{"$f":"IF(ISERROR(+DATE(YEAR(Tableau2[R1_7])+Tableau2[Validité_7],MONTH(Tableau2[R1_7]),DAY(Tableau2[R1_7]))),\"\",(+DATE(YEAR(Tableau2[R1_7])+Tableau2[Validité_7],MONTH(Tableau2[R1_7]),DAY(Tableau2[R1_7]))))","v":"2022-11-09"},{"$f":"IF(ISERROR(+DATE(YEAR(Tableau2[R2_7])+Tableau2[Validité_7],MONTH(Tableau2[R2_7]),DAY(Tableau2[R2_7]))),\"\",(+DATE(YEAR(Tableau2[R2_7])+Tableau2[Validité_7],MONTH(Tableau2[R2_7]),DAY(Tableau2[R2_7]))))","v":"2027-11-09"},null,"SICOBA",{"$f":"IF(ISERROR(VLOOKUP(Tableau2[Habilitation_8],Tableau1[],Tableau1[Validité2],0)),\"\",VLOOKUP(Tableau2[Habilitation_8],Tableau1[],Tableau1[Validité2],0))","v":2},null,null,{"$f":"IF(ISERROR(+DATE(YEAR(Tableau2[Dernier Recyclage_8])+Tableau2[Validité_8],MONTH(Tableau2[Dernier Recyclage_8]),DAY(Tableau2[Dernier Recyclage_8]))),\"\",(+DATE(YEAR(Tableau2[Dernier Recyclage_8])+Tableau2[Validité_8],MONTH(Tableau2[Dernier Recyclage_8]),DAY(Tableau2[Dernier Recyclage_8]))))","v":"1901-12-31"},{"$f":"IF(ISERROR(+DATE(YEAR(Tableau2[R1_76])+Tableau2[Validité_8],MONTH(Tableau2[R1_76]),DAY(Tableau2[R1_76]))),\"\",(+DATE(YEAR(Tableau2[R1_76])+Tableau2[Validité_8],MONTH(Tableau2[R1_76]),DAY(Tableau2[R1_76]))))","v":"1903-12-31"},{"$f":"IF(ISERROR(+DATE(YEAR(Tableau2[R3_14])+Tableau2[Validité_8],MONTH(Tableau2[R3_14]),DAY(Tableau2[Validité_8]))),\"\",(+DATE(YEAR(Tableau2[R3_14])+Tableau2[Validité_8],MONTH(Tableau2[R3_14]),DAY(Tableau2[R3_14]))))","v":"1905-12-31"},null,null,{"$f":"IF(ISERROR(VLOOKUP(Tableau2[R3_17],Tableau1[],Tableau1[Validité2],0)),\"\",VLOOKUP(Tableau2[R3_17],Tableau1[],Tableau1[Validité2],0))","v":""},null,null,{"$f":"IF(ISERROR(+DATE(YEAR(Tableau2[R3_20])+Tableau2[R3_18],MONTH(Tableau2[R3_20]),DAY(Tableau2[R3_20]))),\"\",(+DATE(YEAR(Tableau2[R3_20])+Tableau2[R3_18],MONTH(Tableau2[R3_20]),DAY(Tableau2[R3_20]))))","v":""},{"$f":"IF(ISERROR(+DATE(YEAR(Tableau2[R3_21])+Tableau2[R3_18],MONTH(Tableau2[R3_21]),DAY(Tableau2[R3_21]))),\"\",(+DATE(YEAR(Tableau2[R3_21])+Tableau2[R3_18],MONTH(Tableau2[R3_21]),DAY(Tableau2[R3_21]))))","v":""},{"$f":"IF(ISERROR(+DATE(YEAR(Tableau2[R3_22])+Tableau2[Validité_8],MONTH(Tableau2[R3_22]),DAY(Tableau2[R3_18]))),\"\",(+DATE(YEAR(Tableau2[R3_22])+Tableau2[Validité_8],MONTH(Tableau2[R3_22]),DAY(Tableau2[R3_22]))))","v":""},null,null,{"$f":"IF(ISERROR(VLOOKUP(Tableau2[R3_25],Tableau1[],Tableau1[Validité2],0)),\"\",VLOOKUP(Tableau2[R3_25],Tableau1[],Tableau1[Validité2],0))","v":""},null,null,{"$f":"IF(ISERROR(+DATE(YEAR(Tableau2[R3_28])+Tableau2[R3_26],MONTH(Tableau2[R3_28]),DAY(Tableau2[R3_28]))),\"\",(+DATE(YEAR(Tableau2[R3_28])+Tableau2[R3_26],MONTH(Tableau2[R3_28]),DAY(Tableau2[R3_28]))))","v":""},{"$f":"IF(ISERROR(+DATE(YEAR(Tableau2[R3_29])+Tableau2[R3_26],MONTH(Tableau2[R3_29]),DAY(Tableau2[R3_29]))),\"\",(+DATE(YEAR(Tableau2[R3_29])+Tableau2[R3_26],MONTH(Tableau2[R3_29]),DAY(Tableau2[R3_29]))))","v":""},{"$f":"IF(ISERROR(+DATE(YEAR(Tableau2[R3_30])+Tableau2[R3_26],MONTH(Tableau2[R3_30]),DAY(Tableau2[R3_26]))),\"\",(+DATE(YEAR(Tableau2[R3_30])+Tableau2[R3_26],MONTH(Tableau2[R3_30]),DAY(Tableau2[R3_30]))))","v":""}]
["NCa","Durand 11",null,null,3,"2009-09-22","2013-09-04",{"$f":"IF(ISERROR(+DATE(YEAR(Tableau2[Dernier Recyclage])+Tableau2[[#This Row],[Validité]],MONTH(Tableau2[Dernier Recyclage]),DAY(Tableau2[Dernier Recyclage]))),\"\",(+DATE(YEAR(Tableau2[Dernier Recyclage])+Tableau2[[#This Row],[Validité]],MONTH(Tableau2[Dernier Recyclage]),DAY(Tableau2[Dernier Recyclage]))))","v":"2016-09-04"},{"$f":"IF(ISERROR(+DATE(YEAR(Tableau2[[#This Row],[R1]])+Tableau2[[#This Row],[Validité]],MONTH(Tableau2[[#This Row],[R1]]),DAY(Tableau2[[#This Row],[R1]]))),\"\",(+DATE(YEAR(Tableau2[[#This Row],[R1]])+Tableau2[[#This Row],[Validité]],MONTH(Tableau2[[#This Row],[R1]]),DAY(Tableau2[[#This Row],[R1]]))))","v":"2019-09-04"},{"$f":"IF(ISERROR(+DATE(YEAR(Tableau2[[#This Row],[R2]])+Tableau2[[#This Row],[Validité]],MONTH(Tableau2[[#This Row],[R2]]),DAY(Tableau2[[#This Row],[R2]]))),\"\",(+DATE(YEAR(Tableau2[[#This Row],[R2]])+Tableau2[[#This Row],[Validité]],MONTH(Tableau2[[#This Row],[R2]]),DAY(Tableau2[[#This Row],[R2]]))))","v":"2022-09-04"},null,null,5,"2010-06-17","2010-06-17",{"$f":"IF(ISERROR(+DATE(YEAR(Tableau2[Dernier Recyclage_2])+Tableau2[Validité_2],MONTH(Tableau2[Dernier Recyclage_2]),DAY(Tableau2[Dernier Recyclage_2]))),\"\",(+DATE(YEAR(Tableau2[Dernier Recyclage_2])+Tableau2[Validité_2],MONTH(Tableau2[Dernier Recyclage_2]),DAY(Tableau2[Dernier Recyclage_2]))))","v":"2015-06-17"},{"$f":"IF(ISERROR(+DATE(YEAR(Tableau2[R1_2])+Tableau2[Validité_2],MONTH(Tableau2[R1_2]),DAY(Tableau2[R1_2]))),\"\",(+DATE(YEAR(Tableau2[R1_2])+Tableau2[Validité_2],MONTH(Tableau2[R1_2]),DAY(Tableau2[R1_2]))))","v":"2020-06-17"},{"$f":"IF(ISERROR(+DATE(YEAR(Tableau2[R2_2])+Tableau2[Validité_2],MONTH(Tableau2[R2_2]),DAY(Tableau2[R2_2]))),\"\",(+DATE(YEAR(Tableau2[R2_2])+Tableau2[Validité_2],MONTH(Tableau2[R2_2]),DAY(Tableau2[R2_2]))))","v":"2025-06-17"},null,null,3,"2011-05-19","2014-05-22",{"$f":"IF(ISERROR(+DATE(YEAR(Tableau2[Dernier Recyclage_3])+Tableau2[Validité_3],MONTH(Tableau2[Dernier Recyclage_3]),DAY(Tableau2[Dernier Recyclage_3]))),\"\",(+DATE(YEAR(Tableau2[Dernier Recyclage_3])+Tableau2[Validité_3],MONTH(Tableau2[Dernier Recyclage_3]),DAY(Tableau2[Dernier Recyclage_3]))))","v":"2017-05-22"},{"$f":"IF(ISERROR(+DATE(YEAR(Tableau2[R1_3])+Tableau2[Validité_3],MONTH(Tableau2[R1_3]),DAY(Tableau2[R1_3]))),\"\",(+DATE(YEAR(Tableau2[R1_3])+Tableau2[Validité_3],MONTH(Tableau2[R1_3]),DAY(Tableau2[R1_3]))))","v":"2020-05-22"},{"$f":"IF(ISERROR(+DATE(YEAR(Tableau2[R2_3])+Tableau2[Validité_3],MONTH(Tableau2[R2_3]),DAY(Tableau2[R2_3]))),\"\",(+DATE(YEAR(Tableau2[R2_3])+Tableau2[Validité_3],MONTH(Tableau2[R2_3]),DAY(Tableau2[R2_3]))))","v":"2023-05-22"},null,null,5,"2014-02-27","2014-02-27",{"$f":"IF(ISERROR(+DATE(YEAR(Tableau2[Dernier Recyclage_4])+Tableau2[Validité_4],MONTH(Tableau2[Dernier Recyclage_4]),DAY(Tableau2[Dernier Recyclage_4]))),\"\",(+DATE(YEAR(Tableau2[Dernier Recyclage_4])+Tableau2[Validité_4],MONTH(Tableau2[Dernier Recyclage_4]),DAY(Tableau2[Dernier Recyclage_4]))))","v":"2019-02-27"},{"$f":"IF(ISERROR(+DATE(YEAR(Tableau2[R1_4])+Tableau2[Validité_4],MONTH(Tableau2[R1_4]),DAY(Tableau2[R1_4]))),\"\",(+DATE(YEAR(Tableau2[R1_4])+Tableau2[Validité_4],MONTH(Tableau2[R1_4]),DAY(Tableau2[R1_4]))))","v":"2024-02-27"},{"$f":"IF(ISERROR(+DATE(YEAR(Tableau2[R2_4])+Tableau2[Validité_4],MONTH(Tableau2[R2_4]),DAY(Tableau2[R2_4]))),\"\",(+DATE(YEAR(Tableau2[R2_4])+Tableau2[Validité_4],MONTH(Tableau2[R2_4]),DAY(Tableau2[R2_4]))))","v":"2029-02-27"},null,null,{"$f":"IF(ISERROR(VLOOKUP(Tableau2[Habilitation_5],Tableau1[],Tableau1[Validité2],0)),\"\",VLOOKUP(Tableau2[Habilitation_5],Tableau1[],Tableau1[Validité2],0))","v":""},null,null,{"$f":"IF(ISERROR(+DATE(YEAR(Tableau2[Dernier Recyclage_5])+Tableau2[Validité_5],MONTH(Tableau2[Dernier Recyclage_5]),DAY(Tableau2[Dernier Recyclage_5]))),\"\",(+DATE(YEAR(Tableau2[Dernier Recyclage_5])+Tableau2[Validité_5],MONTH(Tableau2[Dernier Recyclage_5]),DAY(Tableau2[Dernier Recyclage_5]))))","v":""},{"$f":"IF(ISERROR(+DATE(YEAR(Tableau2[R1_5])+Tableau2[Validité_5],MONTH(Tableau2[R1_5]),DAY(Tableau2[R1_5]))),\"\",(+DATE(YEAR(Tableau2[R1_5])+Tableau2[Validité_5],MONTH(Tableau2[R1_5]),DAY(Tableau2[R1_5]))))","v":""},{"$f":"IF(ISERROR(+DATE(YEAR(Tableau2[R2_5])+Tableau2[Validité_5],MONTH(Tableau2[R2_5]),DAY(Tableau2[R2_5]))),\"\",(+DATE(YEAR(Tableau2[R2_5])+Tableau2[Validité_5],MONTH(Tableau2[R2_5]),DAY(Tableau2[R2_5]))))","v":""},null,null,{"$f":"IF(ISERROR(VLOOKUP(Tableau2[Habilitation_6],Tableau1[],Tableau1[Validité2],0)),\"\",VLOOKUP(Tableau2[Habilitation_6],Tableau1[],Tableau1[Validité2],0))","v":""},null,null,{"$f":"IF(ISERROR(+DATE(YEAR(Tableau2[Dernier Recyclage_6])+Tableau2[Validité_6],MONTH(Tableau2[Dernier Recyclage_6]),DAY(Tableau2[Dernier Recyclage_6]))),\"\",(+DATE(YEAR(Tableau2[Dernier Recyclage_6])+Tableau2[Validité_6],MONTH(Tableau2[Dernier Recyclage_6]),DAY(Tableau2[Dernier Recyclage_6]))))","v":""},{"$f":"IF(ISERROR(+DATE(YEAR(Tableau2[R1_6])+Tableau2[Validité_6],MONTH(Tableau2[R1_6]),DAY(Tableau2[R1_6]))),\"\",(+DATE(YEAR(Tableau2[R1_6])+Tableau2[Validité_6],MONTH(Tableau2[R1_6]),DAY(Tableau2[R1_6]))))","v":""},{"$f":"IF(ISERROR(+DATE(YEAR(Tableau2[R2_6])+Tableau2[Validité_6],MONTH(Tableau2[R2_6]),DAY(Tableau2[R2_6]))),\"\",(+DATE(YEAR(Tableau2[R2_6])+Tableau2[Validité_6],MONTH(Tableau2[R2_6]),DAY(Tableau2[R2_6]))))","v":""},null,null,{"$f":"IF(ISERROR(VLOOKUP(Tableau2[Habilitation_7],Tableau1[],Tableau1[Validité2],0)),\"\",VLOOKUP(Tableau2[Habilitation_7],Tableau1[],Tableau1[Validité2],0))","v":""},null,null,{"$f":"IF(ISERROR(+DATE(YEAR(Tableau2[Dernier Recyclage_7])+Tableau2[Validité_7],MONTH(Tableau2[Dernier Recyclage_7]),DAY(Tableau2[Dernier Recyclage_7]))),\"\",(+DATE(YEAR(Tableau2[Dernier Recyclage_7])+Tableau2[Validité_7],MONTH(Tableau2[Dernier Recyclage_7]),DAY(Tableau2[Dernier Recyclage_7]))))","v":""},{"$f":"IF(ISERROR(+DATE(YEAR(Tableau2[R1_7])+Tableau2[Validité_7],MONTH(Tableau2[R1_7]),DAY(Tableau2[R1_7]))),\"\",(+DATE(YEAR(Tableau2[R1_7])+Tableau2[Validité_7],MONTH(Tableau2[R1_7]),DAY(Tableau2[R1_7]))))","v":""},{"$f":"IF(ISERROR(+DATE(YEAR(Tableau2[R2_7])+Tableau2[Validité_7],MONTH(Tableau2[R2_7]),DAY(Tableau2[R2_7]))),\"\",(+DATE(YEAR(Tableau2[R2_7])+Tableau2[Validité_7],MONTH(Tableau2[R2_7]),DAY(Tableau2[R2_7]))))","v":""},null,null,{"$f":"IF(ISERROR(VLOOKUP(Tableau2[Habilitation_8],Tableau1[],Tableau1[Validité2],0)),\"\",VLOOKUP(Tableau2[Habilitation_8],Tableau1[],Tableau1[Validité2],0))","v":""},null,null,{"$f":"IF(ISERROR(+DATE(YEAR(Tableau2[Dernier Recyclage_8])+Tableau2[Validité_8],MONTH(Tableau2[Dernier Recyclage_8]),DAY(Tableau2[Dernier Recyclage_8]))),\"\",(+DATE(YEAR(Tableau2[Dernier Recyclage_8])+Tableau2[Validité_8],MONTH(Tableau2[Dernier Recyclage_8]),DAY(Tableau2[Dernier Recyclage_8]))))","v":""},{"$f":"IF(ISERROR(+DATE(YEAR(Tableau2[R1_76])+Tableau2[Validité_8],MONTH(Tableau2[R1_76]),DAY(Tableau2[R1_76]))),\"\",(+DATE(YEAR(Tableau2[R1_76])+Tableau2[Validité_8],MONTH(Tableau2[R1_76]),DAY(Tableau2[R1_76]))))","v":""},{"$f":"IF(ISERROR(+DATE(YEAR(Tableau2[R3_14])+Tableau2[Validité_8],MONTH(Tableau2[R3_14]),DAY(Tableau2[Validité_8]))),\"\",(+DATE(YEAR(Tableau2[R3_14])+Tableau2[Validité_8],MONTH(Tableau2[R3_14]),DAY(Tableau2[R3_14]))))","v":""},null,null,{"$f":"IF(ISERROR(VLOOKUP(Tableau2[R3_17],Tableau1[],Tableau1[Validité2],0)),\"\",VLOOKUP(Tableau2[R3_17],Tableau1[],Tableau1[Validité2],0))","v":""},null,null,{"$f":"IF(ISERROR(+DATE(YEAR(Tableau2[R3_20])+Tableau2[R3_18],MONTH(Tableau2[R3_20]),DAY(Tableau2[R3_20]))),\"\",(+DATE(YEAR(Tableau2[R3_20])+Tableau2[R3_18],MONTH(Tableau2[R3_20]),DAY(Tableau2[R3_20]))))","v":""},{"$f":"IF(ISERROR(+DATE(YEAR(Tableau2[R3_21])+Tableau2[R3_18],MONTH(Tableau2[R3_21]),DAY(Tableau2[R3_21]))),\"\",(+DATE(YEAR(Tableau2[R3_21])+Tableau2[R3_18],MONTH(Tableau2[R3_21]),DAY(Tableau2[R3_21]))))","v":""},{"$f":"IF(ISERROR(+DATE(YEAR(Tableau2[R3_22])+Tableau2[Validité_8],MONTH(Tableau2[R3_22]),DAY(Tableau2[R3_18]))),\"\",(+DATE(YEAR(Tableau2[R3_22])+Tableau2[Validité_8],MONTH(Tableau2[R3_22]),DAY(Tableau2[R3_22]))))","v":""},null,null,{"$f":"IF(ISERROR(VLOOKUP(Tableau2[R3_25],Tableau1[],Tableau1[Validité2],0)),\"\",VLOOKUP(Tableau2[R3_25],Tableau1[],Tableau1[Validité2],0))","v":""},null,null,{"$f":"IF(ISERROR(+DATE(YEAR(Tableau2[R3_28])+Tableau2[R3_26],MONTH(Tableau2[R3_28]),DAY(Tableau2[R3_28]))),\"\",(+DATE(YEAR(Tableau2[R3_28])+Tableau2[R3_26],MONTH(Tableau2[R3_28]),DAY(Tableau2[R3_28]))))","v":""},{"$f":"IF(ISERROR(+DATE(YEAR(Tableau2[R3_29])+Tableau2[R3_26],MONTH(Tableau2[R3_29]),DAY(Tableau2[R3_29]))),\"\",(+DATE(YEAR(Tableau2[R3_29])+Tableau2[R3_26],MONTH(Tableau2[R3_29]),DAY(Tableau2[R3_29]))))","v":""},{"$f":"IF(ISERROR(+DATE(YEAR(Tableau2[R3_30])+Tableau2[R3_26],MONTH(Tableau2[R3_30]),DAY(Tableau2[R3_26]))),\"\",(+DATE(YEAR(Tableau2[R3_30])+Tableau2[R3_26],MONTH(Tableau2[R3_30]),DAY(Tableau2[R3_30]))))","v":""}]
["RLa","Durand 12",null,null,3,"2009-05-28","2012-11-06",{"$f":"IF(ISERROR(+DATE(YEAR(Tableau2[Dernier Recyclage])+Tableau2[[#This Row],[Validité]],MONTH(Tableau2[Dernier Recyclage]),DAY(Tableau2[Dernier Recyclage]))),\"\",(+DATE(YEAR(Tableau2[Dernier Recyclage])+Tableau2[[#This Row],[Validité]],MONTH(Tableau2[Dernier Recyclage]),DAY(Tableau2[Dernier Recyclage]))))","v":"2015-11-06"},{"$f":"IF(ISERROR(+DATE(YEAR(Tableau2[[#This Row],[R1]])+Tableau2[[#This Row],[Validité]],MONTH(Tableau2[[#This Row],[R1]]),DAY(Tableau2[[#This Row],[R1]]))),\"\",(+DATE(YEAR(Tableau2[[#This Row],[R1]])+Tableau2[[#This Row],[Validité]],MONTH(Tableau2[[#This Row],[R1]]),DAY(Tableau2[[#This Row],[R1]]))))","v":"2018-11-06"},{"$f":"IF(ISERROR(+DATE(YEAR(Tableau2[[#This Row],[R2]])+Tableau2[[#This Row],[Validité]],MONTH(Tableau2[[#This Row],[R2]]),DAY(Tableau2[[#This Row],[R2]]))),\"\",(+DATE(YEAR(Tableau2[[#This Row],[R2]])+Tableau2[[#This Row],[Validité]],MONTH(Tableau2[[#This Row],[R2]]),DAY(Tableau2[[#This Row],[R2]]))))","v":"2021-11-06"},null,null,5,"2010-06-17","2010-06-17",{"$f":"IF(ISERROR(+DATE(YEAR(Tableau2[Dernier Recyclage_2])+Tableau2[Validité_2],MONTH(Tableau2[Dernier Recyclage_2]),DAY(Tableau2[Dernier Recyclage_2]))),\"\",(+DATE(YEAR(Tableau2[Dernier Recyclage_2])+Tableau2[Validité_2],MONTH(Tableau2[Dernier Recyclage_2]),DAY(Tableau2[Dernier Recyclage_2]))))","v":"2015-06-17"},{"$f":"IF(ISERROR(+DATE(YEAR(Tableau2[R1_2])+Tableau2[Validité_2],MONTH(Tableau2[R1_2]),DAY(Tableau2[R1_2]))),\"\",(+DATE(YEAR(Tableau2[R1_2])+Tableau2[Validité_2],MONTH(Tableau2[R1_2]),DAY(Tableau2[R1_2]))))","v":"2020-06-17"},{"$f":"IF(ISERROR(+DATE(YEAR(Tableau2[R2_2])+Tableau2[Validité_2],MONTH(Tableau2[R2_2]),DAY(Tableau2[R2_2]))),\"\",(+DATE(YEAR(Tableau2[R2_2])+Tableau2[Validité_2],MONTH(Tableau2[R2_2]),DAY(Tableau2[R2_2]))))","v":"2025-06-17"},null,null,3,"2014-05-15","2014-05-15",{"$f":"IF(ISERROR(+DATE(YEAR(Tableau2[Dernier Recyclage_3])+Tableau2[Validité_3],MONTH(Tableau2[Dernier Recyclage_3]),DAY(Tableau2[Dernier Recyclage_3]))),\"\",(+DATE(YEAR(Tableau2[Dernier Recyclage_3])+Tableau2[Validité_3],MONTH(Tableau2[Dernier Recyclage_3]),DAY(Tableau2[Dernier Recyclage_3]))))","v":"2017-05-15"},{"$f":"IF(ISERROR(+DATE(YEAR(Tableau2[R1_3])+Tableau2[Validité_3],MONTH(Tableau2[R1_3]),DAY(Tableau2[R1_3]))),\"\",(+DATE(YEAR(Tableau2[R1_3])+Tableau2[Validité_3],MONTH(Tableau2[R1_3]),DAY(Tableau2[R1_3]))))","v":"2020-05-15"},{"$f":"IF(ISERROR(+DATE(YEAR(Tableau2[R2_3])+Tableau2[Validité_3],MONTH(Tableau2[R2_3]),DAY(Tableau2[R2_3]))),\"\",(+DATE(YEAR(Tableau2[R2_3])+Tableau2[Validité_3],MONTH(Tableau2[R2_3]),DAY(Tableau2[R2_3]))))","v":"2023-05-15"},null,null,5,"2014-02-27","2014-02-27",{"$f":"IF(ISERROR(+DATE(YEAR(Tableau2[Dernier Recyclage_4])+Tableau2[Validité_4],MONTH(Tableau2[Dernier Recyclage_4]),DAY(Tableau2[Dernier Recyclage_4]))),\"\",(+DATE(YEAR(Tableau2[Dernier Recyclage_4])+Tableau2[Validité_4],MONTH(Tableau2[Dernier Recyclage_4]),DAY(Tableau2[Dernier Recyclage_4]))))","v":"2019-02-27"},{"$f":"IF(ISERROR(+DATE(YEAR(Tableau2[R1_4])+Tableau2[Validité_4],MONTH(Tableau2[R1_4]),DAY(Tableau2[R1_4]))),\"\",(+DATE(YEAR(Tableau2[R1_4])+Tableau2[Validité_4],MONTH(Tableau2[R1_4]),DAY(Tableau2[R1_4]))))","v":"2024-02-27"},{"$f":"IF(ISERROR(+DATE(YEAR(Tableau2[R2_4])+Tableau2[Validité_4],MONTH(Tableau2[R2_4]),DAY(Tableau2[R2_4]))),\"\",(+DATE(YEAR(Tableau2[R2_4])+Tableau2[Validité_4],MONTH(Tableau2[R2_4]),DAY(Tableau2[R2_4]))))","v":"2029-02-27"},null,null,{"$f":"IF(ISERROR(VLOOKUP(Tableau2[Habilitation_5],Tableau1[],Tableau1[Validité2],0)),\"\",VLOOKUP(Tableau2[Habilitation_5],Tableau1[],Tableau1[Validité2],0))","v":""},null,null,{"$f":"IF(ISERROR(+DATE(YEAR(Tableau2[Dernier Recyclage_5])+Tableau2[Validité_5],MONTH(Tableau2[Dernier Recyclage_5]),DAY(Tableau2[Dernier Recyclage_5]))),\"\",(+DATE(YEAR(Tableau2[Dernier Recyclage_5])+Tableau2[Validité_5],MONTH(Tableau2[Dernier Recyclage_5]),DAY(Tableau2[Dernier Recyclage_5]))))","v":""},{"$f":"IF(ISERROR(+DATE(YEAR(Tableau2[R1_5])+Tableau2[Validité_5],MONTH(Tableau2[R1_5]),DAY(Tableau2[R1_5]))),\"\",(+DATE(YEAR(Tableau2[R1_5])+Tableau2[Validité_5],MONTH(Tableau2[R1_5]),DAY(Tableau2[R1_5]))))","v":""},{"$f":"IF(ISERROR(+DATE(YEAR(Tableau2[R2_5])+Tableau2[Validité_5],MONTH(Tableau2[R2_5]),DAY(Tableau2[R2_5]))),\"\",(+DATE(YEAR(Tableau2[R2_5])+Tableau2[Validité_5],MONTH(Tableau2[R2_5]),DAY(Tableau2[R2_5]))))","v":""},null,null,{"$f":"IF(ISERROR(VLOOKUP(Tableau2[Habilitation_6],Tableau1[],Tableau1[Validité2],0)),\"\",VLOOKUP(Tableau2[Habilitation_6],Tableau1[],Tableau1[Validité2],0))","v":""},null,null,{"$f":"IF(ISERROR(+DATE(YEAR(Tableau2[Dernier Recyclage_6])+Tableau2[Validité_6],MONTH(Tableau2[Dernier Recyclage_6]),DAY(Tableau2[Dernier Recyclage_6]))),\"\",(+DATE(YEAR(Tableau2[Dernier Recyclage_6])+Tableau2[Validité_6],MONTH(Tableau2[Dernier Recyclage_6]),DAY(Tableau2[Dernier Recyclage_6]))))","v":""},{"$f":"IF(ISERROR(+DATE(YEAR(Tableau2[R1_6])+Tableau2[Validité_6],MONTH(Tableau2[R1_6]),DAY(Tableau2[R1_6]))),\"\",(+DATE(YEAR(Tableau2[R1_6])+Tableau2[Validité_6],MONTH(Tableau2[R1_6]),DAY(Tableau2[R1_6]))))","v":""},{"$f":"IF(ISERROR(+DATE(YEAR(Tableau2[R2_6])+Tableau2[Validité_6],MONTH(Tableau2[R2_6]),DAY(Tableau2[R2_6]))),\"\",(+DATE(YEAR(Tableau2[R2_6])+Tableau2[Validité_6],MONTH(Tableau2[R2_6]),DAY(Tableau2[R2_6]))))","v":""},null,null,{"$f":"IF(ISERROR(VLOOKUP(Tableau2[Habilitation_7],Tableau1[],Tableau1[Validité2],0)),\"\",VLOOKUP(Tableau2[Habilitation_7],Tableau1[],Tableau1[Validité2],0))","v":""},null,null,{"$f":"IF(ISERROR(+DATE(YEAR(Tableau2[Dernier Recyclage_7])+Tableau2[Validité_7],MONTH(Tableau2[Dernier Recyclage_7]),DAY(Tableau2[Dernier Recyclage_7]))),\"\",(+DATE(YEAR(Tableau2[Dernier Recyclage_7])+Tableau2[Validité_7],MONTH(Tableau2[Dernier Recyclage_7]),DAY(Tableau2[Dernier Recyclage_7]))))","v":""},{"$f":"IF(ISERROR(+DATE(YEAR(Tableau2[R1_7])+Tableau2[Validité_7],MONTH(Tableau2[R1_7]),DAY(Tableau2[R1_7]))),\"\",(+DATE(YEAR(Tableau2[R1_7])+Tableau2[Validité_7],MONTH(Tableau2[R1_7]),DAY(Tableau2[R1_7]))))","v":""},{"$f":"IF(ISERROR(+DATE(YEAR(Tableau2[R2_7])+Tableau2[Validité_7],MONTH(Tableau2[R2_7]),DAY(Tableau2[R2_7]))),\"\",(+DATE(YEAR(Tableau2[R2_7])+Tableau2[Validité_7],MONTH(Tableau2[R2_7]),DAY(Tableau2[R2_7]))))","v":""},null,null,{"$f":"IF(ISERROR(VLOOKUP(Tableau2[Habilitation_8],Tableau1[],Tableau1[Validité2],0)),\"\",VLOOKUP(Tableau2[Habilitation_8],Tableau1[],Tableau1[Validité2],0))","v":""},null,null,{"$f":"IF(ISERROR(+DATE(YEAR(Tableau2[Dernier Recyclage_8])+Tableau2[Validité_8],MONTH(Tableau2[Dernier Recyclage_8]),DAY(Tableau2[Dernier Recyclage_8]))),\"\",(+DATE(YEAR(Tableau2[Dernier Recyclage_8])+Tableau2[Validité_8],MONTH(Tableau2[Dernier Recyclage_8]),DAY(Tableau2[Dernier Recyclage_8]))))","v":""},{"$f":"IF(ISERROR(+DATE(YEAR(Tableau2[R1_76])+Tableau2[Validité_8],MONTH(Tableau2[R1_76]),DAY(Tableau2[R1_76]))),\"\",(+DATE(YEAR(Tableau2[R1_76])+Tableau2[Validité_8],MONTH(Tableau2[R1_76]),DAY(Tableau2[R1_76]))))","v":""},{"$f":"IF(ISERROR(+DATE(YEAR(Tableau2[R3_14])+Tableau2[Validité_8],MONTH(Tableau2[R3_14]),DAY(Tableau2[Validité_8]))),\"\",(+DATE(YEAR(Tableau2[R3_14])+Tableau2[Validité_8],MONTH(Tableau2[R3_14]),DAY(Tableau2[R3_14]))))","v":""},null,null,{"$f":"IF(ISERROR(VLOOKUP(Tableau2[R3_17],Tableau1[],Tableau1[Validité2],0)),\"\",VLOOKUP(Tableau2[R3_17],Tableau1[],Tableau1[Validité2],0))","v":""},null,null,{"$f":"IF(ISERROR(+DATE(YEAR(Tableau2[R3_20])+Tableau2[R3_18],MONTH(Tableau2[R3_20]),DAY(Tableau2[R3_20]))),\"\",(+DATE(YEAR(Tableau2[R3_20])+Tableau2[R3_18],MONTH(Tableau2[R3_20]),DAY(Tableau2[R3_20]))))","v":""},{"$f":"IF(ISERROR(+DATE(YEAR(Tableau2[R3_21])+Tableau2[R3_18],MONTH(Tableau2[R3_21]),DAY(Tableau2[R3_21]))),\"\",(+DATE(YEAR(Tableau2[R3_21])+Tableau2[R3_18],MONTH(Tableau2[R3_21]),DAY(Tableau2[R3_21]))))","v":""},{"$f":"IF(ISERROR(+DATE(YEAR(Tableau2[R3_22])+Tableau2[Validité_8],MONTH(Tableau2[R3_22]),DAY(Tableau2[R3_18]))),\"\",(+DATE(YEAR(Tableau2[R3_22])+Tableau2[Validité_8],MONTH(Tableau2[R3_22]),DAY(Tableau2[R3_22]))))","v":""},null,null,{"$f":"IF(ISERROR(VLOOKUP(Tableau2[R3_25],Tableau1[],Tableau1[Validité2],0)),\"\",VLOOKUP(Tableau2[R3_25],Tableau1[],Tableau1[Validité2],0))","v":""},null,null,{"$f":"IF(ISERROR(+DATE(YEAR(Tableau2[R3_28])+Tableau2[R3_26],MONTH(Tableau2[R3_28]),DAY(Tableau2[R3_28]))),\"\",(+DATE(YEAR(Tableau2[R3_28])+Tableau2[R3_26],MONTH(Tableau2[R3_28]),DAY(Tableau2[R3_28]))))","v":""},{"$f":"IF(ISERROR(+DATE(YEAR(Tableau2[R3_29])+Tableau2[R3_26],MONTH(Tableau2[R3_29]),DAY(Tableau2[R3_29]))),\"\",(+DATE(YEAR(Tableau2[R3_29])+Tableau2[R3_26],MONTH(Tableau2[R3_29]),DAY(Tableau2[R3_29]))))","v":""},{"$f":"IF(ISERROR(+DATE(YEAR(Tableau2[R3_30])+Tableau2[R3_26],MONTH(Tableau2[R3_30]),DAY(Tableau2[R3_26]))),\"\",(+DATE(YEAR(Tableau2[R3_30])+Tableau2[R3_26],MONTH(Tableau2[R3_30]),DAY(Tableau2[R3_30]))))","v":""}]
["ECr","Durand 13",null,null,3,null,"2014-09-10",{"$f":"IF(ISERROR(+DATE(YEAR(Tableau2[Dernier Recyclage])+Tableau2[[#This Row],[Validité]],MONTH(Tableau2[Dernier Recyclage]),DAY(Tableau2[Dernier Recyclage]))),\"\",(+DATE(YEAR(Tableau2[Dernier Recyclage])+Tableau2[[#This Row],[Validité]],MONTH(Tableau2[Dernier Recyclage]),DAY(Tableau2[Dernier Recyclage]))))","v":"2017-09-10"},{"$f":"IF(ISERROR(+DATE(YEAR(Tableau2[[#This Row],[R1]])+Tableau2[[#This Row],[Validité]],MONTH(Tableau2[[#This Row],[R1]]),DAY(Tableau2[[#This Row],[R1]]))),\"\",(+DATE(YEAR(Tableau2[[#This Row],[R1]])+Tableau2[[#This Row],[Validité]],MONTH(Tableau2[[#This Row],[R1]]),DAY(Tableau2[[#This Row],[R1]]))))","v":"2020-09-10"},{"$f":"IF(ISERROR(+DATE(YEAR(Tableau2[[#This Row],[R2]])+Tableau2[[#This Row],[Validité]],MONTH(Tableau2[[#This Row],[R2]]),DAY(Tableau2[[#This Row],[R2]]))),\"\",(+DATE(YEAR(Tableau2[[#This Row],[R2]])+Tableau2[[#This Row],[Validité]],MONTH(Tableau2[[#This Row],[R2]]),DAY(Tableau2[[#This Row],[R2]]))))","v":"2023-09-10"},null,null,5,null,"?",{"$f":"IF(ISERROR(+DATE(YEAR(Tableau2[Dernier Recyclage_2])+Tableau2[Validité_2],MONTH(Tableau2[Dernier Recyclage_2]),DAY(Tableau2[Dernier Recyclage_2]))),\"\",(+DATE(YEAR(Tableau2[Dernier Recyclage_2])+Tableau2[Validité_2],MONTH(Tableau2[Dernier Recyclage_2]),DAY(Tableau2[Dernier Recyclage_2]))))","v":""},{"$f":"IF(ISERROR(+DATE(YEAR(Tableau2[R1_2])+Tableau2[Validité_2],MONTH(Tableau2[R1_2]),DAY(Tableau2[R1_2]))),\"\",(+DATE(YEAR(Tableau2[R1_2])+Tableau2[Validité_2],MONTH(Tableau2[R1_2]),DAY(Tableau2[R1_2]))))","v":""},{"$f":"IF(ISERROR(+DATE(YEAR(Tableau2[R2_2])+Tableau2[Validité_2],MONTH(Tableau2[R2_2]),DAY(Tableau2[R2_2]))),\"\",(+DATE(YEAR(Tableau2[R2_2])+Tableau2[Validité_2],MONTH(Tableau2[R2_2]),DAY(Tableau2[R2_2]))))","v":""},null,null,3,null,"?",{"$f":"IF(ISERROR(+DATE(YEAR(Tableau2[Dernier Recyclage_3])+Tableau2[Validité_3],MONTH(Tableau2[Dernier Recyclage_3]),DAY(Tableau2[Dernier Recyclage_3]))),\"\",(+DATE(YEAR(Tableau2[Dernier Recyclage_3])+Tableau2[Validité_3],MONTH(Tableau2[Dernier Recyclage_3]),DAY(Tableau2[Dernier Recyclage_3]))))","v":""},{"$f":"IF(ISERROR(+DATE(YEAR(Tableau2[R1_3])+Tableau2[Validité_3],MONTH(Tableau2[R1_3]),DAY(Tableau2[R1_3]))),\"\",(+DATE(YEAR(Tableau2[R1_3])+Tableau2[Validité_3],MONTH(Tableau2[R1_3]),DAY(Tableau2[R1_3]))))","v":""},{"$f":"IF(ISERROR(+DATE(YEAR(Tableau2[R2_3])+Tableau2[Validité_3],MONTH(Tableau2[R2_3]),DAY(Tableau2[R2_3]))),\"\",(+DATE(YEAR(Tableau2[R2_3])+Tableau2[Validité_3],MONTH(Tableau2[R2_3]),DAY(Tableau2[R2_3]))))","v":""},null,null,5,"2009-03-03","2009-03-03",{"$f":"IF(ISERROR(+DATE(YEAR(Tableau2[Dernier Recyclage_4])+Tableau2[Validité_4],MONTH(Tableau2[Dernier Recyclage_4]),DAY(Tableau2[Dernier Recyclage_4]))),\"\",(+DATE(YEAR(Tableau2[Dernier Recyclage_4])+Tableau2[Validité_4],MONTH(Tableau2[Dernier Recyclage_4]),DAY(Tableau2[Dernier Recyclage_4]))))","v":"2014-03-03"},{"$f":"IF(ISERROR(+DATE(YEAR(Tableau2[R1_4])+Tableau2[Validité_4],MONTH(Tableau2[R1_4]),DAY(Tableau2[R1_4]))),\"\",(+DATE(YEAR(Tableau2[R1_4])+Tableau2[Validité_4],MONTH(Tableau2[R1_4]),DAY(Tableau2[R1_4]))))","v":"2019-03-03"},{"$f":"IF(ISERROR(+DATE(YEAR(Tableau2[R2_4])+Tableau2[Validité_4],MONTH(Tableau2[R2_4]),DAY(Tableau2[R2_4]))),\"\",(+DATE(YEAR(Tableau2[R2_4])+Tableau2[Validité_4],MONTH(Tableau2[R2_4]),DAY(Tableau2[R2_4]))))","v":"2024-03-03"},null,"HUILE",{"$f":"IF(ISERROR(VLOOKUP(Tableau2[Habilitation_5],Tableau1[],Tableau1[Validité2],0)),\"\",VLOOKUP(Tableau2[Habilitation_5],Tableau1[],Tableau1[Validité2],0))","v":0},null,"?",{"$f":"IF(ISERROR(+DATE(YEAR(Tableau2[Dernier Recyclage_5])+Tableau2[Validité_5],MONTH(Tableau2[Dernier Recyclage_5]),DAY(Tableau2[Dernier Recyclage_5]))),\"\",(+DATE(YEAR(Tableau2[Dernier Recyclage_5])+Tableau2[Validité_5],MONTH(Tableau2[Dernier Recyclage_5]),DAY(Tableau2[Dernier Recyclage_5]))))","v":""},{"$f":"IF(ISERROR(+DATE(YEAR(Tableau2[R1_5])+Tableau2[Validité_5],MONTH(Tableau2[R1_5]),DAY(Tableau2[R1_5]))),\"\",(+DATE(YEAR(Tableau2[R1_5])+Tableau2[Validité_5],MONTH(Tableau2[R1_5]),DAY(Tableau2[R1_5]))))","v":""},{"$f":"IF(ISERROR(+DATE(YEAR(Tableau2[R2_5])+Tableau2[Validité_5],MONTH(Tableau2[R2_5]),DAY(Tableau2[R2_5]))),\"\",(+DATE(YEAR(Tableau2[R2_5])+Tableau2[Validité_5],MONTH(Tableau2[R2_5]),DAY(Tableau2[R2_5]))))","v":""},null,null,{"$f":"IF(ISERROR(VLOOKUP(Tableau2[Habilitation_6],Tableau1[],Tableau1[Validité2],0)),\"\",VLOOKUP(Tableau2[Habilitation_6],Tableau1[],Tableau1[Validité2],0))","v":""},null,null,{"$f":"IF(ISERROR(+DATE(YEAR(Tableau2[Dernier Recyclage_6])+Tableau2[Validité_6],MONTH(Tableau2[Dernier Recyclage_6]),DAY(Tableau2[Dernier Recyclage_6]))),\"\",(+DATE(YEAR(Tableau2[Dernier Recyclage_6])+Tableau2[Validité_6],MONTH(Tableau2[Dernier Recyclage_6]),DAY(Tableau2[Dernier Recyclage_6]))))","v":""},{"$f":"IF(ISERROR(+DATE(YEAR(Tableau2[R1_6])+Tableau2[Validité_6],MONTH(Tableau2[R1_6]),DAY(Tableau2[R1_6]))),\"\",(+DATE(YEAR(Tableau2[R1_6])+Tableau2[Validité_6],MONTH(Tableau2[R1_6]),DAY(Tableau2[R1_6]))))","v":""},{"$f":"IF(ISERROR(+DATE(YEAR(Tableau2[R2_6])+Tableau2[Validité_6],MONTH(Tableau2[R2_6]),DAY(Tableau2[R2_6]))),\"\",(+DATE(YEAR(Tableau2[R2_6])+Tableau2[Validité_6],MONTH(Tableau2[R2_6]),DAY(Tableau2[R2_6]))))","v":""},null,null,{"$f":"IF(ISERROR(VLOOKUP(Tableau2[Habilitation_7],Tableau1[],Tableau1[Validité2],0)),\"\",VLOOKUP(Tableau2[Habilitation_7],Tableau1[],Tableau1[Validité2],0))","v":""},null,null,{"$f":"IF(ISERROR(+DATE(YEAR(Tableau2[Dernier Recyclage_7])+Tableau2[Validité_7],MONTH(Tableau2[Dernier Recyclage_7]),DAY(Tableau2[Dernier Recyclage_7]))),\"\",(+DATE(YEAR(Tableau2[Dernier Recyclage_7])+Tableau2[Validité_7],MONTH(Tableau2[Dernier Recyclage_7]),DAY(Tableau2[Dernier Recyclage_7]))))","v":""},{"$f":"IF(ISERROR(+DATE(YEAR(Tableau2[R1_7])+Tableau2[Validité_7],MONTH(Tableau2[R1_7]),DAY(Tableau2[R1_7]))),\"\",(+DATE(YEAR(Tableau2[R1_7])+Tableau2[Validité_7],MONTH(Tableau2[R1_7]),DAY(Tableau2[R1_7]))))","v":""},{"$f":"IF(ISERROR(+DATE(YEAR(Tableau2[R2_7])+Tableau2[Validité_7],MONTH(Tableau2[R2_7]),DAY(Tableau2[R2_7]))),\"\",(+DATE(YEAR(Tableau2[R2_7])+Tableau2[Validité_7],MONTH(Tableau2[R2_7]),DAY(Tableau2[R2_7]))))","v":""},null,null,{"$f":"IF(ISERROR(VLOOKUP(Tableau2[Habilitation_8],Tableau1[],Tableau1[Validité2],0)),\"\",VLOOKUP(Tableau2[Habilitation_8],Tableau1[],Tableau1[Validité2],0))","v":""},null,null,{"$f":"IF(ISERROR(+DATE(YEAR(Tableau2[Dernier Recyclage_8])+Tableau2[Validité_8],MONTH(Tableau2[Dernier Recyclage_8]),DAY(Tableau2[Dernier Recyclage_8]))),\"\",(+DATE(YEAR(Tableau2[Dernier Recyclage_8])+Tableau2[Validité_8],MONTH(Tableau2[Dernier Recyclage_8]),DAY(Tableau2[Dernier Recyclage_8]))))","v":""},{"$f":"IF(ISERROR(+DATE(YEAR(Tableau2[R1_76])+Tableau2[Validité_8],MONTH(Tableau2[R1_76]),DAY(Tableau2[R1_76]))),\"\",(+DATE(YEAR(Tableau2[R1_76])+Tableau2[Validité_8],MONTH(Tableau2[R1_76]),DAY(Tableau2[R1_76]))))","v":""},{"$f":"IF(ISERROR(+DATE(YEAR(Tableau2[R3_14])+Tableau2[Validité_8],MONTH(Tableau2[R3_14]),DAY(Tableau2[Validité_8]))),\"\",(+DATE(YEAR(Tableau2[R3_14])+Tableau2[Validité_8],MONTH(Tableau2[R3_14]),DAY(Tableau2[R3_14]))))","v":""},null,null,{"$f":"IF(ISERROR(VLOOKUP(Tableau2[R3_17],Tableau1[],Tableau1[Validité2],0)),\"\",VLOOKUP(Tableau2[R3_17],Tableau1[],Tableau1[Validité2],0))","v":""},null,null,{"$f":"IF(ISERROR(+DATE(YEAR(Tableau2[R3_20])+Tableau2[R3_18],MONTH(Tableau2[R3_20]),DAY(Tableau2[R3_20]))),\"\",(+DATE(YEAR(Tableau2[R3_20])+Tableau2[R3_18],MONTH(Tableau2[R3_20]),DAY(Tableau2[R3_20]))))","v":""},{"$f":"IF(ISERROR(+DATE(YEAR(Tableau2[R3_21])+Tableau2[R3_18],MONTH(Tableau2[R3_21]),DAY(Tableau2[R3_21]))),\"\",(+DATE(YEAR(Tableau2[R3_21])+Tableau2[R3_18],MONTH(Tableau2[R3_21]),DAY(Tableau2[R3_21]))))","v":""},{"$f":"IF(ISERROR(+DATE(YEAR(Tableau2[R3_22])+Tableau2[Validité_8],MONTH(Tableau2[R3_22]),DAY(Tableau2[R3_18]))),\"\",(+DATE(YEAR(Tableau2[R3_22])+Tableau2[Validité_8],MONTH(Tableau2[R3_22]),DAY(Tableau2[R3_22]))))","v":""},null,null,{"$f":"IF(ISERROR(VLOOKUP(Tableau2[R3_25],Tableau1[],Tableau1[Validité2],0)),\"\",VLOOKUP(Tableau2[R3_25],Tableau1[],Tableau1[Validité2],0))","v":""},null,null,{"$f":"IF(ISERROR(+DATE(YEAR(Tableau2[R3_28])+Tableau2[R3_26],MONTH(Tableau2[R3_28]),DAY(Tableau2[R3_28]))),\"\",(+DATE(YEAR(Tableau2[R3_28])+Tableau2[R3_26],MONTH(Tableau2[R3_28]),DAY(Tableau2[R3_28]))))","v":""},{"$f":"IF(ISERROR(+DATE(YEAR(Tableau2[R3_29])+Tableau2[R3_26],MONTH(Tableau2[R3_29]),DAY(Tableau2[R3_29]))),\"\",(+DATE(YEAR(Tableau2[R3_29])+Tableau2[R3_26],MONTH(Tableau2[R3_29]),DAY(Tableau2[R3_29]))))","v":""},{"$f":"IF(ISERROR(+DATE(YEAR(Tableau2[R3_30])+Tableau2[R3_26],MONTH(Tableau2[R3_30]),DAY(Tableau2[R3_26]))),\"\",(+DATE(YEAR(Tableau2[R3_30])+Tableau2[R3_26],MONTH(Tableau2[R3_30]),DAY(Tableau2[R3_30]))))","v":""}]
["PBo","Durand 14",null,null,3,"2009-09-22","2013-05-17",{"$f":"IF(ISERROR(+DATE(YEAR(Tableau2[Dernier Recyclage])+Tableau2[[#This Row],[Validité]],MONTH(Tableau2[Dernier Recyclage]),DAY(Tableau2[Dernier Recyclage]))),\"\",(+DATE(YEAR(Tableau2[Dernier Recyclage])+Tableau2[[#This Row],[Validité]],MONTH(Tableau2[Dernier Recyclage]),DAY(Tableau2[Dernier Recyclage]))))","v":"2016-05-17"},{"$f":"IF(ISERROR(+DATE(YEAR(Tableau2[[#This Row],[R1]])+Tableau2[[#This Row],[Validité]],MONTH(Tableau2[[#This Row],[R1]]),DAY(Tableau2[[#This Row],[R1]]))),\"\",(+DATE(YEAR(Tableau2[[#This Row],[R1]])+Tableau2[[#This Row],[Validité]],MONTH(Tableau2[[#This Row],[R1]]),DAY(Tableau2[[#This Row],[R1]]))))","v":"2019-05-17"},{"$f":"IF(ISERROR(+DATE(YEAR(Tableau2[[#This Row],[R2]])+Tableau2[[#This Row],[Validité]],MONTH(Tableau2[[#This Row],[R2]]),DAY(Tableau2[[#This Row],[R2]]))),\"\",(+DATE(YEAR(Tableau2[[#This Row],[R2]])+Tableau2[[#This Row],[Validité]],MONTH(Tableau2[[#This Row],[R2]]),DAY(Tableau2[[#This Row],[R2]]))))","v":"2022-05-17"},null,null,5,"2014-05-06","2014-05-06",{"$f":"IF(ISERROR(+DATE(YEAR(Tableau2[Dernier Recyclage_2])+Tableau2[Validité_2],MONTH(Tableau2[Dernier Recyclage_2]),DAY(Tableau2[Dernier Recyclage_2]))),\"\",(+DATE(YEAR(Tableau2[Dernier Recyclage_2])+Tableau2[Validité_2],MONTH(Tableau2[Dernier Recyclage_2]),DAY(Tableau2[Dernier Recyclage_2]))))","v":"2019-05-06"},{"$f":"IF(ISERROR(+DATE(YEAR(Tableau2[R1_2])+Tableau2[Validité_2],MONTH(Tableau2[R1_2]),DAY(Tableau2[R1_2]))),\"\",(+DATE(YEAR(Tableau2[R1_2])+Tableau2[Validité_2],MONTH(Tableau2[R1_2]),DAY(Tableau2[R1_2]))))","v":"2024-05-06"},{"$f":"IF(ISERROR(+DATE(YEAR(Tableau2[R2_2])+Tableau2[Validité_2],MONTH(Tableau2[R2_2]),DAY(Tableau2[R2_2]))),\"\",(+DATE(YEAR(Tableau2[R2_2])+Tableau2[Validité_2],MONTH(Tableau2[R2_2]),DAY(Tableau2[R2_2]))))","v":"2029-05-06"},null,null,3,null,null,{"$f":"IF(ISERROR(+DATE(YEAR(Tableau2[Dernier Recyclage_3])+Tableau2[Validité_3],MONTH(Tableau2[Dernier Recyclage_3]),DAY(Tableau2[Dernier Recyclage_3]))),\"\",(+DATE(YEAR(Tableau2[Dernier Recyclage_3])+Tableau2[Validité_3],MONTH(Tableau2[Dernier Recyclage_3]),DAY(Tableau2[Dernier Recyclage_3]))))","v":"1902-12-31"},{"$f":"IF(ISERROR(+DATE(YEAR(Tableau2[R1_3])+Tableau2[Validité_3],MONTH(Tableau2[R1_3]),DAY(Tableau2[R1_3]))),\"\",(+DATE(YEAR(Tableau2[R1_3])+Tableau2[Validité_3],MONTH(Tableau2[R1_3]),DAY(Tableau2[R1_3]))))","v":"1905-12-31"},{"$f":"IF(ISERROR(+DATE(YEAR(Tableau2[R2_3])+Tableau2[Validité_3],MONTH(Tableau2[R2_3]),DAY(Tableau2[R2_3]))),\"\",(+DATE(YEAR(Tableau2[R2_3])+Tableau2[Validité_3],MONTH(Tableau2[R2_3]),DAY(Tableau2[R2_3]))))","v":"1908-12-31"},null,null,5,"2014-02-27","2014-02-27",{"$f":"IF(ISERROR(+DATE(YEAR(Tableau2[Dernier Recyclage_4])+Tableau2[Validité_4],MONTH(Tableau2[Dernier Recyclage_4]),DAY(Tableau2[Dernier Recyclage_4]))),\"\",(+DATE(YEAR(Tableau2[Dernier Recyclage_4])+Tableau2[Validité_4],MONTH(Tableau2[Dernier Recyclage_4]),DAY(Tableau2[Dernier Recyclage_4]))))","v":"2019-02-27"},{"$f":"IF(ISERROR(+DATE(YEAR(Tableau2[R1_4])+Tableau2[Validité_4],MONTH(Tableau2[R1_4]),DAY(Tableau2[R1_4]))),\"\",(+DATE(YEAR(Tableau2[R1_4])+Tableau2[Validité_4],MONTH(Tableau2[R1_4]),DAY(Tableau2[R1_4]))))","v":"2024-02-27"},{"$f":"IF(ISERROR(+DATE(YEAR(Tableau2[R2_4])+Tableau2[Validité_4],MONTH(Tableau2[R2_4]),DAY(Tableau2[R2_4]))),\"\",(+DATE(YEAR(Tableau2[R2_4])+Tableau2[Validité_4],MONTH(Tableau2[R2_4]),DAY(Tableau2[R2_4]))))","v":"2029-02-27"},null,null,{"$f":"IF(ISERROR(VLOOKUP(Tableau2[Habilitation_5],Tableau1[],Tableau1[Validité2],0)),\"\",VLOOKUP(Tableau2[Habilitation_5],Tableau1[],Tableau1[Validité2],0))","v":""},null,null,{"$f":"IF(ISERROR(+DATE(YEAR(Tableau2[Dernier Recyclage_5])+Tableau2[Validité_5],MONTH(Tableau2[Dernier Recyclage_5]),DAY(Tableau2[Dernier Recyclage_5]))),\"\",(+DATE(YEAR(Tableau2[Dernier Recyclage_5])+Tableau2[Validité_5],MONTH(Tableau2[Dernier Recyclage_5]),DAY(Tableau2[Dernier Recyclage_5]))))","v":""},{"$f":"IF(ISERROR(+DATE(YEAR(Tableau2[R1_5])+Tableau2[Validité_5],MONTH(Tableau2[R1_5]),DAY(Tableau2[R1_5]))),\"\",(+DATE(YEAR(Tableau2[R1_5])+Tableau2[Validité_5],MONTH(Tableau2[R1_5]),DAY(Tableau2[R1_5]))))","v":""},{"$f":"IF(ISERROR(+DATE(YEAR(Tableau2[R2_5])+Tableau2[Validité_5],MONTH(Tableau2[R2_5]),DAY(Tableau2[R2_5]))),\"\",(+DATE(YEAR(Tableau2[R2_5])+Tableau2[Validité_5],MONTH(Tableau2[R2_5]),DAY(Tableau2[R2_5]))))","v":""},null,null,{"$f":"IF(ISERROR(VLOOKUP(Tableau2[Habilitation_6],Tableau1[],Tableau1[Validité2],0)),\"\",VLOOKUP(Tableau2[Habilitation_6],Tableau1[],Tableau1[Validité2],0))","v":""},null,null,{"$f":"IF(ISERROR(+DATE(YEAR(Tableau2[Dernier Recyclage_6])+Tableau2[Validité_6],MONTH(Tableau2[Dernier Recyclage_6]),DAY(Tableau2[Dernier Recyclage_6]))),\"\",(+DATE(YEAR(Tableau2[Dernier Recyclage_6])+Tableau2[Validité_6],MONTH(Tableau2[Dernier Recyclage_6]),DAY(Tableau2[Dernier Recyclage_6]))))","v":""},{"$f":"IF(ISERROR(+DATE(YEAR(Tableau2[R1_6])+Tableau2[Validité_6],MONTH(Tableau2[R1_6]),DAY(Tableau2[R1_6]))),\"\",(+DATE(YEAR(Tableau2[R1_6])+Tableau2[Validité_6],MONTH(Tableau2[R1_6]),DAY(Tableau2[R1_6]))))","v":""},{"$f":"IF(ISERROR(+DATE(YEAR(Tableau2[R2_6])+Tableau2[Validité_6],MONTH(Tableau2[R2_6]),DAY(Tableau2[R2_6]))),\"\",(+DATE(YEAR(Tableau2[R2_6])+Tableau2[Validité_6],MONTH(Tableau2[R2_6]),DAY(Tableau2[R2_6]))))","v":""},null,null,{"$f":"IF(ISERROR(VLOOKUP(Tableau2[Habilitation_7],Tableau1[],Tableau1[Validité2],0)),\"\",VLOOKUP(Tableau2[Habilitation_7],Tableau1[],Tableau1[Validité2],0))","v":""},null,null,{"$f":"IF(ISERROR(+DATE(YEAR(Tableau2[Dernier Recyclage_7])+Tableau2[Validité_7],MONTH(Tableau2[Dernier Recyclage_7]),DAY(Tableau2[Dernier Recyclage_7]))),\"\",(+DATE(YEAR(Tableau2[Dernier Recyclage_7])+Tableau2[Validité_7],MONTH(Tableau2[Dernier Recyclage_7]),DAY(Tableau2[Dernier Recyclage_7]))))","v":""},{"$f":"IF(ISERROR(+DATE(YEAR(Tableau2[R1_7])+Tableau2[Validité_7],MONTH(Tableau2[R1_7]),DAY(Tableau2[R1_7]))),\"\",(+DATE(YEAR(Tableau2[R1_7])+Tableau2[Validité_7],MONTH(Tableau2[R1_7]),DAY(Tableau2[R1_7]))))","v":""},{"$f":"IF(ISERROR(+DATE(YEAR(Tableau2[R2_7])+Tableau2[Validité_7],MONTH(Tableau2[R2_7]),DAY(Tableau2[R2_7]))),\"\",(+DATE(YEAR(Tableau2[R2_7])+Tableau2[Validité_7],MONTH(Tableau2[R2_7]),DAY(Tableau2[R2_7]))))","v":""},null,null,{"$f":"IF(ISERROR(VLOOKUP(Tableau2[Habilitation_8],Tableau1[],Tableau1[Validité2],0)),\"\",VLOOKUP(Tableau2[Habilitation_8],Tableau1[],Tableau1[Validité2],0))","v":""},null,null,{"$f":"IF(ISERROR(+DATE(YEAR(Tableau2[Dernier Recyclage_8])+Tableau2[Validité_8],MONTH(Tableau2[Dernier Recyclage_8]),DAY(Tableau2[Dernier Recyclage_8]))),\"\",(+DATE(YEAR(Tableau2[Dernier Recyclage_8])+Tableau2[Validité_8],MONTH(Tableau2[Dernier Recyclage_8]),DAY(Tableau2[Dernier Recyclage_8]))))","v":""},{"$f":"IF(ISERROR(+DATE(YEAR(Tableau2[R1_76])+Tableau2[Validité_8],MONTH(Tableau2[R1_76]),DAY(Tableau2[R1_76]))),\"\",(+DATE(YEAR(Tableau2[R1_76])+Tableau2[Validité_8],MONTH(Tableau2[R1_76]),DAY(Tableau2[R1_76]))))","v":""},{"$f":"IF(ISERROR(+DATE(YEAR(Tableau2[R3_14])+Tableau2[Validité_8],MONTH(Tableau2[R3_14]),DAY(Tableau2[Validité_8]))),\"\",(+DATE(YEAR(Tableau2[R3_14])+Tableau2[Validité_8],MONTH(Tableau2[R3_14]),DAY(Tableau2[R3_14]))))","v":""},null,null,{"$f":"IF(ISERROR(VLOOKUP(Tableau2[R3_17],Tableau1[],Tableau1[Validité2],0)),\"\",VLOOKUP(Tableau2[R3_17],Tableau1[],Tableau1[Validité2],0))","v":""},null,null,{"$f":"IF(ISERROR(+DATE(YEAR(Tableau2[R3_20])+Tableau2[R3_18],MONTH(Tableau2[R3_20]),DAY(Tableau2[R3_20]))),\"\",(+DATE(YEAR(Tableau2[R3_20])+Tableau2[R3_18],MONTH(Tableau2[R3_20]),DAY(Tableau2[R3_20]))))","v":""},{"$f":"IF(ISERROR(+DATE(YEAR(Tableau2[R3_21])+Tableau2[R3_18],MONTH(Tableau2[R3_21]),DAY(Tableau2[R3_21]))),\"\",(+DATE(YEAR(Tableau2[R3_21])+Tableau2[R3_18],MONTH(Tableau2[R3_21]),DAY(Tableau2[R3_21]))))","v":""},{"$f":"IF(ISERROR(+DATE(YEAR(Tableau2[R3_22])+Tableau2[Validité_8],MONTH(Tableau2[R3_22]),DAY(Tableau2[R3_18]))),\"\",(+DATE(YEAR(Tableau2[R3_22])+Tableau2[Validité_8],MONTH(Tableau2[R3_22]),DAY(Tableau2[R3_22]))))","v":""},null,null,{"$f":"IF(ISERROR(VLOOKUP(Tableau2[R3_25],Tableau1[],Tableau1[Validité2],0)),\"\",VLOOKUP(Tableau2[R3_25],Tableau1[],Tableau1[Validité2],0))","v":""},null,null,{"$f":"IF(ISERROR(+DATE(YEAR(Tableau2[R3_28])+Tableau2[R3_26],MONTH(Tableau2[R3_28]),DAY(Tableau2[R3_28]))),\"\",(+DATE(YEAR(Tableau2[R3_28])+Tableau2[R3_26],MONTH(Tableau2[R3_28]),DAY(Tableau2[R3_28]))))","v":""},{"$f":"IF(ISERROR(+DATE(YEAR(Tableau2[R3_29])+Tableau2[R3_26],MONTH(Tableau2[R3_29]),DAY(Tableau2[R3_29]))),\"\",(+DATE(YEAR(Tableau2[R3_29])+Tableau2[R3_26],MONTH(Tableau2[R3_29]),DAY(Tableau2[R3_29]))))","v":""},{"$f":"IF(ISERROR(+DATE(YEAR(Tableau2[R3_30])+Tableau2[R3_26],MONTH(Tableau2[R3_30]),DAY(Tableau2[R3_26]))),\"\",(+DATE(YEAR(Tableau2[R3_30])+Tableau2[R3_26],MONTH(Tableau2[R3_30]),DAY(Tableau2[R3_30]))))","v":""}]

{"sheet":"Habilitation et validité","index":2,"n_rows":70,"n_cols":6,"rows_kept":70,"cut":false,"hidden":true,"merged":[]}
["Code habilitation","Habilitation","Validité\n(Année)","Validité2","Validité3","Code recyclage"]
["HAB0",null,3,{"$f":"Tableau1[[#This Row],[Validité\n(Année)]]","v":3},{"$f":"D2:D68","v":3}]
["HAB1",null,3,{"$f":"Tableau1[[#This Row],[Validité\n(Année)]]","v":3},3]
["HAB2",null,3,{"$f":"Tableau1[[#This Row],[Validité\n(Année)]]","v":3},3]
["HAB0R",null,3,{"$f":"Tableau1[[#This Row],[Validité\n(Année)]]","v":3},3]
["HAB1R",null,3,{"$f":"Tableau1[[#This Row],[Validité\n(Année)]]","v":3},3]
["HAB2R",null,3,{"$f":"Tableau1[[#This Row],[Validité\n(Année)]]","v":3},3]
["HABHCHTB",null,3,{"$f":"Tableau1[[#This Row],[Validité\n(Année)]]","v":3},3]
["HAB2M2",null,3,{"$f":"Tableau1[[#This Row],[Validité\n(Année)]]","v":3},3]
["HAB2M2R",null,3,{"$f":"Tableau1[[#This Row],[Validité\n(Année)]]","v":3},3]
["BATCONDEC",null,3,{"$f":"Tableau1[[#This Row],[Validité\n(Année)]]","v":3},3]
["BATCONDECR",null,3,{"$f":"Tableau1[[#This Row],[Validité\n(Année)]]","v":3},3]
["BATENTRE",null,3,{"$f":"Tableau1[[#This Row],[Validité\n(Année)]]","v":3},3]
["CHARC1",null,5,{"$f":"Tableau1[[#This Row],[Validité\n(Année)]]","v":5},5]
["CHARC3",null,5,{"$f":"Tableau1[[#This Row],[Validité\n(Année)]]","v":5},5]
["CHARC1C3",null,5,{"$f":"Tableau1[[#This Row],[Validité\n(Année)]]","v":5},5]
["CHARC1R",null,5,{"$f":"Tableau1[[#This Row],[Validité\n(Année)]]","v":5},5]
["CHARC3R",null,5,{"$f":"Tableau1[[#This Row],[Validité\n(Année)]]","v":5},5]
["CHARC1C3R",null,5,{"$f":"Tableau1[[#This Row],[Validité\n(Année)]]","v":5},5]
["CAMIGRUINI",null,5,{"$f":"Tableau1[[#This Row],[Validité\n(Année)]]","v":5},5]
["CAMIGRUREC",null,5,{"$f":"Tableau1[[#This Row],[Validité\n(Année)]]","v":5},5]
["PEMP1A",null,5,{"$f":"Tableau1[[#This Row],[Validité\n(Année)]]","v":5},5]
["PEMP3A",null,5,{"$f":"Tableau1[[#This Row],[Validité\n(Année)]]","v":5},5]
["PEMP1A3A",null,5,{"$f":"Tableau1[[#This Row],[Validité\n(Année)]]","v":5},5]
["PEMP1B",null,5,{"$f":"Tableau1[[#This Row],[Validité\n(Année)]]","v":5},5]
["PEMP3B",null,5,{"$f":"Tableau1[[#This Row],[Validité\n(Année)]]","v":5},5]
["PEMP1B3B",null,5,{"$f":"Tableau1[[#This Row],[Validité\n(Année)]]","v":5},5]
["PEMP3A3B",null,5,{"$f":"Tableau1[[#This Row],[Validité\n(Année)]]","v":5},5]
["PEMP1AR",null,5,{"$f":"Tableau1[[#This Row],[Validité\n(Année)]]","v":5},5]
["PEMP3AR",null,5,{"$f":"Tableau1[[#This Row],[Validité\n(Année)]]","v":5},5]
["PEMP1A3AR",null,5,{"$f":"Tableau1[[#This Row],[Validité\n(Année)]]","v":5},5]
["PEMP1BR",null,5,{"$f":"Tableau1[[#This Row],[Validité\n(Année)]]","v":5},5]
["PEMP3BR",null,5,{"$f":"Tableau1[[#This Row],[Validité\n(Année)]]","v":5},5]
["PEMP1B3BR",null,5,{"$f":"Tableau1[[#This Row],[Validité\n(Année)]]","v":5},{"$f":"D34:D100","v":5}]
["PEMP3A3BR",null,5,{"$f":"Tableau1[[#This Row],[Validité\n(Année)]]","v":5},5]
["PONTIER",null,5,{"$f":"Tableau1[[#This Row],[Validité\n(Année)]]","v":5},5]
["PONTIEREC",null,5,{"$f":"Tableau1[[#This Row],[Validité\n(Année)]]","v":5},5]
["ELINGAGE",null,5,{"$f":"Tableau1[[#This Row],[Validité\n(Année)]]","v":5},5]
["ELINGAGER",null,5,{"$f":"Tableau1[[#This Row],[Validité\n(Année)]]","v":5},5]
["ECHAFAU1",null,5,{"$f":"Tableau1[[#This Row],[Validité\n(Année)]]","v":5},5]
["ECHAUFAU2",null,5,{"$f":"Tableau1[[#This Row],[Validité\n(Année)]]","v":5},5]
["ECHAFAU3",null,5,{"$f":"Tableau1[[#This Row],[Validité\n(Année)]]","v":5},5]
["ECHAFAU4",null,5,{"$f":"Tableau1[[#This Row],[Validité\n(Année)]]","v":5},5]
["ECHAUFAU5",null,5,{"$f":"Tableau1[[#This Row],[Validité\n(Année)]]","v":5},5]
["ECHAFAU1R",null,5,{"$f":"Tableau1[[#This Row],[Validité\n(Année)]]","v":5},5]
["ECHAUFAU2R",null,5,{"$f":"Tableau1[[#This Row],[Validité\n(Année)]]","v":5},5]
["ECHAFAU3R",null,5,{"$f":"Tableau1[[#This Row],[Validité\n(Année)]]","v":5},5]
["ECHAFAU4R",null,5,{"$f":"Tableau1[[#This Row],[Validité\n(Année)]]","v":5},5]
["ECHAUFAU5R",null,5,{"$f":"Tableau1[[#This Row],[Validité\n(Année)]]","v":5},5]
["PERMISEB",null,5,{"$f":"Tableau1[[#This Row],[Validité\n(Année)]]","v":5},5]
["PERMISPL",null,5,{"$f":"Tableau1[[#This Row],[Validité\n(Année)]]","v":5},5]
["RISAMIAOCI",null,3,{"$f":"Tableau1[[#This Row],[Validité\n(Année)]]","v":3},3]
["RISAMRECOC",null,3,{"$f":"Tableau1[[#This Row],[Validité\n(Année)]]","v":3},3]
["RISQAMIATC",null,3,{"$f":"Tableau1[[#This Row],[Validité\n(Année)]]","v":3},3]
["RISQAMITCR",null,3,{"$f":"Tableau1[[#This Row],[Validité\n(Année)]]","v":3},3]
["RISAMIAEPI",null,3,{"$f":"Tableau1[[#This Row],[Validité\n(Année)]]","v":3},3]
["RISAMIEPIR",null,3,{"$f":"Tableau1[[#This Row],[Validité\n(Année)]]","v":3},3]
["TRONCONNE",null,5,{"$f":"Tableau1[[#This Row],[Validité\n(Année)]]","v":5},5]
["PRVSANSECU",null,0,{"$f":"Tableau1[[#This Row],[Validité\n(Année)]]","v":0},0]
["PRVSANSECS",null,0,{"$f":"Tableau1[[#This Row],[Validité\n(Année)]]","v":0},0]
["GARARBCAUS",null,0,{"$f":"Tableau1[[#This Row],[Validité\n(Année)]]","v":0},0]
["VSVHS",null,0,{"$f":"Tableau1[[#This Row],[Validité\n(Année)]]","v":0},0]
["MONITSECOU",null,3,{"$f":"Tableau1[[#This Row],[Validité\n(Année)]]","v":3},3]
["RECYMONSE",null,3,{"$f":"Tableau1[[#This Row],[Validité\n(Année)]]","v":3},3]
["SECOUINIT",null,1.8,{"$f":"Tableau1[[#This Row],[Validité\n(Année)]]","v":1.8},1.8]
["RECYCSECOU",null,1.8,{"$f":"Tableau1[[#This Row],[Validité\n(Année)]]","v":1.8},{"$f":"D66:D132","v":1.8}]
["SICOBA",null,2,{"$f":"Tableau1[[#This Row],[Validité\n(Année)]]","v":2},2]
["SICOBAREC",null,2,{"$f":"Tableau1[[#This Row],[Validité\n(Année)]]","v":2},2]
["HUILE",null,null,null,{"$f":"D69:D136","v":0}]
["MEULES",null,null,null,{"$f":"D70:D138","v":0}]

{"sheet":"Feuil5","index":3,"n_rows":67,"n_cols":9,"rows_kept":67,"cut":false,"hidden":true,"merged":[]}
[null,null,null,null,null,null,null,null,1]
[null,null,null,null,null,null,null,null,3]
[null,null,null,null,null,null,null,null,4]
[null,null,null,null,null,null,null,null,1]
[null,null,null,null,null,null,null,null,2]
[null,null,null,null,null,null,null,null,2.5]
[null,null,null,null,null,null,null,null,0.5]
[null,null,null,null,null,null,null,null,3]
[null,null,null,null,null,null,null,null,2]
[null,null,null,null,null,null,null,null,3]
[null,null,null,null,null,null,null,null,2]
[null,null,null,null,null,null,null,null,1]
[null,null,null,null,null,null,null,null,3]
[null,null,null,null,null,null,null,null,3]
[null,null,null,null,null,null,null,null,4]
[null,null,null,null,null,null,null,null,2]
[null,null,null,null,null,null,null,null,2]
[null,null,null,null,null,null,null,null,3]
[null,null,null,null,null,null,null,null,3]
[null,null,null,null,null,null,null,null,2]
[null,null,null,null,null,null,null,null,3]
[null,null,null,null,null,null,null,null,3]
[null,null,null,null,null,null,null,null,4]
[null,null,null,null,null,null,null,null,3]
[null,null,null,null,null,null,null,null,3]
[null,null,null,null,null,null,null,null,4]
[null,null,null,null,null,null,null,null,4]
[null,null,null,null,null,null,null,null,2]
[null,null,null,null,null,null,null,null,2]
[null,null,null,null,null,null,null,null,3]
[null,null,null,null,null,null,null,null,2]
[null,null,null,null,null,null,null,null,2]
[null,null,null,null,null,null,null,null,3]
[null,null,null,null,null,null,null,null,3]
[null,null,null,null,null,null,null,null,2]
[null,null,null,null,null,null,null,null,1]
[null,null,null,null,null,null,null,null,1]
[null,null,null,null,null,null,null,null,1]
[null,null,null,null,null,null,null,null,1]
[null,null,null,null,null,null,null,null,2]
[null,null,null,null,null,null,null,null,2]
[null,null,null,null,null,null,null,null,1]
[null,null,null,null,null,null,null,null,3]
[null,null,null,null,null,null,null,null,1]
[null,null,null,null,null,null,null,null,2]
[null,null,null,null,null,null,null,null,1]
[null,null,null,null,null,null,null,null,1]
[null,null,null,null,null,null,null,null,2]
[null,null,null,null,null,null,null,null,3]
[]
[null,null,null,null,null,null,null,null,2]
[null,null,null,null,null,null,null,null,1]
[null,null,null,null,null,null,null,null,5]
[null,null,null,null,null,null,null,null,1]
[null,null,null,null,null,null,null,null,0.5]
[null,null,null,null,null,null,null,null,0.5]
[null,null,null,null,null,null,null,null,1]
[null,null,null,null,null,null,null,null,3]
[null,null,null,null,null,null,null,null,1.5]
[null,null,null,null,null,null,null,null,3]
[null,null,null,null,null,null,null,null,1]
[null,null,null,null,null,null,null,null,10]
[null,null,null,null,null,null,null,null,3]
[null,null,null,null,null,null,null,null,3]
[null,null,null,null,null,null,null,null,1]
[null,null,null,null,null,null,null,null,4.5]
[null,null,null,null,null,null,null,null,2]

{"sheet":"Année","index":4,"n_rows":141,"n_cols":8,"rows_kept":141,"cut":false,"hidden":false,"merged":[]}
["Code","Nom","Prénom","Habilitation","Validité","Initiale","Dernier Recyclage","Prochain Recyclage"]
[null,{"$f":"'Habilitation Agent'!B2","v":"Durand 1"},{"$f":"'Habilitation Agent'!C2","v":0},{"$f":"'Habilitation Agent'!D2","v":0},{"$f":"'Habilitation Agent'!E2","v":3},{"$f":"'Habilitation Agent'!F2","v":"2009-11-23"},{"$f":"'Habilitation Agent'!G2","v":"2012-05-03"},{"$f":"'Habilitation Agent'!H2","v":"2015-05-03"}]
[null,{"$f":"'Habilitation Agent'!B3","v":"Durand 2"},{"$f":"'Habilitation Agent'!C3","v":0},{"$f":"'Habilitation Agent'!D3","v":0},{"$f":"'Habilitation Agent'!E3","v":3},{"$f":"'Habilitation Agent'!F3","v":""},{"$f":"'Habilitation Agent'!G3","v":"2014-10-12"},{"$f":"'Habilitation Agent'!H3","v":"2017-10-12"}]
[null,{"$f":"'Habilitation Agent'!B4","v":"Durand 3"},{"$f":"'Habilitation Agent'!C4","v":0},{"$f":"'Habilitation Agent'!D4","v":0},{"$f":"'Habilitation Agent'!E4","v":3},{"$f":"'Habilitation Agent'!F4","v":"2009-11-27"},{"$f":"'Habilitation Agent'!G4","v":"2012-11-06"},{"$f":"'Habilitation Agent'!H4","v":"2015-11-06"}]
[null,{"$f":"'Habilitation Agent'!B5","v":"Durand 4"},{"$f":"'Habilitation Agent'!C5","v":0},{"$f":"'Habilitation Agent'!D5","v":0},{"$f":"'Habilitation Agent'!E5","v":3},{"$f":"'Habilitation Agent'!F5","v":"2006-11-24"},{"$f":"'Habilitation Agent'!G5","v":"2013-09-04"},{"$f":"'Habilitation Agent'!H5","v":"2016-09-04"}]
[null,{"$f":"'Habilitation Agent'!B6","v":"Durand 5"},{"$f":"'Habilitation Agent'!C6","v":0},{"$f":"'Habilitation Agent'!D6","v":0},{"$f":"'Habilitation Agent'!E6","v":3},{"$f":"'Habilitation Agent'!F6","v":"00:00:00"},{"$f":"'Habilitation Agent'!G6","v":"2013-09-04"},{"$f":"'Habilitation Agent'!H6","v":"2016-09-04"}]
[null,{"$f":"'Habilitation Agent'!B7","v":"Durand 6"},{"$f":"'Habilitation Agent'!C7","v":0},{"$f":"'Habilitation Agent'!D7","v":0},{"$f":"'Habilitation Agent'!E7","v":3},{"$f":"'Habilitation Agent'!F7","v":"2009-09-28"},{"$f":"'Habilitation Agent'!G7","v":"2014-09-10"},{"$f":"'Habilitation Agent'!H7","v":"2017-09-10"}]
[null,{"$f":"'Habilitation Agent'!B8","v":"Durand 7"},{"$f":"'Habilitation Agent'!C8","v":0},{"$f":"'Habilitation Agent'!D8","v":0},{"$f":"'Habilitation Agent'!E8","v":3},{"$f":"'Habilitation Agent'!F8","v":"2006-11-24"},{"$f":"'Habilitation Agent'!G8","v":"2013-09-04"},{"$f":"'Habilitation Agent'!H8","v":"2016-09-04"}]
[null,{"$f":"'Habilitation Agent'!B9","v":"Durand 8"},{"$f":"'Habilitation Agent'!C9","v":0},{"$f":"'Habilitation Agent'!D9","v":0},{"$f":"'Habilitation Agent'!E9","v":3},{"$f":"'Habilitation Agent'!F9","v":"2009-11-19"},{"$f":"'Habilitation Agent'!G9","v":"2012-04-05"},{"$f":"'Habilitation Agent'!H9","v":"2015-04-05"}]
[null,{"$f":"'Habilitation Agent'!B10","v":"Durand 9"},{"$f":"'Habilitation Agent'!C10","v":0},{"$f":"'Habilitation Agent'!D10","v":0},{"$f":"'Habilitation Agent'!E10","v":3},{"$f":"'Habilitation Agent'!F10","v":"2006-11-24"},{"$f":"'Habilitation Agent'!G10","v":"2013-11-14"},{"$f":"'Habilitation Agent'!H10","v":"2016-11-14"}]
[null,{"$f":"'Habilitation Agent'!B11","v":"Durand 10"},{"$f":"'Habilitation Agent'!C11","v":0},{"$f":"'Habilitation Agent'!D11","v":0},{"$f":"'Habilitation Agent'!E11","v":3},{"$f":"'Habilitation Agent'!F11","v":"00:00:00"},{"$f":"'Habilitation Agent'!G11","v":"2013-06-14"},{"$f":"'Habilitation Agent'!H11","v":"2016-06-14"}]
[null,{"$f":"'Habilitation Agent'!B12","v":"Durand 11"},{"$f":"'Habilitation Agent'!C12","v":0},{"$f":"'Habilitation Agent'!D12","v":0},{"$f":"'Habilitation Agent'!E12","v":3},{"$f":"'Habilitation Agent'!F12","v":"2009-09-22"},{"$f":"'Habilitation Agent'!G12","v":"2013-09-04"},{"$f":"'Habilitation Agent'!H12","v":"2016-09-04"}]
[null,{"$f":"'Habilitation Agent'!B13","v":"Durand 12"},{"$f":"'Habilitation Agent'!C13","v":0},{"$f":"'Habilitation Agent'!D13","v":0},{"$f":"'Habilitation Agent'!E13","v":3},{"$f":"'Habilitation Agent'!F13","v":"2009-05-28"},{"$f":"'Habilitation Agent'!G13","v":"2012-11-06"},{"$f":"'Habilitation Agent'!H13","v":"2015-11-06"}]
[null,{"$f":"'Habilitation Agent'!B14","v":"Durand 13"},{"$f":"'Habilitation Agent'!C14","v":0},{"$f":"'Habilitation Agent'!D14","v":0},{"$f":"'Habilitation Agent'!E14","v":3},{"$f":"'Habilitation Agent'!F14","v":"00:00:00"},{"$f":"'Habilitation Agent'!G14","v":"2014-09-10"},{"$f":"'Habilitation Agent'!H14","v":"2017-09-10"}]
[null,{"$f":"'Habilitation Agent'!B15","v":"Durand 14"},{"$f":"'Habilitation Agent'!C15","v":0},{"$f":"'Habilitation Agent'!D15","v":0},{"$f":"'Habilitation Agent'!E15","v":3},{"$f":"'Habilitation Agent'!F15","v":"2009-09-22"},{"$f":"'Habilitation Agent'!G15","v":"2013-05-17"},{"$f":"'Habilitation Agent'!H15","v":"2016-05-17"}]
[null,{"$f":"'Habilitation Agent'!B2","v":"Durand 1"},{"$f":"'Habilitation Agent'!C2","v":0},{"$f":"'Habilitation Agent'!L2","v":"00:00:00"},{"$f":"'Habilitation Agent'!M2","v":5},{"$f":"'Habilitation Agent'!N2","v":"00:00:00"},{"$f":"'Habilitation Agent'!O2","v":"?"},{"$f":"'Habilitation Agent'!P2","v":""}]
[null,{"$f":"'Habilitation Agent'!B3","v":"Durand 2"},{"$f":"'Habilitation Agent'!C3","v":0},{"$f":"'Habilitation Agent'!L3","v":"00:00:00"},{"$f":"'Habilitation Agent'!M3","v":5},{"$f":"'Habilitation Agent'!N3","v":""},{"$f":"'Habilitation Agent'!O3","v":"?"},{"$f":"'Habilitation Agent'!P3","v":""}]
[null,{"$f":"'Habilitation Agent'!B4","v":"Durand 3"},{"$f":"'Habilitation Agent'!C4","v":0},{"$f":"'Habilitation Agent'!L4","v":"00:00:00"},{"$f":"'Habilitation Agent'!M4","v":5},{"$f":"'Habilitation Agent'!N4","v":"2010-12-17"},{"$f":"'Habilitation Agent'!O4","v":"2010-12-17"},{"$f":"'Habilitation Agent'!P4","v":"2015-12-17"}]
[null,{"$f":"'Habilitation Agent'!B5","v":"Durand 4"},{"$f":"'Habilitation Agent'!C5","v":0},{"$f":"'Habilitation Agent'!L5","v":"00:00:00"},{"$f":"'Habilitation Agent'!M5","v":5},{"$f":"'Habilitation Agent'!N5","v":"00:00:00"},{"$f":"'Habilitation Agent'!O5","v":"?"},{"$f":"'Habilitation Agent'!P5","v":""}]
[null,{"$f":"'Habilitation Agent'!B6","v":"Durand 5"},{"$f":"'Habilitation Agent'!C6","v":0},{"$f":"'Habilitation Agent'!L6","v":"00:00:00"},{"$f":"'Habilitation Agent'!M6","v":5},{"$f":"'Habilitation Agent'!N6","v":"00:00:00"},{"$f":"'Habilitation Agent'!O6","v":"?"},{"$f":"'Habilitation Agent'!P6","v":""}]
[null,{"$f":"'Habilitation Agent'!B7","v":"Durand 6"},{"$f":"'Habilitation Agent'!C7","v":0},{"$f":"'Habilitation Agent'!L7","v":"00:00:00"},{"$f":"'Habilitation Agent'!M7","v":5},{"$f":"'Habilitation Agent'!N7","v":"2010-12-17"},{"$f":"'Habilitation Agent'!O7","v":"2010-12-17"},{"$f":"'Habilitation Agent'!P7","v":"2015-12-17"}]
[null,{"$f":"'Habilitation Agent'!B8","v":"Durand 7"},{"$f":"'Habilitation Agent'!C8","v":0},{"$f":"'Habilitation Agent'!L8","v":"00:00:00"},{"$f":"'Habilitation Agent'!M8","v":5},{"$f":"'Habilitation Agent'!N8","v":"00:00:00"},{"$f":"'Habilitation Agent'!O8","v":"?"},{"$f":"'Habilitation Agent'!P8","v":""}]
[null,{"$f":"'Habilitation Agent'!B9","v":"Durand 8"},{"$f":"'Habilitation Agent'!C9","v":0},{"$f":"'Habilitation Agent'!L9","v":"00:00:00"},{"$f":"'Habilitation Agent'!M9","v":5},{"$f":"'Habilitation Agent'!N9","v":"2010-11-16"},{"$f":"'Habilitation Agent'!O9","v":"2010-11-16"},{"$f":"'Habilitation Agent'!P9","v":"2012-11-19"}]
[null,{"$f":"'Habilitation Agent'!B10","v":"Durand 9"},{"$f":"'Habilitation Agent'!C10","v":0},{"$f":"'Habilitation Agent'!L10","v":"00:00:00"},{"$f":"'Habilitation Agent'!M10","v":5},{"$f":"'Habilitation Agent'!N10","v":"00:00:00"},{"$f":"'Habilitation Agent'!O10","v":"?"},{"$f":"'Habilitation Agent'!P10","v":""}]
[null,{"$f":"'Habilitation Agent'!B11","v":"Durand 10"},{"$f":"'Habilitation Agent'!C11","v":0},{"$f":"'Habilitation Agent'!L11","v":"00:00:00"},{"$f":"'Habilitation Agent'!M11","v":5},{"$f":"'Habilitation Agent'!N11","v":"00:00:00"},{"$f":"'Habilitation Agent'!O11","v":"?"},{"$f":"'Habilitation Agent'!P11","v":""}]
[null,{"$f":"'Habilitation Agent'!B12","v":"Durand 11"},{"$f":"'Habilitation Agent'!C12","v":0},{"$f":"'Habilitation Agent'!L12","v":"00:00:00"},{"$f":"'Habilitation Agent'!M12","v":5},{"$f":"'Habilitation Agent'!N12","v":"2010-06-17"},{"$f":"'Habilitation Agent'!O12","v":"2010-06-17"},{"$f":"'Habilitation Agent'!P12","v":"2015-06-17"}]
[null,{"$f":"'Habilitation Agent'!B13","v":"Durand 12"},{"$f":"'Habilitation Agent'!C13","v":0},{"$f":"'Habilitation Agent'!L13","v":"00:00:00"},{"$f":"'Habilitation Agent'!M13","v":5},{"$f":"'Habilitation Agent'!N13","v":"2010-06-17"},{"$f":"'Habilitation Agent'!O13","v":"2010-06-17"},{"$f":"'Habilitation Agent'!P13","v":"2015-06-17"}]
[null,{"$f":"'Habilitation Agent'!B14","v":"Durand 13"},{"$f":"'Habilitation Agent'!C14","v":0},{"$f":"'Habilitation Agent'!L14","v":"00:00:00"},{"$f":"'Habilitation Agent'!M14","v":5},{"$f":"'Habilitation Agent'!N14","v":"00:00:00"},{"$f":"'Habilitation Agent'!O14","v":"?"},{"$f":"'Habilitation Agent'!P14","v":""}]
[null,{"$f":"'Habilitation Agent'!B15","v":"Durand 14"},{"$f":"'Habilitation Agent'!C15","v":0},{"$f":"'Habilitation Agent'!L15","v":"00:00:00"},{"$f":"'Habilitation Agent'!M15","v":5},{"$f":"'Habilitation Agent'!N15","v":"2014-05-06"},{"$f":"'Habilitation Agent'!O15","v":"2014-05-06"},{"$f":"'Habilitation Agent'!P15","v":"2019-05-06"}]
[null,{"$f":"'Habilitation Agent'!B2","v":"Durand 1"},{"$f":"'Habilitation Agent'!C2","v":0},{"$f":"'Habilitation Agent'!T2","v":0},{"$f":"'Habilitation Agent'!U2","v":0},{"$f":"'Habilitation Agent'!V2","v":""},{"$f":"'Habilitation Agent'!W2","v":""},{"$f":"'Habilitation Agent'!X2","v":""}]
[null,{"$f":"'Habilitation Agent'!B3","v":"Durand 2"},{"$f":"'Habilitation Agent'!C3","v":0},{"$f":"'Habilitation Agent'!T3","v":0},{"$f":"'Habilitation Agent'!U3","v":0},{"$f":"'Habilitation Agent'!V3","v":"?"},{"$f":"'Habilitation Agent'!W3","v":"?"},{"$f":"'Habilitation Agent'!X3","v":""}]
[null,{"$f":"'Habilitation Agent'!B4","v":"Durand 3"},{"$f":"'Habilitation Agent'!C4","v":0},{"$f":"'Habilitation Agent'!T4","v":0},{"$f":"'Habilitation Agent'!U4","v":3},{"$f":"'Habilitation Agent'!V4","v":"2014-05-15"},{"$f":"'Habilitation Agent'!W4","v":"2014-05-15"},{"$f":"'Habilitation Agent'!X4","v":"2017-05-15"}]
[null,{"$f":"'Habilitation Agent'!B5","v":"Durand 4"},{"$f":"'Habilitation Agent'!C5","v":0},{"$f":"'Habilitation Agent'!T5","v":0},{"$f":"'Habilitation Agent'!U5","v":3},{"$f":"'Habilitation Agent'!V5","v":"2014-05-22"},{"$f":"'Habilitation Agent'!W5","v":"2014-05-22"},{"$f":"'Habilitation Agent'!X5","v":"2017-05-22"}]
[null,{"$f":"'Habilitation Agent'!B6","v":"Durand 5"},{"$f":"'Habilitation Agent'!C6","v":0},{"$f":"'Habilitation Agent'!T6","v":0},{"$f":"'Habilitation Agent'!U6","v":3},{"$f":"'Habilitation Agent'!V6","v":"00:00:00"},{"$f":"'Habilitation Agent'!W6","v":"?"},{"$f":"'Habilitation Agent'!X6","v":""}]
[null,{"$f":"'Habilitation Agent'!B7","v":"Durand 6"},{"$f":"'Habilitation Agent'!C7","v":0},{"$f":"'Habilitation Agent'!T7","v":0},{"$f":"'Habilitation Agent'!U7","v":3},{"$f":"'Habilitation Agent'!V7","v":"00:00:00"},{"$f":"'Habilitation Agent'!W7","v":"00:00:00"},{"$f":"'Habilitation Agent'!X7","v":"1902-12-31"}]
[null,{"$f":"'Habilitation Agent'!B8","v":"Durand 7"},{"$f":"'Habilitation Agent'!C8","v":0},{"$f":"'Habilitation Agent'!T8","v":0},{"$f":"'Habilitation Agent'!U8","v":3},{"$f":"'Habilitation Agent'!V8","v":"00:00:00"},{"$f":"'Habilitation Agent'!W8","v":"?"},{"$f":"'Habilitation Agent'!X8","v":""}]
[null,{"$f":"'Habilitation Agent'!B9","v":"Durand 8"},{"$f":"'Habilitation Agent'!C9","v":0},{"$f":"'Habilitation Agent'!T9","v":0},{"$f":"'Habilitation Agent'!U9","v":3},{"$f":"'Habilitation Agent'!V9","v":"2014-05-15"},{"$f":"'Habilitation Agent'!W9","v":"2014-05-15"},{"$f":"'Habilitation Agent'!X9","v":"2017-05-15"}]
[null,{"$f":"'Habilitation Agent'!B10","v":"Durand 9"},{"$f":"'Habilitation Agent'!C10","v":0},{"$f":"'Habilitation Agent'!T10","v":0},{"$f":"'Habilitation Agent'!U10","v":3},{"$f":"'Habilitation Agent'!V10","v":"00:00:00"},{"$f":"'Habilitation Agent'!W10","v":"?"},{"$f":"'Habilitation Agent'!X10","v":""}]
[null,{"$f":"'Habilitation Agent'!B11","v":"Durand 10"},{"$f":"'Habilitation Agent'!C11","v":0},{"$f":"'Habilitation Agent'!T11","v":0},{"$f":"'Habilitation Agent'!U11","v":3},{"$f":"'Habilitation Agent'!V11","v":"00:00:00"},{"$f":"'Habilitation Agent'!W11","v":"?"},{"$f":"'Habilitation Agent'!X11","v":""}]
[null,{"$f":"'Habilitation Agent'!B12","v":"Durand 11"},{"$f":"'Habilitation Agent'!C12","v":0},{"$f":"'Habilitation Agent'!T12","v":0},{"$f":"'Habilitation Agent'!U12","v":3},{"$f":"'Habilitation Agent'!V12","v":"2011-05-19"},{"$f":"'Habilitation Agent'!W12","v":"2014-05-22"},{"$f":"'Habilitation Agent'!X12","v":"2017-05-22"}]
[null,{"$f":"'Habilitation Agent'!B13","v":"Durand 12"},{"$f":"'Habilitation Agent'!C13","v":0},{"$f":"'Habilitation Agent'!T13","v":0},{"$f":"'Habilitation Agent'!U13","v":3},{"$f":"'Habilitation Agent'!V13","v":"2014-05-15"},{"$f":"'Habilitation Agent'!W13","v":"2014-05-15"},{"$f":"'Habilitation Agent'!X13","v":"2017-05-15"}]
[null,{"$f":"'Habilitation Agent'!B14","v":"Durand 13"},{"$f":"'Habilitation Agent'!C14","v":0},{"$f":"'Habilitation Agent'!T14","v":0},{"$f":"'Habilitation Agent'!U14","v":3},{"$f":"'Habilitation Agent'!V14","v":"00:00:00"},{"$f":"'Habilitation Agent'!W14","v":"?"},{"$f":"'Habilitation Agent'!X14","v":""}]
[null,{"$f":"'Habilitation Agent'!B15","v":"Durand 14"},{"$f":"'Habilitation Agent'!C15","v":0},{"$f":"'Habilitation Agent'!T15","v":0},{"$f":"'Habilitation Agent'!U15","v":3},{"$f":"'Habilitation Agent'!V15","v":"00:00:00"},{"$f":"'Habilitation Agent'!W15","v":"00:00:00"},{"$f":"'Habilitation Agent'!X15","v":"1902-12-31"}]
[null,{"$f":"'Habilitation Agent'!B2","v":"Durand 1"},{"$f":"'Habilitation Agent'!C2","v":0},{"$f":"'Habilitation Agent'!T2","v":0},{"$f":"'Habilitation Agent'!U2","v":0},{"$f":"'Habilitation Agent'!V2","v":""},{"$f":"'Habilitation Agent'!W2","v":""},{"$f":"'Habilitation Agent'!X2","v":""}]
[null,{"$f":"'Habilitation Agent'!B3","v":"Durand 2"},{"$f":"'Habilitation Agent'!C3","v":0},{"$f":"'Habilitation Agent'!T3","v":0},{"$f":"'Habilitation Agent'!U3","v":0},{"$f":"'Habilitation Agent'!V3","v":"?"},{"$f":"'Habilitation Agent'!W3","v":"?"},{"$f":"'Habilitation Agent'!X3","v":""}]
[null,{"$f":"'Habilitation Agent'!B4","v":"Durand 3"},{"$f":"'Habilitation Agent'!C4","v":0},{"$f":"'Habilitation Agent'!T4","v":0},{"$f":"'Habilitation Agent'!U4","v":3},{"$f":"'Habilitation Agent'!V4","v":"2014-05-15"},{"$f":"'Habilitation Agent'!W4","v":"2014-05-15"},{"$f":"'Habilitation Agent'!X4","v":"2017-05-15"}]
[null,{"$f":"'Habilitation Agent'!B5","v":"Durand 4"},{"$f":"'Habilitation Agent'!C5","v":0},{"$f":"'Habilitation Agent'!T5","v":0},{"$f":"'Habilitation Agent'!U5","v":3},{"$f":"'Habilitation Agent'!V5","v":"2014-05-22"},{"$f":"'Habilitation Agent'!W5","v":"2014-05-22"},{"$f":"'Habilitation Agent'!X5","v":"2017-05-22"}]
[null,{"$f":"'Habilitation Agent'!B6","v":"Durand 5"},{"$f":"'Habilitation Agent'!C6","v":0},{"$f":"'Habilitation Agent'!T6","v":0},{"$f":"'Habilitation Agent'!U6","v":3},{"$f":"'Habilitation Agent'!V6","v":"00:00:00"},{"$f":"'Habilitation Agent'!W6","v":"?"},{"$f":"'Habilitation Agent'!X6","v":""}]
[null,{"$f":"'Habilitation Agent'!B7","v":"Durand 6"},{"$f":"'Habilitation Agent'!C7","v":0},{"$f":"'Habilitation Agent'!T7","v":0},{"$f":"'Habilitation Agent'!U7","v":3},{"$f":"'Habilitation Agent'!V7","v":"00:00:00"},{"$f":"'Habilitation Agent'!W7","v":"00:00:00"},{"$f":"'Habilitation Agent'!X7","v":"1902-12-31"}]
[null,{"$f":"'Habilitation Agent'!B8","v":"Durand 7"},{"$f":"'Habilitation Agent'!C8","v":0},{"$f":"'Habilitation Agent'!T8","v":0},{"$f":"'Habilitation Agent'!U8","v":3},{"$f":"'Habilitation Agent'!V8","v":"00:00:00"},{"$f":"'Habilitation Agent'!W8","v":"?"},{"$f":"'Habilitation Agent'!X8","v":""}]
[null,{"$f":"'Habilitation Agent'!B9","v":"Durand 8"},{"$f":"'Habilitation Agent'!C9","v":0},{"$f":"'Habilitation Agent'!T9","v":0},{"$f":"'Habilitation Agent'!U9","v":3},{"$f":"'Habilitation Agent'!V9","v":"2014-05-15"},{"$f":"'Habilitation Agent'!W9","v":"2014-05-15"},{"$f":"'Habilitation Agent'!X9","v":"2017-05-15"}]
[null,{"$f":"'Habilitation Agent'!B10","v":"Durand 9"},{"$f":"'Habilitation Agent'!C10","v":0},{"$f":"'Habilitation Agent'!T10","v":0},{"$f":"'Habilitation Agent'!U10","v":3},{"$f":"'Habilitation Agent'!V10","v":"00:00:00"},{"$f":"'Habilitation Agent'!W10","v":"?"},{"$f":"'Habilitation Agent'!X10","v":""}]
[null,{"$f":"'Habilitation Agent'!B11","v":"Durand 10"},{"$f":"'Habilitation Agent'!C11","v":0},{"$f":"'Habilitation Agent'!T11","v":0},{"$f":"'Habilitation Agent'!U11","v":3},{"$f":"'Habilitation Agent'!V11","v":"00:00:00"},{"$f":"'Habilitation Agent'!W11","v":"?"},{"$f":"'Habilitation Agent'!X11","v":""}]
[null,{"$f":"'Habilitation Agent'!B12","v":"Durand 11"},{"$f":"'Habilitation Agent'!C12","v":0},{"$f":"'Habilitation Agent'!T12","v":0},{"$f":"'Habilitation Agent'!U12","v":3},{"$f":"'Habilitation Agent'!V12","v":"2011-05-19"},{"$f":"'Habilitation Agent'!W12","v":"2014-05-22"},{"$f":"'Habilitation Agent'!X12","v":"2017-05-22"}]
[null,{"$f":"'Habilitation Agent'!B13","v":"Durand 12"},{"$f":"'Habilitation Agent'!C13","v":0},{"$f":"'Habilitation Agent'!T13","v":0},{"$f":"'Habilitation Agent'!U13","v":3},{"$f":"'Habilitation Agent'!V13","v":"2014-05-15"},{"$f":"'Habilitation Agent'!W13","v":"2014-05-15"},{"$f":"'Habilitation Agent'!X13","v":"2017-05-15"}]
[null,{"$f":"'Habilitation Agent'!B14","v":"Durand 13"},{"$f":"'Habilitation Agent'!C14","v":0},{"$f":"'Habilitation Agent'!T14","v":0},{"$f":"'Habilitation Agent'!U14","v":3},{"$f":"'Habilitation Agent'!V14","v":"00:00:00"},{"$f":"'Habilitation Agent'!W14","v":"?"},{"$f":"'Habilitation Agent'!X14","v":""}]
[null,{"$f":"'Habilitation Agent'!B15","v":"Durand 14"},{"$f":"'Habilitation Agent'!C15","v":0},{"$f":"'Habilitation Agent'!T15","v":0},{"$f":"'Habilitation Agent'!U15","v":3},{"$f":"'Habilitation Agent'!V15","v":"00:00:00"},{"$f":"'Habilitation Agent'!W15","v":"00:00:00"},{"$f":"'Habilitation Agent'!X15","v":"1902-12-31"}]
[null,{"$f":"'Habilitation Agent'!B2","v":"Durand 1"},{"$f":"'Habilitation Agent'!C2","v":0},{"$f":"'Habilitation Agent'!AB2","v":0},{"$f":"'Habilitation Agent'!AC2","v":0},{"$f":"'Habilitation Agent'!AD2","v":"00:00:00"},{"$f":"'Habilitation Agent'!AE2","v":"00:00:00"},{"$f":"'Habilitation Agent'!AF2","v":"00:00:00"}]
[null,{"$f":"'Habilitation Agent'!B3","v":"Durand 2"},{"$f":"'Habilitation Agent'!C3","v":0},{"$f":"'Habilitation Agent'!AB3","v":0},{"$f":"'Habilitation Agent'!AC3","v":0},{"$f":"'Habilitation Agent'!AD3","v":""},{"$f":"'Habilitation Agent'!AE3","v":""},{"$f":"'Habilitation Agent'!AF3","v":""}]
[null,{"$f":"'Habilitation Agent'!B4","v":"Durand 3"},{"$f":"'Habilitation Agent'!C4","v":0},{"$f":"'Habilitation Agent'!AB4","v":0},{"$f":"'Habilitation Agent'!AC4","v":5},{"$f":"'Habilitation Agent'!AD4","v":"2011-06-09"},{"$f":"'Habilitation Agent'!AE4","v":"2011-06-09"},{"$f":"'Habilitation Agent'!AF4","v":"2016-06-09"}]
[null,{"$f":"'Habilitation Agent'!B5","v":"Durand 4"},{"$f":"'Habilitation Agent'!C5","v":0},{"$f":"'Habilitation Agent'!AB5","v":0},{"$f":"'Habilitation Agent'!AC5","v":5},{"$f":"'Habilitation Agent'!AD5","v":"2013-01-23"},{"$f":"'Habilitation Agent'!AE5","v":"2013-01-23"},{"$f":"'Habilitation Agent'!AF5","v":"2018-01-23"}]
[null,{"$f":"'Habilitation Agent'!B6","v":"Durand 5"},{"$f":"'Habilitation Agent'!C6","v":0},{"$f":"'Habilitation Agent'!AB6","v":0},{"$f":"'Habilitation Agent'!AC6","v":5},{"$f":"'Habilitation Agent'!AD6","v":"2013-01-22"},{"$f":"'Habilitation Agent'!AE6","v":"2013-01-22"},{"$f":"'Habilitation Agent'!AF6","v":"2018-01-22"}]
[null,{"$f":"'Habilitation Agent'!B7","v":"Durand 6"},{"$f":"'Habilitation Agent'!C7","v":0},{"$f":"'Habilitation Agent'!AB7","v":0},{"$f":"'Habilitation Agent'!AC7","v":5},{"$f":"'Habilitation Agent'!AD7","v":"00:00:00"},{"$f":"'Habilitation Agent'!AE7","v":"00:00:00"},{"$f":"'Habilitation Agent'!AF7","v":"1904-12-31"}]
[null,{"$f":"'Habilitation Agent'!B8","v":"Durand 7"},{"$f":"'Habilitation Agent'!C8","v":0},{"$f":"'Habilitation Agent'!AB8","v":0},{"$f":"'Habilitation Agent'!AC8","v":5},{"$f":"'Habilitation Agent'!AD8","v":"2013-01-22"},{"$f":"'Habilitation Agent'!AE8","v":"2013-01-22"},{"$f":"'Habilitation Agent'!AF8","v":"2018-01-22"}]
[null,{"$f":"'Habilitation Agent'!B9","v":"Durand 8"},{"$f":"'Habilitation Agent'!C9","v":0},{"$f":"'Habilitation Agent'!AB9","v":0},{"$f":"'Habilitation Agent'!AC9","v":5},{"$f":"'Habilitation Agent'!AD9","v":"2013-04-09"},{"$f":"'Habilitation Agent'!AE9","v":"2013-04-09"},{"$f":"'Habilitation Agent'!AF9","v":"2018-04-09"}]
[null,{"$f":"'Habilitation Agent'!B10","v":"Durand 9"},{"$f":"'Habilitation Agent'!C10","v":0},{"$f":"'Habilitation Agent'!AB10","v":0},{"$f":"'Habilitation Agent'!AC10","v":5},{"$f":"'Habilitation Agent'!AD10","v":"2013-01-23"},{"$f":"'Habilitation Agent'!AE10","v":"2013-01-23"},{"$f":"'Habilitation Agent'!AF10","v":"2018-01-23"}]
[null,{"$f":"'Habilitation Agent'!B11","v":"Durand 10"},{"$f":"'Habilitation Agent'!C11","v":0},{"$f":"'Habilitation Agent'!AB11","v":0},{"$f":"'Habilitation Agent'!AC11","v":5},{"$f":"'Habilitation Agent'!AD11","v":"2014-02-27"},{"$f":"'Habilitation Agent'!AE11","v":"2014-02-27"},{"$f":"'Habilitation Agent'!AF11","v":"2019-02-27"}]
[null,{"$f":"'Habilitation Agent'!B12","v":"Durand 11"},{"$f":"'Habilitation Agent'!C12","v":0},{"$f":"'Habilitation Agent'!AB12","v":0},{"$f":"'Habilitation Agent'!AC12","v":5},{"$f":"'Habilitation Agent'!AD12","v":"2014-02-27"},{"$f":"'Habilitation Agent'!AE12","v":"2014-02-27"},{"$f":"'Habilitation Agent'!AF12","v":"2019-02-27"}]
[null,{"$f":"'Habilitation Agent'!B13","v":"Durand 12"},{"$f":"'Habilitation Agent'!C13","v":0},{"$f":"'Habilitation Agent'!AB13","v":0},{"$f":"'Habilitation Agent'!AC13","v":5},{"$f":"'Habilitation Agent'!AD13","v":"2014-02-27"},{"$f":"'Habilitation Agent'!AE13","v":"2014-02-27"},{"$f":"'Habilitation Agent'!AF13","v":"2019-02-27"}]
[null,{"$f":"'Habilitation Agent'!B14","v":"Durand 13"},{"$f":"'Habilitation Agent'!C14","v":0},{"$f":"'Habilitation Agent'!AB14","v":0},{"$f":"'Habilitation Agent'!AC14","v":5},{"$f":"'Habilitation Agent'!AD14","v":"2009-03-03"},{"$f":"'Habilitation Agent'!AE14","v":"2009-03-03"},{"$f":"'Habilitation Agent'!AF14","v":"2014-03-03"}]
[null,{"$f":"'Habilitation Agent'!B15","v":"Durand 14"},{"$f":"'Habilitation Agent'!C15","v":0},{"$f":"'Habilitation Agent'!AB15","v":0},{"$f":"'Habilitation Agent'!AC15","v":5},{"$f":"'Habilitation Agent'!AD15","v":"2014-02-27"},{"$f":"'Habilitation Agent'!AE15","v":"2014-02-27"},{"$f":"'Habilitation Agent'!AF15","v":"2019-02-27"}]
[null,{"$f":"'Habilitation Agent'!B2","v":"Durand 1"},{"$f":"'Habilitation Agent'!C2","v":0},{"$f":"'Habilitation Agent'!AJ2","v":0},{"$f":"'Habilitation Agent'!AK2","v":""},{"$f":"'Habilitation Agent'!AL2","v":"00:00:00"},{"$f":"'Habilitation Agent'!AM2","v":"00:00:00"},{"$f":"'Habilitation Agent'!AN2","v":""}]
[null,{"$f":"'Habilitation Agent'!B3","v":"Durand 2"},{"$f":"'Habilitation Agent'!C3","v":0},{"$f":"'Habilitation Agent'!AJ3","v":"HUILE"},{"$f":"'Habilitation Agent'!AK3","v":0},{"$f":"'Habilitation Agent'!AL3","v":""},{"$f":"'Habilitation Agent'!AM3","v":"?"},{"$f":"'Habilitation Agent'!AN3","v":""}]
[null,{"$f":"'Habilitation Agent'!B4","v":"Durand 3"},{"$f":"'Habilitation Agent'!C4","v":0},{"$f":"'Habilitation Agent'!AJ4","v":0},{"$f":"'Habilitation Agent'!AK4","v":""},{"$f":"'Habilitation Agent'!AL4","v":""},{"$f":"'Habilitation Agent'!AM4","v":"00:00:00"},{"$f":"'Habilitation Agent'!AN4","v":""}]
[null,{"$f":"'Habilitation Agent'!B5","v":"Durand 4"},{"$f":"'Habilitation Agent'!C5","v":0},{"$f":"'Habilitation Agent'!AJ5","v":"HUILE"},{"$f":"'Habilitation Agent'!AK5","v":0},{"$f":"'Habilitation Agent'!AL5","v":"00:00:00"},{"$f":"'Habilitation Agent'!AM5","v":"2013-07-04"},{"$f":"'Habilitation Agent'!AN5","v":"2013-07-04"}]
[null,{"$f":"'Habilitation Agent'!B6","v":"Durand 5"},{"$f":"'Habilitation Agent'!C6","v":0},{"$f":"'Habilitation Agent'!AJ6","v":"HUILE"},{"$f":"'Habilitation Agent'!AK6","v":0},{"$f":"'Habilitation Agent'!AL6","v":"00:00:00"},{"$f":"'Habilitation Agent'!AM6","v":"?"},{"$f":"'Habilitation Agent'!AN6","v":""}]
[null,{"$f":"'Habilitation Agent'!B7","v":"Durand 6"},{"$f":"'Habilitation Agent'!C7","v":0},{"$f":"'Habilitation Agent'!AJ7","v":"HUILE"},{"$f":"'Habilitation Agent'!AK7","v":0},{"$f":"'Habilitation Agent'!AL7","v":"00:00:00"},{"$f":"'Habilitation Agent'!AM7","v":"2013-10-24"},{"$f":"'Habilitation Agent'!AN7","v":"2013-10-24"}]
[null,{"$f":"'Habilitation Agent'!B8","v":"Durand 7"},{"$f":"'Habilitation Agent'!C8","v":0},{"$f":"'Habilitation Agent'!AJ8","v":"HUILE"},{"$f":"'Habilitation Agent'!AK8","v":0},{"$f":"'Habilitation Agent'!AL8","v":"00:00:00"},{"$f":"'Habilitation Agent'!AM8","v":"2013-10-24"},{"$f":"'Habilitation Agent'!AN8","v":"2013-10-24"}]
[null,{"$f":"'Habilitation Agent'!B9","v":"Durand 8"},{"$f":"'Habilitation Agent'!C9","v":0},{"$f":"'Habilitation Agent'!AJ9","v":""},{"$f":"'Habilitation Agent'!AK9","v":""},{"$f":"'Habilitation Agent'!AL9","v":"00:00:00"},{"$f":"'Habilitation Agent'!AM9","v":""},{"$f":"'Habilitation Agent'!AN9","v":""}]
[null,{"$f":"'Habilitation Agent'!B10","v":"Durand 9"},{"$f":"'Habilitation Agent'!C10","v":0},{"$f":"'Habilitation Agent'!AJ10","v":0},{"$f":"'Habilitation Agent'!AK10","v":""},{"$f":"'Habilitation Agent'!AL10","v":"00:00:00"},{"$f":"'Habilitation Agent'!AM10","v":"00:00:00"},{"$f":"'Habilitation Agent'!AN10","v":""}]
[null,{"$f":"'Habilitation Agent'!B11","v":"Durand 10"},{"$f":"'Habilitation Agent'!C11","v":0},{"$f":"'Habilitation Agent'!AJ11","v":"HUILE"},{"$f":"'Habilitation Agent'!AK11","v":0},{"$f":"'Habilitation Agent'!AL11","v":"00:00:00"},{"$f":"'Habilitation Agent'!AM11","v":"2013-07-04"},{"$f":"'Habilitation Agent'!AN11","v":"2013-07-04"}]
[null,{"$f":"'Habilitation Agent'!B12","v":"Durand 11"},{"$f":"'Habilitation Agent'!C12","v":0},{"$f":"'Habilitation Agent'!AJ12","v":0},{"$f":"'Habilitation Agent'!AK12","v":""},{"$f":"'Habilitation Agent'!AL12","v":"00:00:00"},{"$f":"'Habilitation Agent'!AM12","v":"00:00:00"},{"$f":"'Habilitation Agent'!AN12","v":""}]
[null,{"$f":"'Habilitation Agent'!B13","v":"Durand 12"},{"$f":"'Habilitation Agent'!C13","v":0},{"$f":"'Habilitation Agent'!AJ13","v":0},{"$f":"'Habilitation Agent'!AK13","v":""},{"$f":"'Habilitation Agent'!AL13","v":"00:00:00"},{"$f":"'Habilitation Agent'!AM13","v":"00:00:00"},{"$f":"'Habilitation Agent'!AN13","v":""}]
[null,{"$f":"'Habilitation Agent'!B14","v":"Durand 13"},{"$f":"'Habilitation Agent'!C14","v":0},{"$f":"'Habilitation Agent'!AJ14","v":"HUILE"},{"$f":"'Habilitation Agent'!AK14","v":0},{"$f":"'Habilitation Agent'!AL14","v":"00:00:00"},{"$f":"'Habilitation Agent'!AM14","v":"?"},{"$f":"'Habilitation Agent'!AN14","v":""}]
[null,{"$f":"'Habilitation Agent'!B15","v":"Durand 14"},{"$f":"'Habilitation Agent'!C15","v":0},{"$f":"'Habilitation Agent'!AJ15","v":0},{"$f":"'Habilitation Agent'!AK15","v":""},{"$f":"'Habilitation Agent'!AL15","v":"00:00:00"},{"$f":"'Habilitation Agent'!AM15","v":"00:00:00"},{"$f":"'Habilitation Agent'!AN15","v":""}]
[null,{"$f":"'Habilitation Agent'!B2","v":"Durand 1"},{"$f":"'Habilitation Agent'!C2","v":0},{"$f":"'Habilitation Agent'!AR2","v":0},{"$f":"'Habilitation Agent'!AS2","v":""},{"$f":"'Habilitation Agent'!AT2","v":"00:00:00"},{"$f":"'Habilitation Agent'!AU2","v":"00:00:00"},{"$f":"'Habilitation Agent'!AV2","v":""}]
[null,{"$f":"'Habilitation Agent'!B3","v":"Durand 2"},{"$f":"'Habilitation Agent'!C3","v":0},{"$f":"'Habilitation Agent'!AR3","v":""},{"$f":"'Habilitation Agent'!AS3","v":""},{"$f":"'Habilitation Agent'!AT3","v":""},{"$f":"'Habilitation Agent'!AU3","v":""},{"$f":"'Habilitation Agent'!AV3","v":""}]
[null,{"$f":"'Habilitation Agent'!B4","v":"Durand 3"},{"$f":"'Habilitation Agent'!C4","v":0},{"$f":"'Habilitation Agent'!AR4","v":""},{"$f":"'Habilitation Agent'!AS4","v":""},{"$f":"'Habilitation Agent'!AT4","v":""},{"$f":"'Habilitation Agent'!AU4","v":""},{"$f":"'Habilitation Agent'!AV4","v":""}]
[null,{"$f":"'Habilitation Agent'!B5","v":"Durand 4"},{"$f":"'Habilitation Agent'!C5","v":0},{"$f":"'Habilitation Agent'!AR5","v":0},{"$f":"'Habilitation Agent'!AS5","v":""},{"$f":"'Habilitation Agent'!AT5","v":"00:00:00"},{"$f":"'Habilitation Agent'!AU5","v":"00:00:00"},{"$f":"'Habilitation Agent'!AV5","v":""}]
[null,{"$f":"'Habilitation Agent'!B6","v":"Durand 5"},{"$f":"'Habilitation Agent'!C6","v":0},{"$f":"'Habilitation Agent'!AR6","v":0},{"$f":"'Habilitation Agent'!AS6","v":""},{"$f":"'Habilitation Agent'!AT6","v":"00:00:00"},{"$f":"'Habilitation Agent'!AU6","v":"00:00:00"},{"$f":"'Habilitation Agent'!AV6","v":""}]
[null,{"$f":"'Habilitation Agent'!B7","v":"Durand 6"},{"$f":"'Habilitation Agent'!C7","v":0},{"$f":"'Habilitation Agent'!AR7","v":0},{"$f":"'Habilitation Agent'!AS7","v":""},{"$f":"'Habilitation Agent'!AT7","v":"00:00:00"},{"$f":"'Habilitation Agent'!AU7","v":"00:00:00"},{"$f":"'Habilitation Agent'!AV7","v":""}]
[null,{"$f":"'Habilitation Agent'!B8","v":"Durand 7"},{"$f":"'Habilitation Agent'!C8","v":0},{"$f":"'Habilitation Agent'!AR8","v":"MEULES"},{"$f":"'Habilitation Agent'!AS8","v":0},{"$f":"'Habilitation Agent'!AT8","v":"00:00:00"},{"$f":"'Habilitation Agent'!AU8","v":"00:00:00"},{"$f":"'Habilitation Agent'!AV8","v":"00:00:00"}]
[null,{"$f":"'Habilitation Agent'!B9","v":"Durand 8"},{"$f":"'Habilitation Agent'!C9","v":0},{"$f":"'Habilitation Agent'!AR9","v":""},{"$f":"'Habilitation Agent'!AS9","v":""},{"$f":"'Habilitation Agent'!AT9","v":"00:00:00"},{"$f":"'Habilitation Agent'!AU9","v":""},{"$f":"'Habilitation Agent'!AV9","v":""}]
[null,{"$f":"'Habilitation Agent'!B10","v":"Durand 9"},{"$f":"'Habilitation Agent'!C10","v":0},{"$f":"'Habilitation Agent'!AR10","v":"MEULES"},{"$f":"'Habilitation Agent'!AS10","v":0},{"$f":"'Habilitation Agent'!AT10","v":"00:00:00"},{"$f":"'Habilitation Agent'!AU10","v":"00:00:00"},{"$f":"'Habilitation Agent'!AV10","v":"00:00:00"}]
[null,{"$f":"'Habilitation Agent'!B11","v":"Durand 10"},{"$f":"'Habilitation Agent'!C11","v":0},{"$f":"'Habilitation Agent'!AR11","v":0},{"$f":"'Habilitation Agent'!AS11","v":""},{"$f":"'Habilitation Agent'!AT11","v":"00:00:00"},{"$f":"'Habilitation Agent'!AU11","v":"00:00:00"},{"$f":"'Habilitation Agent'!AV11","v":""}]
[null,{"$f":"'Habilitation Agent'!B12","v":"Durand 11"},{"$f":"'Habilitation Agent'!C12","v":0},{"$f":"'Habilitation Agent'!AR12","v":0},{"$f":"'Habilitation Agent'!AS12","v":""},{"$f":"'Habilitation Agent'!AT12","v":"00:00:00"},{"$f":"'Habilitation Agent'!AU12","v":"00:00:00"},{"$f":"'Habilitation Agent'!AV12","v":""}]
[null,{"$f":"'Habilitation Agent'!B13","v":"Durand 12"},{"$f":"'Habilitation Agent'!C13","v":0},{"$f":"'Habilitation Agent'!AR13","v":0},{"$f":"'Habilitation Agent'!AS13","v":""},{"$f":"'Habilitation Agent'!AT13","v":"00:00:00"},{"$f":"'Habilitation Agent'!AU13","v":"00:00:00"},{"$f":"'Habilitation Agent'!AV13","v":""}]
[null,{"$f":"'Habilitation Agent'!B14","v":"Durand 13"},{"$f":"'Habilitation Agent'!C14","v":0},{"$f":"'Habilitation Agent'!AR14","v":0},{"$f":"'Habilitation Agent'!AS14","v":""},{"$f":"'Habilitation Agent'!AT14","v":"00:00:00"},{"$f":"'Habilitation Agent'!AU14","v":"00:00:00"},{"$f":"'Habilitation Agent'!AV14","v":""}]
[null,{"$f":"'Habilitation Agent'!B15","v":"Durand 14"},{"$f":"'Habilitation Agent'!C15","v":0},{"$f":"'Habilitation Agent'!AR15","v":0},{"$f":"'Habilitation Agent'!AS15","v":""},{"$f":"'Habilitation Agent'!AT15","v":"00:00:00"},{"$f":"'Habilitation Agent'!AU15","v":"00:00:00"},{"$f":"'Habilitation Agent'!AV15","v":""}]
[null,{"$f":"'Habilitation Agent'!B2","v":"Durand 1"},{"$f":"'Habilitation Agent'!C2","v":0},{"$f":"'Habilitation Agent'!AZ2","v":0},{"$f":"'Habilitation Agent'!BA2","v":""},{"$f":"'Habilitation Agent'!BB2","v":"00:00:00"},{"$f":"'Habilitation Agent'!BC2","v":"00:00:00"},{"$f":"'Habilitation Agent'!BD2","v":""}]
[null,{"$f":"'Habilitation Agent'!B3","v":"Durand 2"},{"$f":"'Habilitation Agent'!C3","v":0},{"$f":"'Habilitation Agent'!AZ3","v":0},{"$f":"'Habilitation Agent'!BA3","v":""},{"$f":"'Habilitation Agent'!BB3","v":""},{"$f":"'Habilitation Agent'!BC3","v":""},{"$f":"'Habilitation Agent'!BD3","v":""}]
[null,{"$f":"'Habilitation Agent'!B4","v":"Durand 3"},{"$f":"'Habilitation Agent'!C4","v":0},{"$f":"'Habilitation Agent'!AZ4","v":""},{"$f":"'Habilitation Agent'!BA4","v":""},{"$f":"'Habilitation Agent'!BB4","v":""},{"$f":"'Habilitation Agent'!BC4","v":""},{"$f":"'Habilitation Agent'!BD4","v":""}]
[null,{"$f":"'Habilitation Agent'!B5","v":"Durand 4"},{"$f":"'Habilitation Agent'!C5","v":0},{"$f":"'Habilitation Agent'!AZ5","v":0},{"$f":"'Habilitation Agent'!BA5","v":""},{"$f":"'Habilitation Agent'!BB5","v":"00:00:00"},{"$f":"'Habilitation Agent'!BC5","v":"00:00:00"},{"$f":"'Habilitation Agent'!BD5","v":""}]
[null,{"$f":"'Habilitation Agent'!B6","v":"Durand 5"},{"$f":"'Habilitation Agent'!C6","v":0},{"$f":"'Habilitation Agent'!AZ6","v":0},{"$f":"'Habilitation Agent'!BA6","v":""},{"$f":"'Habilitation Agent'!BB6","v":"00:00:00"},{"$f":"'Habilitation Agent'!BC6","v":"00:00:00"},{"$f":"'Habilitation Agent'!BD6","v":""}]
[null,{"$f":"'Habilitation Agent'!B7","v":"Durand 6"},{"$f":"'Habilitation Agent'!C7","v":0},{"$f":"'Habilitation Agent'!AZ7","v":0},{"$f":"'Habilitation Agent'!BA7","v":""},{"$f":"'Habilitation Agent'!BB7","v":"00:00:00"},{"$f":"'Habilitation Agent'!BC7","v":"00:00:00"},{"$f":"'Habilitation Agent'!BD7","v":""}]
[null,{"$f":"'Habilitation Agent'!B8","v":"Durand 7"},{"$f":"'Habilitation Agent'!C8","v":0},{"$f":"'Habilitation Agent'!AZ8","v":0},{"$f":"'Habilitation Agent'!BA8","v":""},{"$f":"'Habilitation Agent'!BB8","v":"00:00:00"},{"$f":"'Habilitation Agent'!BC8","v":"00:00:00"},{"$f":"'Habilitation Agent'!BD8","v":""}]
[null,{"$f":"'Habilitation Agent'!B9","v":"Durand 8"},{"$f":"'Habilitation Agent'!C9","v":0},{"$f":"'Habilitation Agent'!AZ9","v":0},{"$f":"'Habilitation Agent'!BA9","v":""},{"$f":"'Habilitation Agent'!BB9","v":"00:00:00"},{"$f":"'Habilitation Agent'!BC9","v":""},{"$f":"'Habilitation Agent'!BD9","v":""}]
[null,{"$f":"'Habilitation Agent'!B10","v":"Durand 9"},{"$f":"'Habilitation Agent'!C10","v":0},{"$f":"'Habilitation Agent'!AZ10","v":0},{"$f":"'Habilitation Agent'!BA10","v":""},{"$f":"'Habilitation Agent'!BB10","v":"00:00:00"},{"$f":"'Habilitation Agent'!BC10","v":"00:00:00"},{"$f":"'Habilitation Agent'!BD10","v":""}]
[null,{"$f":"'Habilitation Agent'!B11","v":"Durand 10"},{"$f":"'Habilitation Agent'!C11","v":0},{"$f":"'Habilitation Agent'!AZ11","v":"CAMIGRUINI"},{"$f":"'Habilitation Agent'!BA11","v":5},{"$f":"'Habilitation Agent'!BB11","v":"00:00:00"},{"$f":"'Habilitation Agent'!BC11","v":"2012-11-09"},{"$f":"'Habilitation Agent'!BD11","v":"2017-11-09"}]
[null,{"$f":"'Habilitation Agent'!B12","v":"Durand 11"},{"$f":"'Habilitation Agent'!C12","v":0},{"$f":"'Habilitation Agent'!AZ12","v":0},{"$f":"'Habilitation Agent'!BA12","v":""},{"$f":"'Habilitation Agent'!BB12","v":"00:00:00"},{"$f":"'Habilitation Agent'!BC12","v":"00:00:00"},{"$f":"'Habilitation Agent'!BD12","v":""}]
[null,{"$f":"'Habilitation Agent'!B13","v":"Durand 12"},{"$f":"'Habilitation Agent'!C13","v":0},{"$f":"'Habilitation Agent'!AZ13","v":0},{"$f":"'Habilitation Agent'!BA13","v":""},{"$f":"'Habilitation Agent'!BB13","v":"00:00:00"},{"$f":"'Habilitation Agent'!BC13","v":"00:00:00"},{"$f":"'Habilitation Agent'!BD13","v":""}]
[null,{"$f":"'Habilitation Agent'!B14","v":"Durand 13"},{"$f":"'Habilitation Agent'!C14","v":0},{"$f":"'Habilitation Agent'!AZ14","v":0},{"$f":"'Habilitation Agent'!BA14","v":""},{"$f":"'Habilitation Agent'!BB14","v":"00:00:00"},{"$f":"'Habilitation Agent'!BC14","v":"00:00:00"},{"$f":"'Habilitation Agent'!BD14","v":""}]
[null,{"$f":"'Habilitation Agent'!B15","v":"Durand 14"},{"$f":"'Habilitation Agent'!C15","v":0},{"$f":"'Habilitation Agent'!AZ15","v":0},{"$f":"'Habilitation Agent'!BA15","v":""},{"$f":"'Habilitation Agent'!BB15","v":"00:00:00"},{"$f":"'Habilitation Agent'!BC15","v":"00:00:00"},{"$f":"'Habilitation Agent'!BD15","v":""}]
[null,{"$f":"'Habilitation Agent'!B2","v":"Durand 1"},{"$f":"'Habilitation Agent'!C2","v":0},{"$f":"'Habilitation Agent'!BH2","v":0},{"$f":"'Habilitation Agent'!BI2","v":""},{"$f":"'Habilitation Agent'!BJ2","v":"00:00:00"},{"$f":"'Habilitation Agent'!BK2","v":"00:00:00"},{"$f":"'Habilitation Agent'!BL2","v":""}]
[null,{"$f":"'Habilitation Agent'!B3","v":"Durand 2"},{"$f":"'Habilitation Agent'!C3","v":0},{"$f":"'Habilitation Agent'!BH3","v":"SICOBA"},{"$f":"'Habilitation Agent'!BI3","v":2},{"$f":"'Habilitation Agent'!BJ3","v":""},{"$f":"'Habilitation Agent'!BK3","v":""},{"$f":"'Habilitation Agent'!BL3","v":""}]
[null,{"$f":"'Habilitation Agent'!B4","v":"Durand 3"},{"$f":"'Habilitation Agent'!C4","v":0},{"$f":"'Habilitation Agent'!BH4","v":0},{"$f":"'Habilitation Agent'!BI4","v":""},{"$f":"'Habilitation Agent'!BJ4","v":"00:00:00"},{"$f":"'Habilitation Agent'!BK4","v":"00:00:00"},{"$f":"'Habilitation Agent'!BL4","v":""}]
[null,{"$f":"'Habilitation Agent'!B5","v":"Durand 4"},{"$f":"'Habilitation Agent'!C5","v":0},{"$f":"'Habilitation Agent'!BH5","v":0},{"$f":"'Habilitation Agent'!BI5","v":""},{"$f":"'Habilitation Agent'!BJ5","v":"00:00:00"},{"$f":"'Habilitation Agent'!BK5","v":"00:00:00"},{"$f":"'Habilitation Agent'!BL5","v":""}]
[null,{"$f":"'Habilitation Agent'!B6","v":"Durand 5"},{"$f":"'Habilitation Agent'!C6","v":0},{"$f":"'Habilitation Agent'!BH6","v":0},{"$f":"'Habilitation Agent'!BI6","v":""},{"$f":"'Habilitation Agent'!BJ6","v":"00:00:00"},{"$f":"'Habilitation Agent'!BK6","v":"00:00:00"},{"$f":"'Habilitation Agent'!BL6","v":""}]
[null,{"$f":"'Habilitation Agent'!B7","v":"Durand 6"},{"$f":"'Habilitation Agent'!C7","v":0},{"$f":"'Habilitation Agent'!BH7","v":0},{"$f":"'Habilitation Agent'!BI7","v":""},{"$f":"'Habilitation Agent'!BJ7","v":"00:00:00"},{"$f":"'Habilitation Agent'!BK7","v":"00:00:00"},{"$f":"'Habilitation Agent'!BL7","v":""}]
[null,{"$f":"'Habilitation Agent'!B8","v":"Durand 7"},{"$f":"'Habilitation Agent'!C8","v":0},{"$f":"'Habilitation Agent'!BH8","v":0},{"$f":"'Habilitation Agent'!BI8","v":""},{"$f":"'Habilitation Agent'!BJ8","v":"00:00:00"},{"$f":"'Habilitation Agent'!BK8","v":"00:00:00"},{"$f":"'Habilitation Agent'!BL8","v":""}]
[null,{"$f":"'Habilitation Agent'!B9","v":"Durand 8"},{"$f":"'Habilitation Agent'!C9","v":0},{"$f":"'Habilitation Agent'!BH9","v":""},{"$f":"'Habilitation Agent'!BI9","v":""},{"$f":"'Habilitation Agent'!BJ9","v":"00:00:00"},{"$f":"'Habilitation Agent'!BK9","v":""},{"$f":"'Habilitation Agent'!BL9","v":""}]
[null,{"$f":"'Habilitation Agent'!B10","v":"Durand 9"},{"$f":"'Habilitation Agent'!C10","v":0},{"$f":"'Habilitation Agent'!BH10","v":0},{"$f":"'Habilitation Agent'!BI10","v":""},{"$f":"'Habilitation Agent'!BJ10","v":"00:00:00"},{"$f":"'Habilitation Agent'!BK10","v":"00:00:00"},{"$f":"'Habilitation Agent'!BL10","v":""}]
[null,{"$f":"'Habilitation Agent'!B11","v":"Durand 10"},{"$f":"'Habilitation Agent'!C11","v":0},{"$f":"'Habilitation Agent'!BH11","v":"SICOBA"},{"$f":"'Habilitation Agent'!BI11","v":2},{"$f":"'Habilitation Agent'!BJ11","v":"00:00:00"},{"$f":"'Habilitation Agent'!BK11","v":"00:00:00"},{"$f":"'Habilitation Agent'!BL11","v":"1901-12-31"}]
[null,{"$f":"'Habilitation Agent'!B12","v":"Durand 11"},{"$f":"'Habilitation Agent'!C12","v":0},{"$f":"'Habilitation Agent'!BH12","v":0},{"$f":"'Habilitation Agent'!BI12","v":""},{"$f":"'Habilitation Agent'!BJ12","v":"00:00:00"},{"$f":"'Habilitation Agent'!BK12","v":"00:00:00"},{"$f":"'Habilitation Agent'!BL12","v":""}]
[null,{"$f":"'Habilitation Agent'!B13","v":"Durand 12"},{"$f":"'Habilitation Agent'!C13","v":0},{"$f":"'Habilitation Agent'!BH13","v":0},{"$f":"'Habilitation Agent'!BI13","v":""},{"$f":"'Habilitation Agent'!BJ13","v":"00:00:00"},{"$f":"'Habilitation Agent'!BK13","v":"00:00:00"},{"$f":"'Habilitation Agent'!BL13","v":""}]
[null,{"$f":"'Habilitation Agent'!B14","v":"Durand 13"},{"$f":"'Habilitation Agent'!C14","v":0},{"$f":"'Habilitation Agent'!BH14","v":0},{"$f":"'Habilitation Agent'!BI14","v":""},{"$f":"'Habilitation Agent'!BJ14","v":"00:00:00"},{"$f":"'Habilitation Agent'!BK14","v":"00:00:00"},{"$f":"'Habilitation Agent'!BL14","v":""}]
[null,{"$f":"'Habilitation Agent'!B15","v":"Durand 14"},{"$f":"'Habilitation Agent'!C15","v":0},{"$f":"'Habilitation Agent'!BH15","v":0},{"$f":"'Habilitation Agent'!BI15","v":""},{"$f":"'Habilitation Agent'!BJ15","v":"00:00:00"},{"$f":"'Habilitation Agent'!BK15","v":"00:00:00"},{"$f":"'Habilitation Agent'!BL15","v":""}]
[null,{"$f":"'Habilitation Agent'!B2","v":"Durand 1"},{"$f":"'Habilitation Agent'!C2","v":0},{"$f":"'Habilitation Agent'!BP2","v":0},{"$f":"'Habilitation Agent'!BQ2","v":""},{"$f":"'Habilitation Agent'!BR2","v":"00:00:00"},{"$f":"'Habilitation Agent'!BS2","v":"00:00:00"},{"$f":"'Habilitation Agent'!BT2","v":""}]
[null,{"$f":"'Habilitation Agent'!B3","v":"Durand 2"},{"$f":"'Habilitation Agent'!C3","v":0},{"$f":"'Habilitation Agent'!BP3","v":""},{"$f":"'Habilitation Agent'!BQ3","v":""},{"$f":"'Habilitation Agent'!BR3","v":""},{"$f":"'Habilitation Agent'!BS3","v":""},{"$f":"'Habilitation Agent'!BT3","v":""}]
[null,{"$f":"'Habilitation Agent'!B4","v":"Durand 3"},{"$f":"'Habilitation Agent'!C4","v":0},{"$f":"'Habilitation Agent'!BP4","v":0},{"$f":"'Habilitation Agent'!BQ4","v":""},{"$f":"'Habilitation Agent'!BR4","v":"00:00:00"},{"$f":"'Habilitation Agent'!BS4","v":"00:00:00"},{"$f":"'Habilitation Agent'!BT4","v":""}]
[null,{"$f":"'Habilitation Agent'!B5","v":"Durand 4"},{"$f":"'Habilitation Agent'!C5","v":0},{"$f":"'Habilitation Agent'!BP5","v":0},{"$f":"'Habilitation Agent'!BQ5","v":""},{"$f":"'Habilitation Agent'!BR5","v":"00:00:00"},{"$f":"'Habilitation Agent'!BS5","v":"00:00:00"},{"$f":"'Habilitation Agent'!BT5","v":""}]
[null,{"$f":"'Habilitation Agent'!B6","v":"Durand 5"},{"$f":"'Habilitation Agent'!C6","v":0},{"$f":"'Habilitation Agent'!BP6","v":0},{"$f":"'Habilitation Agent'!BQ6","v":""},{"$f":"'Habilitation Agent'!BR6","v":"00:00:00"},{"$f":"'Habilitation Agent'!BS6","v":"00:00:00"},{"$f":"'Habilitation Agent'!BT6","v":""}]
[null,{"$f":"'Habilitation Agent'!B7","v":"Durand 6"},{"$f":"'Habilitation Agent'!C7","v":0},{"$f":"'Habilitation Agent'!BP7","v":0},{"$f":"'Habilitation Agent'!BQ7","v":""},{"$f":"'Habilitation Agent'!BR7","v":"00:00:00"},{"$f":"'Habilitation Agent'!BS7","v":"00:00:00"},{"$f":"'Habilitation Agent'!BT7","v":""}]
[null,{"$f":"'Habilitation Agent'!B8","v":"Durand 7"},{"$f":"'Habilitation Agent'!C8","v":0},{"$f":"'Habilitation Agent'!BP8","v":0},{"$f":"'Habilitation Agent'!BQ8","v":""},{"$f":"'Habilitation Agent'!BR8","v":"00:00:00"},{"$f":"'Habilitation Agent'!BS8","v":"00:00:00"},{"$f":"'Habilitation Agent'!BT8","v":""}]
[null,{"$f":"'Habilitation Agent'!B9","v":"Durand 8"},{"$f":"'Habilitation Agent'!C9","v":0},{"$f":"'Habilitation Agent'!BP9","v":""},{"$f":"'Habilitation Agent'!BQ9","v":""},{"$f":"'Habilitation Agent'!BR9","v":"00:00:00"},{"$f":"'Habilitation Agent'!BS9","v":""},{"$f":"'Habilitation Agent'!BT9","v":""}]
[null,{"$f":"'Habilitation Agent'!B10","v":"Durand 9"},{"$f":"'Habilitation Agent'!C10","v":0},{"$f":"'Habilitation Agent'!BP10","v":0},{"$f":"'Habilitation Agent'!BQ10","v":""},{"$f":"'Habilitation Agent'!BR10","v":"00:00:00"},{"$f":"'Habilitation Agent'!BS10","v":"00:00:00"},{"$f":"'Habilitation Agent'!BT10","v":""}]
[null,{"$f":"'Habilitation Agent'!B11","v":"Durand 10"},{"$f":"'Habilitation Agent'!C11","v":0},{"$f":"'Habilitation Agent'!BP11","v":0},{"$f":"'Habilitation Agent'!BQ11","v":""},{"$f":"'Habilitation Agent'!BR11","v":"00:00:00"},{"$f":"'Habilitation Agent'!BS11","v":"00:00:00"},{"$f":"'Habilitation Agent'!BT11","v":""}]
[null,{"$f":"'Habilitation Agent'!B12","v":"Durand 11"},{"$f":"'Habilitation Agent'!C12","v":0},{"$f":"'Habilitation Agent'!BP12","v":0},{"$f":"'Habilitation Agent'!BQ12","v":""},{"$f":"'Habilitation Agent'!BR12","v":"00:00:00"},{"$f":"'Habilitation Agent'!BS12","v":"00:00:00"},{"$f":"'Habilitation Agent'!BT12","v":""}]
[null,{"$f":"'Habilitation Agent'!B13","v":"Durand 12"},{"$f":"'Habilitation Agent'!C13","v":0},{"$f":"'Habilitation Agent'!BP13","v":0},{"$f":"'Habilitation Agent'!BQ13","v":""},{"$f":"'Habilitation Agent'!BR13","v":"00:00:00"},{"$f":"'Habilitation Agent'!BS13","v":"00:00:00"},{"$f":"'Habilitation Agent'!BT13","v":""}]
[null,{"$f":"'Habilitation Agent'!B14","v":"Durand 13"},{"$f":"'Habilitation Agent'!C14","v":0},{"$f":"'Habilitation Agent'!BP14","v":0},{"$f":"'Habilitation Agent'!BQ14","v":""},{"$f":"'Habilitation Agent'!BR14","v":"00:00:00"},{"$f":"'Habilitation Agent'!BS14","v":"00:00:00"},{"$f":"'Habilitation Agent'!BT14","v":""}]
[null,{"$f":"'Habilitation Agent'!B15","v":"Durand 14"},{"$f":"'Habilitation Agent'!C15","v":0},{"$f":"'Habilitation Agent'!BP15","v":0},{"$f":"'Habilitation Agent'!BQ15","v":""},{"$f":"'Habilitation Agent'!BR15","v":"00:00:00"},{"$f":"'Habilitation Agent'!BS15","v":"00:00:00"},{"$f":"'Habilitation Agent'!BT15","v":""}]